Workbook

Sheet Instructions
B2: =CONCATENATE(dms_Sector," ",dms_Segment," ", "Network Service Provider") -> Electricity Transmission Network Service Provider
B3: =IF(dms_Model="Reset","Regulatory Proposal RIN Template","Annual Reporting RIN") -> Regulatory Proposal RIN Template
B4: =CONCATENATE("This template is to be used by ",dms_TradingNameFull," to fulfil its reporting obligations to the AER.") -> This template is to be used by TasNetworks (T) to fulfil its reporting obligations to the AER.
B5: INSTRUCTIONS
B6: GENERAL | C6: Complete the Business & other details worksheet before entering data or values in any other worksheets. The Business & other details worksheet is linked to other worksheets within the workbook and automatically generates certain column headings and conditional formatting.
B8: CONFIDENTIAL INFORMATION | C8: Please use the macro at the top of each worksheet to identify confidential information in the confidential workbook.
C9: -Do this by selecting the cell or cells that contain confidential information and then run the Mark selection as CONFIDENTIAL macro. This will format the cells a specific colour that is identified by the AER's database which in turn marks that information as confidential. -To reverse this, select the cell or cells and run the Return selection to NON-CONFIDENTIAL macro.
B11: RESPONSES | C11: Please return two (2) files to the AER: 1. A confidential version which must contain a complete set of all responses with confidential information marked using the Mark selection CONFIDENTIAL macro and which has been completed using the locked template file provided by the AER. 2. A public version with confidential information either removed completely or aggregated in some form together with writtten consent to disclose the public version of the response. Use the drop down box on the Business and other details worksheet to identify the file as either confidential ('consolidated') or public.
B13: AMENDMENTS | C13: If an NSP wishes to correct data previously submitted to the AER it should resubmit that data using the original completed submission as the starting point. Please make any necessary changes to the data. Data that is not being amended should be left unchanged. NSPs must identify the reason for the amendments in the Amendment Reason box on the Business and other details worksheet. NSPs may provide further details regarding any amendments in the Amendments worksheet. .
C14: NSP may use Amended Data macro to highlight cells that contain amended data. NB: if data is also CONFIDENTIAL, re-apply the Confidentiality macro after applying the Amended macro
C15: Please resubmit two (2) files - a confidential version and a public version of the amended submission to the AER
B17: UNITS OF MEASURE | C17: All amounts are to be unrounded and reported on a one for one basis: that is 1000 is to be entered as '1000'. Applicable units of measure may be identified in the table column headings or row descriptors.
B19: INPUT / NON-INPUT CELLS
D20: Yellow = Input cell (mandatory)
D21: Darker yellow = input cell (mandatory)
D22: Orange = input cell (if data available)
D23: Grey = Not applicable/No inputs required
D24: PLEASE DO NOT ENTER TEXT into cells that are to contain numbers (including 'numbers stored as text')
B27: NAVIGATION | C27: Many tables in the worksheets have been "grouped" to allow for easy navigation. To ungroup or group data use the outline symbols in the left margin (for Row groupings) or above the columns (for column groupings).

Sheet CONTENTS
C1: =INDEX(dms_Worksheet_List,MATCH(dms_Model,dms_Model_List)) -> REGULATORY REPORTING STATEMENT
C2: =INDEX(dms_TradingNameFull_List,MATCH(dms_TradingName,dms_TradingName_List)) -> TasNetworks (T)
C3: =CONCATENATE("REGULATORY PERIOD FROM ", FRCP_y1," TO ",dms_MultiYear_FinalYear_Result) -> REGULATORY PERIOD FROM 2024-25 TO 2028-29
C6: CONTENTS
C8: TEMPLATE | D8: FINAL RIN OCTOBER 2022
C10: SUBMISSION | D10: Business & other details
C12: EXPENDITURE | D12: 2.1 Expenditure summary
D13: 2.2 Repex
D14: 2.3 Augex (b)
D15: 2.5 Connections
D16: 2.6 Non-network
D17: 2.10 Overheads
D18: 2.11 Labour
D19: 2.14 Forecast price changes
D20: 2.16 Opex Summary
D21: 2.17 Step Changes
C23: ECONOMIC BENCHMARKING | D23: 3.1 Revenue
D24: 3.2 Operating expenditure
D25: 3.3 Assets (RAB)
D26: 3.4 Operational data
D27: 3.5 Physical assets
D28: 3.7 Operating environment
C30: NETWORK | D30: 5.4 MD & Utilisation - Spatial
C32: OTHER | D32: 7.1 Policies and Procedures
D33: 7.2 Contingent projects
D34: 7.3 Obligations
D35: 7.4 Shared Assets
D36: 7.9 STPIS
C38: CAPEX | D38: 8.2 Capex

Sheet Business & other details
V1: =INDEX(dms_Worksheet_List,MATCH(dms_Model,dms_Model_List)) -> REGULATORY REPORTING STATEMENT
V2: =INDEX(dms_TradingNameFull_List,MATCH(dms_TradingName,dms_TradingName_List)) -> TasNetworks (T)
V3: =CONCATENATE("REGULATORY PERIOD FROM ", FRCP_y1," TO ",dms_MultiYear_FinalYear_Result) -> REGULATORY PERIOD FROM 2024-25 TO 2028-29
V4: BUSINESS & OTHER DETAILS
V6: INSTRUCTIONS
V7: Complete the following business details regulatory template before entering data or values in any other regulatory template. This regulatory template is linked to other cells within the spreadsheet and automatically generates column headings and conditional formatting to distinguish business specific input and non-input cells.
Q9: SUBMISSION PARTICULARS INPUT SHEET
V12: ENTITY DETAILS
V14: Business Name
V16: Short name | AL16: TasNetworks (T)
V17: ACN/ABN | AL17: =INDEX(dms_ABN_List,MATCH(dms_TradingName,dms_TradingName_List)) -> 24167357299
V21: Business Address | BQ21: Postal Address
V23: Address 1 | AL23: =INDEX(dms_Addr1_List,MATCH(dms_TradingName,dms_TradingName_List)) -> 1-7 Maria Street | BI23: Address 1 | BQ23: =INDEX(dms_PAddr1_List,MATCH(dms_TradingName,dms_TradingName_List)) -> PO Box 606
V24: Address 2 | AL24: =IF(ISBLANK(INDEX(dms_Addr2_List,MATCH(dms_TradingName,dms_TradingName_List))),"",(INDEX(dms_Addr2_List,MATCH(dms_TradingName,dms_TradingName_List)))) ->  | BI24: Address 2 | BQ24: =IF(ISBLANK(INDEX(dms_PAddr2_List,MATCH(dms_TradingName,dms_TradingName_List))),"",(INDEX(dms_PAddr2_List,MATCH(dms_TradingName,dms_TradingName_List)))) -> 
V25: Suburb | AL25: =INDEX(dms_Suburb_List,MATCH(dms_TradingName,dms_TradingName_List)) -> LENAH VALLEY | BI25: Suburb | BQ25: =INDEX(dms_PSuburb_List,MATCH(dms_TradingName,dms_TradingName_List)) -> MOONAH
V26: State | AL26: =INDEX(dms_State_List,MATCH(dms_TradingName,dms_TradingName_List)) -> Tas | AV26: Post code | BI26: State | BQ26: =INDEX(dms_PState_List,MATCH(dms_TradingName,dms_TradingName_List)) -> Tas | CA26: Post code
BA28: `
V30: Contact Names
V32: Name | BI32: Name
V33: Phone | BI33: Phone
V34: Email | BI34: Email
Q39: REGULATORY CONTROL PERIODS
Z42: Forthcoming period | AL42: 2024-25 | AU42: =FRCP_y2 -> 2025-26 | BD42: =FRCP_y3 -> 2026-27 | BM42: =FRCP_y4 -> 2027-28 | BV42: =FRCP_y5 -> 2028-29
AL43: =FRCP_y6 -> 2029-30 | AU43: =FRCP_y7 -> 2030-31 | BD43: =FRCP_y8 -> 2031-32 | BM43: =FRCP_y9 -> 2032-33 | BV43: =FRCP_y10 -> 2033-34
AL44: =FRCP_y11 -> 2034-35 | AU44: =FRCP_y12 -> 2035-36 | BD44: =FRCP_y13 -> 2036-37 | BM44: =FRCP_y14 -> 2037-38 | BV44: =FRCP_y15 -> 2038-39
X46: RESETS | Z46: Current period | AL46: =CRCP_y1 -> 2019-20 | AU46: =CRCP_y2 -> 2020-21 | BD46: =CRCP_y3 -> 2021-22 | BM46: =CRCP_y4 -> 2022-23 | BV46: =CRCP_y5 -> 2023-24
AL47: =CRCP_y6 -> 2024-25 | AU47: =CRCP_y7 -> 2025-26 | BD47: =CRCP_y8 -> 2026-27 | BM47: =CRCP_y9 -> 2027-28 | BV47: =CRCP_y10 -> 2028-29
AL48: =CRCP_y11 -> 2029-30 | AU48: =CRCP_y12 -> 2030-31 | BD48: =CRCP_y13 -> 2031-32 | BM48: =CRCP_y14 -> 2032-33 | BV48: =CRCP_y15 -> 2033-34
Z50: Previous period | AL50: =PRCP_y1 -> 2014-15 | AU50: =PRCP_y2 -> 2015-16 | BD50: =PRCP_y3 -> 2016-17 | BM50: =PRCP_y4 -> 2017-18 | BV50: =PRCP_y5 -> 2018-19
AL51: =PRCP_y6 -> 2019-20 | AU51: =PRCP_y7 -> 2020-21 | BD51: =PRCP_y8 -> 2021-22 | BM51: =PRCP_y9 -> 2022-23 | BV51: =PRCP_y10 -> 2023-24
AL52: =PRCP_y11 -> 2024-25 | AU52: =PRCP_y12 -> 2025-26 | BD52: =PRCP_y13 -> 2026-27 | BM52: =PRCP_y14 -> 2027-28 | BV52: =PRCP_y15 -> 2028-29
Z54: Commencing year | AL54: 2022-23
X55: ANNUAL RINS
Z56: Final year | AL56: 2022-23
Q60: SUBMISSION DETAILS
Z62: RIN type | AL62: =INDIRECT(dms_Model) -> Regulatory Reporting (Reset)
Z64: Source | AL64: Regulatory proposal
X66: THIS FILE | Z66: Data Quality | AL66: Consolidated
Z68: Confidentiality Status | AL68: Public
Z70: Amended RIN Amendment Reason | AL70: .
Z74: Submission Date | AL74: 2023-01-31 | BD74: Please enter date this file submitted to AER

Sheet 2.1 Expenditure summary
B1: =(LOOKUP(dms_Model,dms_Model_List,dms_Worksheet_List)) -> REGULATORY REPORTING STATEMENT
B2: =INDEX(dms_TradingNameFull_List,MATCH(dms_TradingName,dms_TradingName_List)) -> TasNetworks (T)
B3: =CONCATENATE("REGULATORY PERIOD FROM ", FRCP_y1," TO ",dms_MultiYear_FinalYear_Result) -> REGULATORY PERIOD FROM 2024-25 TO 2028-29
B4: 2.1 - EXPENDITURE SUMMARY AND RECONCILIATION
B6: There are three tables on this worksheet. Each has been grouped for ease of navigation. See the Instructions sheet on how to group or ungroup tables.
B8: 2.1.1 - PRESCRIBED TRANSMISSION SERVICES CAPEX (as incurred)
C9: EXPENDITURE
C10: =CONCATENATE("Forecast ($0's. real ",dms_DollarReal,")") -> Forecast ($0's. real June 2024)
C11: =dms_y1 -> 2022-23 | D11: =dms_y2 -> 2023-24 | E11: =dms_y3 -> 2024-25 | F11: =dms_y4 -> 2025-26 | G11: =dms_y5 -> 2026-27 | H11: =dms_y6 -> 2027-28 | I11: =dms_y7 -> 2028-29
B12: Replacement expenditure | C12: =SUM('2.2 Repex'!D58:D66) -> 40111257.41 | D12: =SUM('2.2 Repex'!E58:E66) -> 32351178.16 | E12: =SUM('2.2 Repex'!F58:F66) -> 30698966.18 | F12: =SUM('2.2 Repex'!G58:G66) -> 39636985.66 | G12: =SUM('2.2 Repex'!H58:H66) -> 32940742.87 | H12: =SUM('2.2 Repex'!I58:I66) -> 37900872.45 | I12: =SUM('2.2 Repex'!J58:J66) -> 26186389.07
B13: Connections | C13: =SUM('2.5 Connections'!C13:C63) -> 0 | D13: =SUM('2.5 Connections'!D13:D63) -> 0 | E13: =SUM('2.5 Connections'!E13:E63) -> 0 | F13: =SUM('2.5 Connections'!F13:F63) -> 0 | G13: =SUM('2.5 Connections'!G13:G63) -> 0 | H13: =SUM('2.5 Connections'!H13:H63) -> 0 | I13: =SUM('2.5 Connections'!I13:I63) -> 0
B14: Augmentation Expenditure | C14: =SUM('2.3 Augex (b)'!C12:C14) -> 3914022.5 | D14: =SUM('2.3 Augex (b)'!D12:D14) -> 3144795.77 | E14: =SUM('2.3 Augex (b)'!E12:E14) -> 1548819.095 | F14: =SUM('2.3 Augex (b)'!F12:F14) -> 5363592.438 | G14: =SUM('2.3 Augex (b)'!G12:G14) -> 5599665.612 | H14: =SUM('2.3 Augex (b)'!H12:H14) -> 536021.9612 | I14: =SUM('2.3 Augex (b)'!I12:I14) -> 7673144.964
B15: Non-network | C15: =SUM('2.6 Non-network'!E33:E51) -> 10010777.79 | D15: =SUM('2.6 Non-network'!F33:F51) -> 9119269.159 | E15: =SUM('2.6 Non-network'!G33:G51) -> 7946972.496 | F15: =SUM('2.6 Non-network'!H33:H51) -> 10226322.59 | G15: =SUM('2.6 Non-network'!I33:I51) -> 7950527.618 | H15: =SUM('2.6 Non-network'!J33:J51) -> 7201127.092 | I15: =SUM('2.6 Non-network'!K33:K51) -> 6013304.872
B16: Capitalised network overheads | C16: =dms_021001_capex_SCS_Values -> 6475998.735 | D16: 5428596.217 | E16: 6016764.326 | F16: 6436774.791 | G16: 6289386.648 | H16: 6280934.799 | I16: 6151108.24
B17: Capitalised corporate overheads | C17: ='2.10 Overheads'!D29 -> 5401761.225 | D17: ='2.10 Overheads'!E29 -> 5428596.217 | E17: ='2.10 Overheads'!F29 -> 6016764.326 | F17: ='2.10 Overheads'!G29 -> 6436774.791 | G17: ='2.10 Overheads'!H29 -> 6289386.648 | H17: ='2.10 Overheads'!I29 -> 6280934.799 | I17: ='2.10 Overheads'!J29 -> 6151108.24
B18: Total | C18: =SUM(C12:C17) -> 65913817.65 | D18: 55472435.53 | E18: 52228286.43 | F18: 68100450.26 | G18: 59069709.39 | H18: 58199891.1 | I18: 52175055.39
B20: 2.1.2 - PRESCRIBED TRANSMISSION SERVICES OPEX
C21: EXPENDITURE
C22: =CONCATENATE("Forecast ($0's. real ",dms_DollarReal,")") -> Forecast ($0's. real June 2024)
C23: =dms_y1 -> 2022-23 | D23: =dms_y2 -> 2023-24 | E23: =dms_y3 -> 2024-25 | F23: =dms_y4 -> 2025-26 | G23: =dms_y5 -> 2026-27 | H23: =dms_y6 -> 2027-28 | I23: =dms_y7 -> 2028-29
B24: Vegetation management
B25: Maintenance
B26: Non-network
B27: Network overheads
B28: Corporate overheads
B29: Total | C29: =SUM(C24:C28) -> 0 | D29: 0 | E29: 0 | F29: 0 | G29: 0 | H29: 0 | I29: 0
B32: 2.1.8 - PRESCRIBED TRANSMISSION SERVICES CAPITALISED OVERHEADS
C33: EXPENDITURE
C34: =CONCATENATE("Forecast ($0's. real ",dms_DollarReal,")") -> Forecast ($0's. real June 2024)
C35: =dms_y1 -> 2022-23 | D35: =dms_y2 -> 2023-24 | E35: =dms_y3 -> 2024-25 | F35: =dms_y4 -> 2025-26 | G35: =dms_y5 -> 2026-27 | H35: =dms_y6 -> 2027-28 | I35: =dms_y7 -> 2028-29
B36: Replacement expenditure | C36: 10808761.56 | D36: 9880045.116 | E36: 11145684.23 | F36: 11150688.77 | G36: 10569504.52 | H36: 12378521.95 | I36: 9370991.809
B37: Connections | C37: 0 | D37: 0 | E37: 0 | F37: 0 | G37: 0 | H37: 0 | I37: 0
B38: Augmentation Expenditure | C38: 1068998.396 | D38: 977147.3191 | E38: 887844.4173 | F38: 1722860.812 | G38: 2009268.774 | H38: 183347.6524 | I38: 2931224.671
B39: Non-network
B40: Total | C40: =SUM(C36:C39) -> 11877759.96 | D40: 10857192.43 | E40: 12033528.65 | F40: 12873549.58 | G40: 12578773.3 | H40: 12561869.6 | I40: 12302216.48

Sheet 2.2 Repex
B1: =(LOOKUP(dms_Model,dms_Model_List,dms_Worksheet_List)) -> REGULATORY REPORTING STATEMENT
B2: =INDEX(dms_TradingNameFull_List,MATCH(dms_TradingName,dms_TradingName_List)) -> TasNetworks (T)
B3: =CONCATENATE("REGULATORY PERIOD FROM ", FRCP_y1," TO ",dms_MultiYear_FinalYear_Result) -> REGULATORY PERIOD FROM 2024-25 TO 2028-29
B4: 2.2 REPEX
B6: There is ONE table (with three sub-tables) on this worksheet. See the Instructions sheet on how to group or ungroup tables.
B8: 2.2.1 - REPLACEMENT EXPENDITURE, VOLUMES AND ASSET FAILURES BY ASSET CATEGORY
B9: EXPENDITURE
D10: EXPENDITURE
D11: =CONCATENATE("Forecast ($0's. real ",dms_DollarReal,")") -> Forecast ($0's. real June 2024)
B12: ASSET GROUP | D12: =dms_y1 -> 2022-23 | E12: =dms_y2 -> 2023-24 | F12: =dms_y3 -> 2024-25 | G12: =dms_y4 -> 2025-26 | H12: =dms_y5 -> 2026-27 | I12: =dms_y6 -> 2027-28 | J12: =dms_y7 -> 2028-29
B13: TRANSMISSION TOWERS | C13: Total | D13: 3088158.333 | E13: 550397.4275 | F13: 2291071.909 | G13: 3826260.911 | H13: 0 | I13: 0 | J13: 0
B14: TRANSMISSION TOWER SUPPORT STRUCTURES | C14: Total | D14: 6504331.911 | E14: 4976983.601 | F14: 8591519.658 | G14: 4014863.121 | H14: 4017608.767 | I14: 4018883.729 | J14: 5170132.95
B15: CONDUCTORS | C15: Total | D15: -924.0597918 | E15: 7089.864823 | F15: 916428.7636 | G15: 917682.999 | H15: 918310.5752 | I15: 918601.9953 | J15: 919134.7467
B16: TRANSMISSION CABLES | C16: Total | D16: 57292.58887 | E16: 0 | F16: 56997.81139 | G16: 57166.53123 | H16: 57250.95282 | I16: 57290.15466 | J16: 1204598.229
B17: SUBSTATION SWITCHBAYS | C17: Total | D17: 1432031.785 | E17: 10662312.58 | F17: 5247555.944 | G17: 14734778.61 | H17: 17590589.17 | I17: 5140072.676 | J17: 409563.3978
B18: SUBSTATION POWER TRANSFORMERS | C18: Total | D18: 567671.1039 | E18: 1194569.915 | F18: 0 | G18: 0 | H18: 343505.7169 | I18: 18442833.98 | J18: 9605788.65
B19: SUBSTATION REACTIVE PLANT | C19: Total | D19: 0 | E19: 0 | F19: 0 | G19: 0 | H19: 0 | I19: 0 | J19: 0
B20: SCADA, NETWORK CONTROL AND PROTECTION SYSTEMS | C20: Total | D20: 12978111.15 | E20: 12978111.15 | F20: 8087164.724 | G20: 12265482.53 | H20: 6538181.759 | I20: 5961308.021 | J20: 6143654.909
B21: OTHER | C21: Total | D21: 3057275.997 | E21: 3057275.997 | F21: 5508227.373 | G21: 3820750.955 | H21: 3475295.925 | I21: 3361881.89 | J21: 2733516.187
B24: ASSET REPLACEMENTS
D25: VOLUMES
D26: (0's)
B27: ASSET GROUP | D27: =dms_y1 -> 2022-23 | E27: =dms_y2 -> 2023-24 | F27: =dms_y3 -> 2024-25 | G27: =dms_y4 -> 2025-26 | H27: =dms_y5 -> 2026-27 | I27: =dms_y6 -> 2027-28 | J27: =dms_y7 -> 2028-29
B28: TRANSMISSION TOWERS | C28: Total | D28: 2 | E28: 0 | F28: 1 | G28: 18 | H28: 1 | I28: 1 | J28: 1
B29: TRANSMISSION TOWER SUPPORT STRUCTURES | C29: Total | D29: 1453 | E29: 1503 | F29: 1340 | G29: 1611 | H29: 1340 | I29: 1340 | J29: 1340
B30: CONDUCTORS | C30: Total | D30: 12 | E30: 0 | F30: 6 | G30: 12.234 | H30: 6 | I30: 6 | J30: 6
B31: TRANSMISSION CABLES | C31: Total | D31: 0 | E31: 0 | F31: 0 | G31: 0 | H31: 0 | I31: 0 | J31: 1
B32: SUBSTATION SWITCHBAYS | C32: Total | D32: 22 | E32: 54 | F32: 20 | G32: 30 | H32: 46 | I32: 6 | J32: 18
B33: SUBSTATION POWER TRANSFORMERS | C33: Total | D33: 2 | E33: 4 | F33: 1 | G33: 0 | H33: 0 | I33: 5 | J33: 2
B34: SUBSTATION REACTIVE PLANT | C34: Total | D34: 0 | E34: 0 | F34: 0 | G34: 0 | H34: 0 | I34: 0 | J34: 0
B35: SCADA, NETWORK CONTROL AND PROTECTION SYSTEMS | C35: Total | D35: 82.8 | E35: 160.98 | F35: 243.789 | G35: 215.8179 | H35: 197.59969 | I35: 156 | J35: 150.5256249
B36: OTHER | C36: Total | D36: 0 | E36: 0 | F36: 0 | G36: 0 | H36: 0 | I36: 0 | J36: 0
B39: ASSET FAILURES
D40: VOLUMES
D41: (0's)
B42: ASSET GROUP | D42: =dms_y1 -> 2022-23 | E42: =dms_y2 -> 2023-24 | F42: =dms_y3 -> 2024-25 | G42: =dms_y4 -> 2025-26 | H42: =dms_y5 -> 2026-27 | I42: =dms_y6 -> 2027-28 | J42: =dms_y7 -> 2028-29
B43: TRANSMISSION TOWERS | C43: Total | D43: 1 | E43: 0 | F43: 0 | G43: 0 | H43: 0 | I43: 0 | J43: 0
B44: TRANSMISSION TOWER SUPPORT STRUCTURES | C44: Total | D44: 0 | E44: 0 | F44: 0 | G44: 0 | H44: 0 | I44: 0 | J44: 0
B45: CONDUCTORS | C45: Total | D45: 0 | E45: 0 | F45: 0 | G45: 0 | H45: 0 | I45: 0 | J45: 0
B46: TRANSMISSION CABLES | C46: Total
B47: SUBSTATION SWITCHBAYS | C47: Total | D47: 0 | E47: 1 | F47: 0 | G47: 0 | H47: 1 | I47: 0 | J47: 1
B48: SUBSTATION POWER TRANSFORMERS | C48: Total | D48: 0 | E48: 0 | F48: 0 | G48: 0 | H48: 0 | I48: 0 | J48: 0
B49: SUBSTATION REACTIVE PLANT | C49: Total | D49: 0 | E49: 0 | F49: 0 | G49: 0 | H49: 0 | I49: 0 | J49: 0
B50: SCADA, NETWORK CONTROL AND PROTECTION SYSTEMS | C50: Total | D50: 204.4 | E50: 215.84 | F50: 228.424 | G50: 242.2664 | H50: 257.49304 | I50: 274.242344 | J50: 292.6665784
B51: OTHER | C51: Total | D51: 0 | E51: 0 | F51: 0 | G51: 0 | H51: 0 | I51: 0 | J51: 0
B54: EXPENDITURE AS INCURRED
D55: EXPENDITURE
D56: =CONCATENATE("Forecast ($0's. real ",dms_DollarReal,")") -> Forecast ($0's. real June 2024)
B57: ASSET GROUP | D57: =dms_y1 -> 2022-23 | E57: =dms_y2 -> 2023-24 | F57: =dms_y3 -> 2024-25 | G57: =dms_y4 -> 2025-26 | H57: =dms_y5 -> 2026-27 | I57: =dms_y6 -> 2027-28 | J57: =dms_y7 -> 2028-29
B58: TRANSMISSION TOWERS | C58: Total | D58: 3685191.247 | E58: 2972239.872 | F58: 2291071.909 | G58: 3826260.911 | H58: 0 | I58: 0 | J58: 0
B59: TRANSMISSION TOWER SUPPORT STRUCTURES | C59: Total | D59: 8831407.366 | E59: 7122849.085 | F59: 8591519.658 | G59: 4014863.121 | H59: 4017608.767 | I59: 4018883.729 | J59: 5170132.95
B60: CONDUCTORS | C60: Total | D60: 682486.7901 | E60: 550450.2518 | F60: 916428.7636 | G60: 917682.999 | H60: 918310.5752 | I60: 918601.9953 | J60: 919134.7467
B61: TRANSMISSION CABLES | C61: Total | D61: 28190.62788 | E61: 22736.7598 | F61: 56997.81139 | G61: 57166.53123 | H61: 57250.95282 | I61: 57290.15466 | J61: 1204598.229
B62: SUBSTATION SWITCHBAYS | C62: Total | D62: 7288641.758 | E62: 5878552.888 | F62: 5247555.944 | G62: 14734778.61 | H62: 17590589.17 | I62: 5140072.676 | J62: 409563.3978
B63: SUBSTATION POWER TRANSFORMERS | C63: Total | D63: 3559952.467 | E63: 2871230.272 | F63: 0 | G63: 0 | H63: 343505.7169 | I63: 18442833.98 | J63: 9605788.65
B64: SUBSTATION REACTIVE PLANT | C64: Total | D64: 0 | E64: 0 | F64: 0 | G64: 0 | H64: 0 | I64: 0 | J64: 0
B65: SCADA, NETWORK CONTROL AND PROTECTION SYSTEMS | C65: Total | D65: 12978111.15 | E65: 10467315.49 | F65: 8087164.724 | G65: 12265482.53 | H65: 6538181.759 | I65: 5961308.021 | J65: 6143654.909
B66: OTHER | C66: Total | D66: 3057275.997 | E66: 2465803.539 | F66: 5508227.373 | G66: 3820750.955 | H66: 3475295.925 | I66: 3361881.89 | J66: 2733516.187

Sheet 2.3 Augex (b)
B1: =(LOOKUP(dms_Model,dms_Model_List,dms_Worksheet_List)) -> REGULATORY REPORTING STATEMENT
B2: =INDEX(dms_TradingNameFull_List,MATCH(dms_TradingName,dms_TradingName_List)) -> TasNetworks (T)
B3: =CONCATENATE("REGULATORY PERIOD FROM ", FRCP_y1," TO ",dms_MultiYear_FinalYear_Result) -> REGULATORY PERIOD FROM 2024-25 TO 2028-29
B4: 2.3 AUGEX PROJECTS
B6: There is ONE table on this worksheet.
B8: 2.3.4 - AUGEX - TOTAL EXPENDITURE
C9: EXPENDITURE
C10: =CONCATENATE("Forecast ($0's. real ",dms_DollarReal,")") -> Forecast ($0's. real June 2024)
B11: As incurred | C11: =dms_y1 -> 2022-23 | D11: =dms_y2 -> 2023-24 | E11: =dms_y3 -> 2024-25 | F11: =dms_y4 -> 2025-26 | G11: =dms_y5 -> 2026-27 | H11: =dms_y6 -> 2027-28 | I11: =dms_y7 -> 2028-29
B12: Substations | C12: 1489178.211 | D12: 1196508.538 | E12: 1023870.746 | F12: 4832253.184 | G12: 5065128.57 | H12: 0 | I12: 7134408.39
B13: Lines | C13: 1075691.575 | D13: 864284.8415 | E13: 524948.349 | F13: 531339.2539 | G13: 534537.0425 | H13: 536021.9612 | I13: 538736.5741
B14: Other assets | C14: 1349152.714 | D14: 1084002.391 | E14: 0 | F14: 0 | G14: 0 | H14: 0 | I14: 0
B15: Total | C15: =SUM(C12:C14) -> 3914022.5 | D15: 3144795.77 | E15: 1548819.095 | F15: 5363592.438 | G15: 5599665.612 | H15: 536021.9612 | I15: 7673144.964

Sheet 2.5 Connections
B1: =(LOOKUP(dms_Model,dms_Model_List,dms_Worksheet_List)) -> REGULATORY REPORTING STATEMENT
B2: =INDEX(dms_TradingNameFull_List,MATCH(dms_TradingName,dms_TradingName_List)) -> TasNetworks (T)
B3: =CONCATENATE("REGULATORY PERIOD FROM ", FRCP_y1," TO ",dms_MultiYear_FinalYear_Result) -> REGULATORY PERIOD FROM 2024-25 TO 2028-29
B4: 2.5 CONNECTIONS EXPENDITURE
B6: There are TWO tables on this worksheet. Each has been grouped (or sub-grouped). See the Instructions sheet on how to group or ungroup data.
B8: 2.5.1 - EXPENDITURE ON CONNECTION PROJECTS
C9: EXPENDITURE
C10: =CONCATENATE("Forecast ($0's. real ",dms_DollarReal,")") -> Forecast ($0's. real June 2024)
C11: =dms_y1 -> 2022-23 | D11: =dms_y2 -> 2023-24 | E11: =dms_y3 -> 2024-25 | F11: =dms_y4 -> 2025-26 | G11: =dms_y5 -> 2026-27 | H11: =dms_y6 -> 2027-28 | I11: =dms_y7 -> 2028-29
B12: DIRECT MATERIALS EXPENDITURE
B13: <Enter project description here…>
B38: DIRECT LABOUR EXPENDITURE
B39: =IF(ISBLANK(B13),"",B13) -> <Enter project description here…>
B67: 2.5.2 - DESCRIPTION OF CONNECTION PROJECTS
C68: CONNECTION RATING (MVA) | D68: CONNECTION VOLTAGE (KV) | E68: UNDERGROUND / OVERHEAD (drop down) | F68: YEAR CONNECTION PROJECT COMPLETED
B69: =IF(ISBLANK(B13),"",B13) -> <Enter project description here…>

Sheet 2.6 Non-network
B1: =(LOOKUP(dms_Model,dms_Model_List,dms_Worksheet_List)) -> REGULATORY REPORTING STATEMENT
B2: =INDEX(dms_TradingNameFull_List,MATCH(dms_TradingName,dms_TradingName_List)) -> TasNetworks (T)
B3: =CONCATENATE("REGULATORY PERIOD FROM ", FRCP_y1," TO ",dms_MultiYear_FinalYear_Result) -> REGULATORY PERIOD FROM 2024-25 TO 2028-29
B4: 2.6 NON NETWORK EXPENDITURE
B6: There are THREE tables on this worksheet - each has been 'grouped' for easy navigation. See the Instructions sheet on how to group or ungroup tables.
B8: 2.6.1 - NON-NETWORK EXPENDITURE
E9: EXPENDITURE
E10: =CONCATENATE("Forecast ($0's. real ",dms_DollarReal,")") -> Forecast ($0's. real June 2024)
B11: SERVICE SUBCATEGORY | C11: ASSET CATEGORY | E11: =dms_y1 -> 2022-23 | F11: =dms_y2 -> 2023-24 | G11: =dms_y3 -> 2024-25 | H11: =dms_y4 -> 2025-26 | I11: =dms_y5 -> 2026-27 | J11: =dms_y6 -> 2027-28 | K11: =dms_y7 -> 2028-29
B12: OPEX
B13: IT & COMMUNICATIONS | C13: Total IT and communications | E13: 4314650.34 | F13: 4343987.106 | G13: 6035366.473 | H13: 7332171.8 | I13: 7968337.303 | J13: 8061538.391 | K13: 8081487.029
B14: MOTOR VEHICLES | C14: Car | E14: 12988.3982 | F14: 13076.71071 | G14: 13168.97293 | H14: 13266.13785 | I14: 13305.3993 | J14: 13296.80582 | K14: 13291.56375
C15: Light commercial vehicle | E15: 285886.7101 | F15: 287830.5505 | G15: 289861.3277 | H15: 292000.0177 | I15: 292864.1988 | J15: 292675.0483 | K15: 292559.6655
C16: Elevated work platform (LCV) | E16: 0 | F16: 0 | G16: 0 | H16: 0 | I16: 0 | J16: 0 | K16: 0
C17: Elevated work platform (HCV) | E17: 39036.16946 | F17: 39301.58957 | G17: 39578.88039 | H17: 39870.9061 | I17: 39988.905 | J17: 39963.07759 | K17: 39947.32275
C18: Heavy commercial vehicle | E18: 28460.91628 | F18: 28654.43167 | G18: 28856.60188 | H18: 29069.51517 | I18: 29155.5471 | J18: 29136.71657 | K18: 29125.22986
B19: BUILDINGS AND PROPERTY | C19: Total buildings and property expenditure | E19: 1112367.872 | F19: 1119931.238 | G19: 1127832.869 | H19: 1136154.382 | I19: 1139516.858 | J19: 1138780.885 | K19: 1138331.938
B20: OTHER | C20: Other expenditure | E20: 0 | F20: 0 | G20: 0 | H20: 0 | I20: 0 | J20: 0 | K20: 0
B21: OTHER - TNSP nominated | E21: 0 | F21: 0 | G21: 0 | H21: 0 | I21: 0 | J21: 0 | K21: 0
B32: CAPEX
B33: IT & COMMUNICATIONS | C33: Total IT and communications | E33: 8058191.977 | F33: 7614940.581 | G33: 6087202.204 | H33: 7264727.387 | I33: 5300548.601 | J33: 4383690.92 | K33: 3734244.975
B34: MOTOR VEHICLES | C34: Car | E34: 68724.80845 | F34: 56285.24236 | G34: 113316.2723 | H34: 361970.0296 | I34: 171891.6392 | J34: 310664.5704 | K34: 286291.572
C35: Light commercial vehicle | E35: 334460.7344 | F35: 125559.3868 | G35: 528809.2709 | H35: 1327147.601 | I35: 1371544.437 | J35: 1147620.284 | K35: 812179.9764
C36: Elevated work platform (LCV)
C37: Elevated work platform (HCV) | E37: 27501.09814 | F37: 251112.1126 | G37: 428083.6955 | H37: 310260.0254 | I37: 105239.7791 | J37: 190202.7982 | K37: 194756.1714
C38: Heavy commercial vehicle | E38: 27489.92338 | F38: 0 | G38: 188860.4539 | H38: 0 | I38: 140319.7055 | J38: 253603.731 | K38: 245392.776
B39: BUILDINGS AND PROPERTY | C39: Total buildings and property expenditure | E39: 1494409.247 | F39: 1071371.836 | G39: 600700.5999 | H39: 962217.5466 | I39: 860983.4564 | J39: 915344.7889 | K39: 740439.4012
B40: OTHER | C40: Other expenditure
B41: OTHER - TNSP nominated
B55: 2.6.3 - ANNUAL DESCRIPTOR METRICS
B56: IT & COMMUNICATIONS
E57: VOLUMES
E58: (0's)
E59: =dms_y1 -> 2022-23 | F59: =dms_y2 -> 2023-24 | G59: =dms_y3 -> 2024-25 | H59: =dms_y4 -> 2025-26 | I59: =dms_y5 -> 2026-27 | J59: =dms_y6 -> 2027-28 | K59: =dms_y7 -> 2028-29
B60: Employee numbers | E60: 245.28 | F60: 207.831 | G60: 207.831 | H60: 207.831 | I60: 207.831 | J60: 207.831 | K60: 207.831
B61: User numbers | E61: 244 | F61: 207 | G61: 207 | H61: 207 | I61: 207 | J61: 207 | K61: 207
B62: Number of devices | E62: 610 | F62: 517 | G62: 517 | H62: 517 | I62: 517 | J62: 517 | K62: 517
B64: MOTOR VEHICLES
E65: VOLUMES
E66: (0's or %)
D67: Units | E67: =dms_y1 -> 2022-23 | F67: =dms_y2 -> 2023-24 | G67: =dms_y3 -> 2024-25 | H67: =dms_y4 -> 2025-26 | I67: =dms_y5 -> 2026-27 | J67: =dms_y6 -> 2027-28 | K67: =dms_y7 -> 2028-29
B68: CAR | C68: Average kilometres travelled | D68: 0's | E68: 3955 | F68: 3955 | G68: 3955 | H68: 3955 | I68: 3955 | J68: 3955 | K68: 3955
C69: Number purchased | D69: 0's | E69: 8.536502158 | F69: 1.89700048 | G69: 0.9485002398 | H69: 4.557911896 | I69: 1.903225503 | J69: 4.046767903 | K69: 4.910220257
C70: Number leased | D70: 0's
C71: Number in fleet | D71: 0's | E71: 5 | F71: 5 | G71: 5 | H71: 9 | I71: 8 | J71: 8 | K71: 7
C72: Proportion of total fleet expenditure allocated as regulatory expenditure | D72: % | E72: 0.189700048 | F72: 0.189700048 | G72: 0.189700048 | H72: 0.3038607931 | I72: 0.2718893575 | J72: 0.2890548502 | K72: 0.2338200123
B73: LIGHT COMMERCIAL VEHICLE | C73: Average kilometres travelled | D73: 0's | E73: 5070 | F73: 5070 | G73: 5070 | H73: 5070 | I73: 5070 | J73: 5070 | K73: 5070
C74: Number purchased | D74: 0's | E74: 28.45500719 | F74: 4.932201247 | G74: 4.742501199 | H74: 12.15443172 | I74: 11.14746366 | J74: 11.56219401 | K74: 10.75572056
C75: Number leased | D75: 0's
C76: Number in fleet | D76: 0's | E76: 70 | F76: 70 | G76: 70 | H76: 113 | I76: 101 | J76: 107 | K76: 87
C77: Proportion of total fleet expenditure allocated as regulatory expenditure | D77: % | E77: 0.189700048 | F77: 0.189700048 | G77: 0.189700048 | H77: 0.3038607931 | I77: 0.2718893575 | J77: 0.2890548502 | K77: 0.2338200123
B78: ELEVATED WORK PLATFORM (LCV) | C78: Average kilometres travelled | D78: 0's
C79: Number purchased | D79: 0's
C80: Number leased | D80: 0's
C81: Number in fleet | D81: 0's
C82: Proportion of total fleet expenditure allocated as regulatory expenditure | D82: %
B83: ELEVATED WORK PLATFORM (HCV) | C83: Average kilometres travelled | D83: 0's | E83: 3787 | F83: 3787 | G83: 3787 | H83: 3787 | I83: 3787 | J83: 3787 | K83: 3787
C84: Number purchased | D84: 0's | E84: 0.7588001918 | F84: 3.035200767 | G84: 1.327900336 | H84: 0.9115823792 | I84: 0.2718893575 | J84: 0.5781097004 | K84: 1.169100061
C85: Number leased | D85: 0's
C86: Number in fleet | D86: 0's | E86: 10 | F86: 10 | G86: 10 | H86: 17 | I86: 15 | J86: 16 | K86: 13
C87: Proportion of total fleet expenditure allocated as regulatory expenditure | D87: % | E87: 0.189700048 | F87: 0.189700048 | G87: 0.189700048 | H87: 0.3038607931 | I87: 0.2718893575 | J87: 0.2890548502 | K87: 0.2338200123
B88: HEAVY COMMERCIAL VEHICLE | C88: Average kilometres travelled | D88: 0's | E88: 3150 | F88: 3150 | G88: 3150 | H88: 3150 | I88: 3150 | J88: 3150 | K88: 3150
C89: Number purchased | D89: 0's | E89: 1.138200288 | F89: 0 | G89: 0.5691001439 | H89: 0 | I89: 0.3794000959 | J89: 0.7588001918 | K89: 1.327900336
C90: Number leased | D90: 0's
C91: Number in fleet | D91: 0's | E91: 7 | F91: 7 | G91: 7 | H91: 11 | I91: 10 | J91: 10 | K91: 8
C92: Proportion of total fleet expenditure allocated as regulatory expenditure | D92: % | E92: 0.189700048 | F92: 0.189700048 | G92: 0.189700048 | H92: 0.3038607931 | I92: 0.2718893575 | J92: 0.2890548502 | K92: 0.2338200123
B96: 2.6.4 - INFORMATION & COMMUNICATIONS TECHNOLOGY - CAPEX BY PURPOSE
E97: EXPENDITURE
E98: =CONCATENATE("Forecast ($0's. real ",dms_DollarReal,")") -> Forecast ($0's. real June 2024)
E99: =dms_y1 -> 2022-23 | F99: =dms_y2 -> 2023-24 | G99: =dms_y3 -> 2024-25 | H99: =dms_y4 -> 2025-26 | I99: =dms_y5 -> 2026-27 | J99: =dms_y6 -> 2027-28 | K99: =dms_y7 -> 2028-29
B100: RECURRENT
B101: Client Device | E101: 1081367.843 | F101: 1009794.427 | G101: 202052.5801 | H101: 164208.4646 | I101: 739258.9308 | J101: 147981.8026 | K101: 172428.4379
B102: Hardware and Software | E102: 2763223.553 | F102: 2508172.077 | G102: 2496600.307 | H102: 3489914.95 | I102: 2096569.311 | J102: 2272742.369 | K102: 2243340.29
B103: Software | E103: 152671.6005 | F103: 93594.81208 | G103: 233233.5199 | H103: 221029.0661 | I103: 227246.615 | J103: 213863.283 | K103: 214106.4128
B111: NON-RECURRENT
B112: Maintaining existing services, functionalities, capability and/or market benefits | E112: 1411859.65 | F112: 1191286.727 | G112: 278800.32 | H112: 264211.4838 | I112: 271643.7543 | J112: 255645.7226 | K112: 255936.3527
B113: Complying with new / altered regulatory obligations / requirements | E113: 2313311.332 | F113: 1934292.783 | G113: 1633075.748 | H113: 1826732.584 | I113: 1965829.99 | J113: 1493457.742 | K113: 848433.4811
B114: New or expanded ICT capability, functions and services | E114: 0 | F114: 790522.4984 | G114: 1243439.729 | H114: 1298630.838 | I114: 0 | J114: 0 | K114: 0

Sheet 2.10 Overheads
B1: =(LOOKUP(dms_Model,dms_Model_List,dms_Worksheet_List)) -> REGULATORY REPORTING STATEMENT
B2: =INDEX(dms_TradingNameFull_List,MATCH(dms_TradingName,dms_TradingName_List)) -> TasNetworks (T)
B3: =CONCATENATE("REGULATORY PERIOD FROM ", FRCP_y1," TO ",dms_MultiYear_FinalYear_Result) -> REGULATORY PERIOD FROM 2024-25 TO 2028-29
B4: 2.10 OVERHEADS
B6: There are TWO tables on this worksheet. Each has been grouped (and sub-grouped) for ease of navigation. See the Instructions sheet on how to group or ungroup tables.
B8: 2.10.1 - NETWORK OVERHEADS EXPENDITURE
D9: EXPENDITURE
D10: =CONCATENATE("Forecast ($0's. real ",dms_DollarReal,")") -> Forecast ($0's. real June 2024)
D11: =dms_y1 -> 2022-23 | E11: =dms_y2 -> 2023-24 | F11: =dms_y3 -> 2024-25 | G11: =dms_y4 -> 2025-26 | H11: =dms_y5 -> 2026-27 | I11: =dms_y6 -> 2027-28 | J11: =dms_y7 -> 2028-29
B12: OPEX
B13: Prescribed Transmission Services | C13: Total | D13: 13134694.24 | E13: 13134694.24 | F13: 13390978.45 | G13: 13381730.28 | H13: 13395247.05 | I13: 13334826.51 | J13: 13237815.34
B14: CAPEX
B15: Prescribed Transmission Services | C15: Total | D15: 6475998.735 | E15: 5428596.217 | F15: 6016764.326 | G15: 6436774.791 | H15: 6289386.648 | I15: 6280934.799 | J15: 6151108.24
B16: OTHER TRANSMISSION SERVICES
B17: Negotiated Services | C17: Total
B18: Unregulated Services | C18: Total
B22: 2.10.2 - CORPORATE OVERHEADS EXPENDITURE
D23: EXPENDITURE
D24: =CONCATENATE("Forecast ($0's. real ",dms_DollarReal,")") -> Forecast ($0's. real June 2024)
D25: =dms_y1 -> 2022-23 | E25: =dms_y2 -> 2023-24 | F25: =dms_y3 -> 2024-25 | G25: =dms_y4 -> 2025-26 | H25: =dms_y5 -> 2026-27 | I25: =dms_y6 -> 2027-28 | J25: =dms_y7 -> 2028-29
B26: OPEX
B27: Prescribed Transmission Services | C27: Total | D27: 8222485.482 | E27: 8222485.482 | F27: 10225577.17 | G27: 11530440.69 | H27: 12202163.93 | I27: 12275664.68 | J27: 12239746.15
B28: CAPEX
B29: Prescribed Transmission Services | C29: Total | D29: 5401761.225 | E29: 5428596.217 | F29: 6016764.326 | G29: 6436774.791 | H29: 6289386.648 | I29: 6280934.799 | J29: 6151108.24
B30: OTHER TRANSMISSION SERVICES
B31: Negotiated Services | C31: Total
B32: Unregulated Services | C32: Total

Sheet 2.11 Labour
B1: =(LOOKUP(dms_Model,dms_Model_List,dms_Worksheet_List)) -> REGULATORY REPORTING STATEMENT
B2: =INDEX(dms_TradingNameFull_List,MATCH(dms_TradingName,dms_TradingName_List)) -> TasNetworks (T)
B3: =CONCATENATE("REGULATORY PERIOD FROM ", FRCP_y1," TO ",dms_MultiYear_FinalYear_Result) -> REGULATORY PERIOD FROM 2024-25 TO 2028-29
B4: 2.11 LABOUR
B6: There is ONE table on this worksheet. The table has been 'grouped' (and sub-grouped) for easy navigation. See the Instructions sheet on how to group or ungroup data.
B8: Table numbering in this template starts at 2.11.3. Tables 2.11.1 & 2.11.2 appear in the Category Analysis RIN and are not required for this RIN.
B10: 2.11.3 - LABOUR / NON-LABOUR EXPENDITURE SPLIT
B11: OPEX
C12: EXPENDITURE
C13: =CONCATENATE("Forecast ($0's. real ",dms_DollarReal,")") -> Forecast ($0's. real June 2024)
C14: =dms_y1 -> 2022-23 | D14: =dms_y2 -> 2023-24 | E14: =dms_y3 -> 2024-25 | F14: =dms_y4 -> 2025-26 | G14: =dms_y5 -> 2026-27 | H14: =dms_y6 -> 2027-28 | I14: =dms_y7 -> 2028-29
B15: In-house labour expenditure
B16: Labour expenditure outsourced to related parties
B17: Labour expenditure outsourced to unrelated parties
B18: Controllable non-labour expenditure
B19: Uncontrollable non-labour expenditure
B20: Total | C20: =SUM(C15:C19) -> 0 | D20: 0 | E20: 0 | F20: 0 | G20: 0 | H20: 0 | I20: 0
B22: CAPEX
C23: EXPENDITURE
C24: =CONCATENATE("Forecast ($0's. real ",dms_DollarReal,")") -> Forecast ($0's. real June 2024)
C25: =dms_y1 -> 2022-23 | D25: =dms_y2 -> 2023-24 | E25: =dms_y3 -> 2024-25 | F25: =dms_y4 -> 2025-26 | G25: =dms_y5 -> 2026-27 | H25: =dms_y6 -> 2027-28 | I25: =dms_y7 -> 2028-29
B26: In-house labour expenditure
B27: Labour expenditure outsourced to related parties
B28: Labour expenditure outsourced to unrelated parties
B29: Controllable non-labour expenditure
B30: Uncontrollable non-labour expenditure
B31: Total | C31: =SUM(C26:C30) -> 0 | D31: 0 | E31: 0 | F31: 0 | G31: 0 | H31: 0 | I31: 0

Sheet 2.14 Forecast price changes
B1: =(LOOKUP(dms_Model,dms_Model_List,dms_Worksheet_List)) -> REGULATORY REPORTING STATEMENT
B2: =INDEX(dms_TradingNameFull_List,MATCH(dms_TradingName,dms_TradingName_List)) -> TasNetworks (T)
B3: =CONCATENATE("REGULATORY PERIOD FROM ", FRCP_y1," TO ",dms_MultiYear_FinalYear_Result) -> REGULATORY PERIOD FROM 2024-25 TO 2028-29
B4: 2.14 FORECAST PRICE CHANGES
B6: 2.14.2 - FORECAST CAPEX AND OPEX PRICE CHANGES
C7: Price changes (% YoY real) Current regulatory period | E7: Price changes (%YoY real) Forthcoming regulatory period
C8: FORECAST
C9: =dms_y1 -> 2022-23 | D9: =dms_y2 -> 2023-24 | E9: =dms_y3 -> 2024-25 | F9: =dms_y4 -> 2025-26 | G9: =dms_y5 -> 2026-27 | H9: =dms_y6 -> 2027-28 | I9: =dms_y7 -> 2028-29
B10: OPEX
B11: Forecast output change | C11: 0.002047527648 | D11: 0.002227665519 | E11: 0.003568468995 | F11: 0.003836896686 | G11: 0.003746724798 | H11: 0.002415612803 | I11: 0.001059815199
B12: Forecast price change | C12: 0.002997728254 | D12: 0.003332257384 | E12: 0.009261303992 | F12: 0.008570742417 | G12: 0.004236922341 | H12: 0.001955678748 | I12: 0.003565315648
B13: Forecast productivity change | E13: -0.03 | F13: -0.005 | G13: -0.005 | H13: -0.005 | I13: -0.005
B14: CAPEX
B15: Real Cost Escalation - Network overheads | C15: -0.01011159958 | D15: -0.01218801302 | E15: -0.009059534178 | F15: -0.006126240612 | G15: -0.004658521606 | H15: -0.003976974568 | I15: -0.002731023229
B16: Real Cost Escalation - Corporate overheads | C16: -0.01011159958 | D16: -0.01218801302 | E16: -0.009059534178 | F16: -0.006126240612 | G16: -0.004658521606 | H16: -0.003976974568 | I16: -0.002731023229

Sheet 2.16 Opex Summary
B1: =(LOOKUP(dms_Model,dms_Model_List,dms_Worksheet_List)) -> REGULATORY REPORTING STATEMENT
B2: =INDEX(dms_TradingNameFull_List,MATCH(dms_TradingName,dms_TradingName_List)) -> TasNetworks (T)
B3: =CONCATENATE("REGULATORY PERIOD FROM ", FRCP_y1," TO ",dms_MultiYear_FinalYear_Result) -> REGULATORY PERIOD FROM 2024-25 TO 2028-29
B4: 2.16 OPEX SUMMARY
B6: Instructions | K6: IMPORTANT!
B7: =CONCATENATE("Complete the tables below in accordance with the regulatory information notice. ",dms_TradingName, "'s total forecast opex must reconcile to Table 2.16.1. If ",dms_TradingName," did not forecast its total opex using a Base Year approach, total forecast opex must reconcile to Table 2.16.2") -> Complete the tables below in accordance with the regulatory information notice. TasNetworks (T)'s total forecast opex must reconcile to Table 2.16.1. If TasNetworks (T) did not forecast its total opex using a Base Year approach, total forecast opex must reconcile to Table 2.16.2 | K7: =CONCATENATE("Has ",dms_TradingName," used a base-step-trend model to derive its opex forecast? ") -> Has TasNetworks (T) used a base-step-trend model to derive its opex forecast? | M7: Yes
B8: The total step changes and category specific forecasts in Table 2.16.1 must reconcile (in each year) to the total step changes and category secific forecasts for each year in Tables 2.17.1 and 2.17.5 of worksheet 2.17 Step Changes.") | K8: Yes / No
K9: Please nominate the base year. | M9: 2021-22
B11: 2.16.1 - PRESCRIBED TRANSMISSION SERVICES - OPEX BY DRIVER
C12: EXPENDITURE
C13: =CONCATENATE("Forecast ($0's. real ",dms_DollarReal,")") -> Forecast ($0's. real June 2024)
C14: =CRCP_y1 -> 2019-20 | D14: =CRCP_y2 -> 2020-21 | E14: =CRCP_y3 -> 2021-22 | F14: =CRCP_y4 -> 2022-23 | G14: =CRCP_y5 -> 2023-24 | H14: =FRCP_y1 -> 2024-25 | I14: =FRCP_y2 -> 2025-26 | J14: =FRCP_y3 -> 2026-27 | K14: =FRCP_y4 -> 2027-28 | L14: =FRCP_y5 -> 2028-29
B15: Base year total opex, excluding category specific | E15: 36589612.78 | F15: 38318664.68 | G15: 38562161.5 | H15: 37709253.9 | I15: 37246341.32 | J15: 37903950.55 | K15: 37867497.86 | L15: 37910840.32
B16: Increment from base year to final year | H16: 377168.9006
B17: Price growth | H17: 209184.3522 | I17: 193638.4709 | J17: 95716.03329 | K17: 44122.01984 | L17: 80328.20464
B18: Output growth | H18: 34298.74513 | I18: 36878.76837 | J18: 36012.07102 | K18: 23217.93687 | L18: 10186.53418
B19: Productivity growth | H19: -1165428.559 | I19: -53249.22239 | J19: -504012.1743 | K19: -432251.2976 | L19: -519157.4521
B20: Step changes | H20: 2633619.093 | I20: 4144813.811 | J20: 4982588.283 | K20: 5160299.19 | L20: 5198683.238
B21: Category specific
B22: Total opex | C22: =SUM(C15:C21) -> 0 | D22: 0 | E22: 36589612.78 | F22: 38318664.68 | G22: 38562161.5 | H22: 39798096.43 | I22: 41568423.15 | J22: 42514254.76 | K22: 42662885.71 | L22: 42680880.85
B26: 2.16.2 - PRESCRIBED TRANSMISSION SERVICES - OPEX BY CATEGORY
C27: EXPENDITURE
C28: =CONCATENATE("Forecast ($0's. real ",dms_DollarReal,")") -> Forecast ($0's. real June 2024)
C29: =CRCP_y1 -> 2019-20 | D29: =CRCP_y2 -> 2020-21 | E29: =CRCP_y3 -> 2021-22 | F29: =CRCP_y4 -> 2022-23 | G29: =CRCP_y5 -> 2023-24 | H29: =FRCP_y1 -> 2024-25 | I29: =FRCP_y2 -> 2025-26 | J29: =FRCP_y3 -> 2026-27 | K29: =FRCP_y4 -> 2027-28 | L29: =FRCP_y5 -> 2028-29
B60: Total opex | C60: =SUM(C30:C59) -> 0 | D60: 0 | E60: 0 | F60: 0 | G60: 0 | H60: 0 | I60: 0 | J60: 0 | K60: 0 | L60: 0

Sheet 2.17 Step Changes
B1: =(LOOKUP(dms_Model,dms_Model_List,dms_Worksheet_List)) -> REGULATORY REPORTING STATEMENT
B2: =INDEX(dms_TradingNameFull_List,MATCH(dms_TradingName,dms_TradingName_List)) -> TasNetworks (T)
B3: =CONCATENATE("REGULATORY PERIOD FROM ", FRCP_y1," TO ",dms_MultiYear_FinalYear_Result) -> REGULATORY PERIOD FROM 2024-25 TO 2028-29
B4: 2.17 STEP CHANGES
B6: 2.17.1 - STEP CHANGES FOR PRESCRIBED TRANSMISSION SERVICES - FORECAST OPEX
F7: EXPENDITURE
F8: =CONCATENATE("Forecast ($0's. real ",dms_DollarReal,")") -> Forecast ($0's. real June 2024)
B9: Step change | C9: Description | D9: =CRCP_y1 -> 2019-20 | E9: =CRCP_y2 -> 2020-21 | F9: =dms_y1 -> 2022-23 | G9: =dms_y2 -> 2023-24 | H9: =dms_y3 -> 2024-25 | I9: =dms_y4 -> 2025-26 | J9: =dms_y5 -> 2026-27 | K9: =dms_y6 -> 2027-28 | L9: =dms_y7 -> 2028-29
B10: Insurance | C10: forecast increases of insurance premiums that are not captured in the base opex or the forecast rate of change. | H10: 972888.5568 | I10: 1219555.418 | J10: 1434206.753 | K10: 1515861.88 | L10: 1532555.913
B11: Cybersecurity | C11: opex associated with meeting new cyber security / security of critical infrastructure obligations | H11: 1660730.537 | I11: 2925258.394 | J11: 3548381.53 | K11: 3644437.31 | L11: 3666127.324
B24: Total | D24: =SUM(D17:D23) -> 0 | E24: 0 | F24: =SUM(F10:F23) -> 0 | G24: =SUM(G10:G23) -> 0 | H24: 2633619.093 | I24: 4144813.811 | J24: 4982588.283 | K24: 5160299.19 | L24: 5198683.238
B25: Check | H25: =IF(ROUND(H$24,0)-ROUND('2.16 Opex Summary'!C$20,0)=0,"OK","Error") -> Error | I25: =IF(ROUND(I$24,0)-ROUND('2.16 Opex Summary'!D$20,0)=0,"OK","Error") -> Error | J25: =IF(ROUND(J$24,0)-ROUND('2.16 Opex Summary'!E$20,0)=0,"OK","Error") -> Error | K25: =IF(ROUND(K$24,0)-ROUND('2.16 Opex Summary'!F$20,0)=0,"OK","Error") -> Error | L25: =IF(ROUND(L$24,0)-ROUND('2.16 Opex Summary'!G$20,0)=0,"OK","Error") -> Error
B28: 2.17.2 - STEP CHANGES FOR PRESCRIBED TRANSMISSION SERVICES - FORECAST CAPEX
F29: EXPENDITURE
F30: =CONCATENATE("Forecast ($0's. real ",dms_DollarReal,")") -> Forecast ($0's. real June 2024)
B31: Step change | C31: Description | D31: =CRCP_y1 -> 2019-20 | E31: =CRCP_y2 -> 2020-21 | F31: =dms_y1 -> 2022-23 | G31: =dms_y2 -> 2023-24 | H31: =dms_y3 -> 2024-25 | I31: =dms_y4 -> 2025-26 | J31: =dms_y5 -> 2026-27 | K31: =dms_y6 -> 2027-28 | L31: =dms_y7 -> 2028-29
B47: Total | D47: =SUM(D32:D46) -> 0 | E47: 0 | F47: 0 | G47: 0 | H47: 0 | I47: 0 | J47: 0 | K47: 0 | L47: 0
B50: 2.17.5 - CATEGORY SPECIFIC OPEX FOR PRESCRIBED TRANSMISSION SERVICES
F51: EXPENDITURE
F52: =CONCATENATE("Forecast ($0's. real ",dms_DollarReal,")") -> Forecast ($0's. real June 2024)
B53: Category | C53: Description | D53: =CRCP_y1 -> 2019-20 | E53: =CRCP_y2 -> 2020-21 | F53: =dms_y1 -> 2022-23 | G53: =dms_y2 -> 2023-24 | H53: =dms_y3 -> 2024-25 | I53: =dms_y4 -> 2025-26 | J53: =dms_y5 -> 2026-27 | K53: =dms_y6 -> 2027-28 | L53: =dms_y7 -> 2028-29
B68: Total | D68: =SUM(D61:D67) -> 0 | E68: 0 | F68: =SUM(F54:F67) -> 0 | G68: =SUM(G54:G67) -> 0 | H68: 0 | I68: 0 | J68: 0 | K68: 0 | L68: 0
B69: Check | H69: =IF(ROUND(H$68,0)-ROUND('2.16 Opex Summary'!C$21,0)=0,"OK","Error") -> OK | I69: =IF(ROUND(I$68,0)-ROUND('2.16 Opex Summary'!D$21,0)=0,"OK","Error") -> OK | J69: =IF(ROUND(J$68,0)-ROUND('2.16 Opex Summary'!E$21,0)=0,"OK","Error") -> OK | K69: =IF(ROUND(K$68,0)-ROUND('2.16 Opex Summary'!F$21,0)=0,"OK","Error") -> OK | L69: =IF(ROUND(L$68,0)-ROUND('2.16 Opex Summary'!G$21,0)=0,"OK","Error") -> OK

Sheet 3.1 Revenue
B1: =(LOOKUP(dms_Model,dms_Model_List,dms_Worksheet_List)) -> REGULATORY REPORTING STATEMENT
B2: =INDEX(dms_TradingNameFull_List,MATCH(dms_TradingName,dms_TradingName_List)) -> TasNetworks (T)
B3: =CONCATENATE("REGULATORY PERIOD FROM ", FRCP_y1," TO ",dms_MultiYear_FinalYear_Result) -> REGULATORY PERIOD FROM 2024-25 TO 2028-29
B4: 3.1 REVENUE
B7: 3.1.1 - REVENUE GROUPING BY CHARGEABLE QUANTITY
C8: REVENUE
C9: =CONCATENATE("Forecast ($0's. real ",dms_DollarReal,")") -> Forecast ($0's. real June 2024)
C10: =dms_y1 -> 2022-23 | D10: =dms_y2 -> 2023-24 | E10: =dms_y3 -> 2024-25 | F10: =dms_y4 -> 2025-26 | G10: =dms_y5 -> 2026-27 | H10: =dms_y6 -> 2027-28 | I10: =dms_y7 -> 2028-29
A11: TREV0101 | B11: From Fixed Customer (Exit Point) Charges
A12: TREV0102 | B12: From Variable Customer (Exit Point) Charges
A13: TREV0103 | B13: From Fixed Generator (Entry Point) Charges
A14: TREV0104 | B14: From Variable Generator (Entry Point) Charges
A15: TREV0105 | B15: From Fixed Energy Usage Charges (Charge per day basis)
A16: TREV0106 | B16: From Variable Energy Usage charges (Charge per kWh basis)
A17: TREV0107 | B17: From Energy based Common Service and General Charges
A18: TREV0108 | B18: From Fixed Demand based Usage Charges
A19: TREV0109 | B19: From Variable Demand based Usage Charges
A20: TREV0110 | B20: Revenue from other Sources
A21: TREV01 | B21: Total | C21: =SUM(C11:C20) -> 0 | D21: 0 | E21: 0 | F21: 0 | G21: 0 | H21: 0 | I21: 0
B24: 3.1.2 - REVENUE GROUPING BY TYPE OF CONNECTED EQUIPMENT
C25: REVENUE
C26: =CONCATENATE("Forecast ($0's. real ",dms_DollarReal,")") -> Forecast ($0's. real June 2024)
C27: =dms_y1 -> 2022-23 | D27: =dms_y2 -> 2023-24 | E27: =dms_y3 -> 2024-25 | F27: =dms_y4 -> 2025-26 | G27: =dms_y5 -> 2026-27 | H27: =dms_y6 -> 2027-28 | I27: =dms_y7 -> 2028-29
A28: TREV0201 | B28: From Other connected transmission networks
A29: TREV0202 | B29: From Distribution networks
A30: TREV0203 | B30: From Directly connected end–users
A31: TREV0204 | B31: From Generators
A32: TREV0205 | B32: Other revenue
A33: TREV02 | B33: Total | C33: =SUM(C28:C32) -> 0 | D33: 0 | E33: 0 | F33: 0 | G33: 0 | H33: 0 | I33: 0
B36: 3.1.3 - REVENUE (penalties) ALLOWED (deducted) THROUGH INCENTIVE SCHEMES
C37: REVENUE
C38: =CONCATENATE("Forecast ($0's. real ",dms_DollarReal,")") -> Forecast ($0's. real June 2024)
C39: =dms_y1 -> 2022-23 | D39: =dms_y2 -> 2023-24 | E39: =dms_y3 -> 2024-25 | F39: =dms_y4 -> 2025-26 | G39: =dms_y5 -> 2026-27 | H39: =dms_y6 -> 2027-28 | I39: =dms_y7 -> 2028-29
A40: TREV0301 | B40: EBSS | C40: 4583064.449 | E40: 2481883.37 | F40: -2073180.986 | G40: -174604.036 | H40: 0 | I40: -38867.35077
A41: TREV0302 | B41: STPIS
A42: TREV0303 | B42: Other | C42: 969547.3 | D42: 969547.3 | E42: 633607.7025 | F42: 633607.7025 | G42: 633607.7025 | H42: 633607.7025 | I42: 633607.7025
A43: TREV03 | B43: Total | C43: =SUM(C40:C42) -> 5552611.749 | D43: 969547.3 | E43: 3115491.073 | F43: -1439573.283 | G43: 459003.6665 | H43: 633607.7025 | I43: 594740.3518

Sheet 3.2 Operating expenditure
B1: =(LOOKUP(dms_Model,dms_Model_List,dms_Worksheet_List)) -> REGULATORY REPORTING STATEMENT
B2: =INDEX(dms_TradingNameFull_List,MATCH(dms_TradingName,dms_TradingName_List)) -> TasNetworks (T)
B3: =CONCATENATE("REGULATORY PERIOD FROM ", FRCP_y1," TO ",dms_MultiYear_FinalYear_Result) -> REGULATORY PERIOD FROM 2024-25 TO 2028-29
B4: 3.2 OPERATING EXPENDITURE
B7: 3.2.1 - OPEX CATEGORIES
C8: EXPENDITURE
C9: =CONCATENATE("Forecast ($0's. real ",dms_DollarReal,")") -> Forecast ($0's. real June 2024)
C10: =dms_y1 -> 2022-23 | D10: =dms_y2 -> 2023-24 | E10: =dms_y3 -> 2024-25 | F10: =dms_y4 -> 2025-26 | G10: =dms_y5 -> 2026-27 | H10: =dms_y6 -> 2027-28 | I10: =dms_y7 -> 2028-29
B11: OPEX CATEGORIES AND COST ALLOCATIONS - approved CAM
B12: Field operations and maintenance | C12: 16831565.93 | D12: 16946009.44 | E12: 17709596.16 | F12: 17998797.95 | G12: 18191769.7 | H12: 18234686.87 | I12: 18238944.69
B13: Maintenance Support | C13: 2864947.392 | D13: 2884427.138 | E13: 3014399.346 | F13: 3063625.182 | G13: 3096471.439 | H13: 3103776.488 | I13: 3104501.224
B14: Network Monitoring & Control | C14: 1790592.12 | D14: 1802766.962 | E14: 1883999.592 | F14: 1914765.739 | G14: 1935294.649 | H14: 1939860.305 | I14: 1940313.265
B15: Asset Management Support | C15: 3939302.665 | D15: 3966087.315 | E15: 4144799.101 | F15: 4212484.626 | G15: 4257648.228 | H15: 4267692.671 | I15: 4268689.183
B16: Corporate | C16: 10385434.3 | D16: 10456048.38 | E16: 12190551.15 | F16: 13532771.41 | G16: 14187287.74 | H16: 14276472.23 | I16: 14293970.72
B47: Total | C47: =SUM(C12:C46) -> 35811842.41 | D47: 36055339.23 | E47: 38943345.35 | F47: 40722444.9 | G47: 41668471.76 | H47: 41822488.56 | I47: 41846419.08
B51: Instructions Table 3.2.3 must be completed if there are any proposed changes to the CAM reported in response to Schedule 1, paragraph 1.3.
B53: 3.2.3 - OPEX CATEGORIES - Revised CAM
C54: EXPENDITURE
C55: =CONCATENATE("Forecast ($0's. real ",dms_DollarReal,")") -> Forecast ($0's. real June 2024)
C56: =dms_y1 -> 2022-23 | D56: =dms_y2 -> 2023-24 | E56: =dms_y3 -> 2024-25 | F56: =dms_y4 -> 2025-26 | G56: =dms_y5 -> 2026-27 | H56: =dms_y6 -> 2027-28 | I56: =dms_y7 -> 2028-29
B57: OPEX CATEGORIES AND COST ALLOCATIONS - revised CAM
B94: Total | C94: =SUM(C58:C93) -> 0 | D94: 0 | E94: 0 | F94: 0 | G94: 0 | H94: 0 | I94: 0

Sheet 3.3 Assets (RAB)
B1: =(LOOKUP(dms_Model,dms_Model_List,dms_Worksheet_List)) -> REGULATORY REPORTING STATEMENT
B2: =INDEX(dms_TradingNameFull_List,MATCH(dms_TradingName,dms_TradingName_List)) -> TasNetworks (T)
B3: =CONCATENATE("REGULATORY PERIOD FROM ", FRCP_y1," TO ",dms_MultiYear_FinalYear_Result) -> REGULATORY PERIOD FROM 2024-25 TO 2028-29
B4: 3.3 ASSETS
B6: There are FOUR tables on this worksheet. Each table has been grouped (and sub-grouped) for ease of navigation. See the Instructions sheet on how to group or ungroup tables.
B8: 3.3.1 - REGULATORY ASSET BASE VALUES
C9: VALUES
C10: =CONCATENATE("Forecast ($0's. real ",dms_DollarReal,")") -> Forecast ($0's. real June 2024)
C11: =dms_y1 -> 2022-23 | D11: =dms_y2 -> 2023-24 | E11: =dms_y3 -> 2024-25 | F11: =dms_y4 -> 2025-26 | G11: =dms_y5 -> 2026-27 | H11: =dms_y6 -> 2027-28 | I11: =dms_y7 -> 2028-29
B12: For total asset base:
A13: TRAB0101 | B13: Opening value | C13: 1770.174222 | D13: 1776.78942 | E13: 1758.747073 | F13: 1740.11314 | G13: 1738.911446 | H13: 1727.122269 | I13: 1714.194858
A14: TRAB0102 | B14: Inflation addition | C14: 0 | D14: 0 | E14: 0 | F14: 0 | G14: 0 | H14: 0 | I14: 0
A15: TRAB0103 | B15: Straight line depreciation | C15: -56.76077577 | D15: -58.83074648 | E15: -70.68179353 | F15: -68.99734126 | G15: -70.51175306 | H15: -70.60080337 | I15: -71.46721875
A16: TRAB0105 | B16: Actual additions (recognised in RAB) | C16: 63.44225202 | D16: 40.85200653 | E16: 52.22828643 | F16: 68.10052611 | G16: 59.06979008 | H16: 58.1998277 | I16: 52.17500864
A17: TRAB0106 | B17: Disposals | C17: -0.06627826027 | D17: -0.06360677569 | E17: -0.1804263764 | F17: -0.3048783209 | G17: -0.3472141278 | H17: -0.5264355239 | I17: -0.6153587421
A18: TRAB0107 | B18: Closing value | C18: =SUM(C13:C17) -> 1776.78942 | D18: 1758.747073 | E18: 1740.11314 | F18: 1738.911446 | G18: 1727.122269 | H18: 1714.194858 | I18: 1694.287289
B21: 3.3.2 - ASSET VALUE ROLL FORWARD
C22: VALUES
C23: =CONCATENATE("Forecast ($0's. real ",dms_DollarReal,")") -> Forecast ($0's. real June 2024)
C24: =dms_y1 -> 2022-23 | D24: =dms_y2 -> 2023-24 | E24: =dms_y3 -> 2024-25 | F24: =dms_y4 -> 2025-26 | G24: =dms_y5 -> 2026-27 | H24: =dms_y6 -> 2027-28 | I24: =dms_y7 -> 2028-29
B25: For overhead assets:
A26: TRAB0201 | B26: Opening value | C26: 681.7885651 | D26: 684.3075625 | E26: 697.4437242 | F26: 700.7670722 | G26: 698.345781 | H26: 691.0008821 | I26: 683.1748804
A27: TRAB0202 | B27: Inflation addition | C27: 0 | D27: 0 | E27: 0 | F27: 0 | G27: 0 | H27: 0 | I27: 0
A28: TRAB0203 | B28: Straight line depreciation | C28: -16.23145997 | D28: -16.82339421 | E28: -14.77234974 | F28: -15.22372806 | G28: -15.56314814 | H28: -16.06603115 | I28: -17.74737505
A29: TRAB0205 | B29: Actual additions (recognised in RAB) | C29: 18.75045737 | D29: 29.95955595 | E29: 18.09569773 | F29: 12.80243682 | G29: 8.218249264 | H29: 8.240029405 | I29: 10.01200737
A30: TRAB0206 | B30: Disposals | C30: 0 | D30: 0 | E30: 0 | F30: 0 | G30: 0 | H30: 0 | I30: 0
A31: TRAB0207 | B31: Closing value | C31: =SUM(C26:C30) -> 684.3075625 | D31: 697.4437242 | E31: 700.7670722 | F31: 698.345781 | G31: 691.0008821 | H31: 683.1748804 | I31: 675.4395127
B32: For underground assets:
A33: TRAB0301 | B33: Opening value | D33: =C38 -> 0 | E33: 0 | F33: 0 | G33: 0 | H33: 0 | I33: 0
A34: TRAB0302 | B34: Inflation addition
A35: TRAB0303 | B35: Straight line depreciation
A36: TRAB0305 | B36: Actual additions (recognised in RAB)
A37: TRAB0306 | B37: Disposals
A38: TRAB0307 | B38: Closing value | C38: =SUM(C33:C37) -> 0 | D38: 0 | E38: 0 | F38: 0 | G38: 0 | H38: 0 | I38: 0
B39: For switchyards, substations
A40: TRAB0401 | B40: Opening value | C40: 727.709062 | D40: 720.1257968 | E40: 705.9525275 | F40: 694.0554281 | G40: 696.1121894 | H40: 702.4292574 | I40: 710.3002595
A41: TRAB0402 | B41: Inflation addition | C41: 0 | D41: 0 | E41: 0 | F41: 0 | G41: 0 | H41: 0 | I41: 0
A42: TRAB0403 | B42: Straight line depreciation | C42: -23.1599608 | D42: -24.0045659 | E42: -26.7210511 | F42: -27.05163743 | G42: -27.33230609 | H42: -28.04564345 | I42: -26.29845731
A43: TRAB0405 | B43: Actual additions (recognised in RAB) | C43: 15.57669559 | D43: 9.831296581 | E43: 14.82395176 | F43: 29.10839872 | G43: 33.64937405 | H43: 35.91664558 | I43: 26.73672744
A44: TRAB0406 | B44: Disposals | C44: 0 | D44: 0 | E44: 0 | F44: 0 | G44: 0 | H44: 0 | I44: 0
A45: TRAB0407 | B45: Closing value | C45: =SUM(C40:C44) -> 720.1257968 | D45: 705.9525275 | E45: 694.0554281 | F45: 696.1121894 | G45: 702.4292574 | H45: 710.3002595 | I45: 710.7385297
B46: For easements:
A47: TRAB0501 | B47: Opening value | C47: 142.2371737 | D47: 142.2371737 | E47: 141.0926771 | F47: 141.9113972 | G47: 142.6653952 | H47: 143.4188684 | I47: 144.1760836
A48: TRAB0502 | B48: Inflation addition | C48: 0 | D48: 0 | E48: 0 | F48: 0 | G48: 0 | H48: 0 | I48: 0
A49: TRAB0503 | B49: Straight line depreciation | C49: 0 | D49: 0 | E49: 0 | F49: 0 | G49: 0 | H49: 0 | I49: 0
A50: TRAB0505 | B50: Actual additions (recognised in RAB) | C50: 0 | D50: -1.144496552 | E50: 0.8187200775 | F50: 0.7539980676 | G50: 0.7534731769 | H50: 0.7572151902 | I50: 0.7903824053
A51: TRAB0506 | B51: Disposals | C51: 0 | D51: 0 | E51: 0 | F51: 0 | G51: 0 | H51: 0 | I51: 0
A52: TRAB0507 | B52: Closing value | C52: =SUM(C47:C51) -> 142.2371737 | D52: 141.0926771 | E52: 141.9113972 | F52: 142.6653952 | G52: 143.4188684 | H52: 144.1760836 | I52: 144.966466
B53: For “other” assets with long lives:
A54: TRAB0601 | B54: Opening value | C54: 185.7944203 | D54: 190.2508738 | E54: 168.633286 | F54: 156.138009 | G54: 148.1830733 | H54: 134.4312902 | I54: 121.1990985
A55: TRAB0602 | B55: Inflation addition | C55: 0 | D55: 0 | E55: 0 | F55: 0 | G55: 0 | H55: 0 | I55: 0
A56: TRAB0603 | B56: Straight line depreciation | C56: -15.13655826 | D56: -15.68856327 | E56: -21.54745931 | F56: -21.16751413 | G56: -20.59953479 | H56: -18.61375017 | I56: -18.96362444
A57: TRAB0605 | B57: Actual additions (recognised in RAB) | C57: 19.59301177 | D57: -5.929024504 | E57: 9.052182324 | F57: 13.21257836 | G57: 6.847751756 | H57: 5.38155847 | I57: 7.776899777
A58: TRAB0606 | B58: Disposals | C58: 0 | D58: 0 | E58: 0 | F58: 0 | G58: 0 | H58: 0 | I58: 0
A59: TRAB0607 | B59: Closing value | C59: =SUM(C54:C58) -> 190.2508738 | D59: 168.633286 | E59: 156.138009 | F59: 148.1830733 | G59: 134.4312902 | H59: 121.1990985 | I59: 110.0123739
B60: For “other” assets with short lives:
A61: TRAB0701 | B61: Opening value | C61: 32.64500113 | D61: 39.86801342 | E61: 45.62485861 | F61: 47.2412334 | G61: 53.60500758 | H61: 55.84197123 | I61: 55.34453616
A62: TRAB0702 | B62: Inflation addition | C62: 0 | D62: 0 | E62: 0 | F62: 0 | G62: 0 | H62: 0 | I62: 0
A63: TRAB0703 | B63: Straight line depreciation | C63: -2.232796734 | D63: -2.314223102 | E63: -7.640933374 | F63: -5.554461639 | G63: -7.016764046 | H63: -7.875378603 | I63: -8.457761951
A64: TRAB0705 | B64: Actual additions (recognised in RAB) | C64: 9.522087292 | D64: 8.134675062 | E64: 9.437734542 | F64: 12.22311414 | G64: 9.60094183 | H64: 7.904379053 | I64: 6.858991643
A65: TRAB0706 | B65: Disposals | C65: -0.06627826027 | D65: -0.06360677569 | E65: -0.1804263764 | F65: -0.3048783209 | G65: -0.3472141278 | H65: -0.5264355239 | I65: -0.6153587421
A66: TRAB0707 | B66: Closing value | C66: =SUM(C61:C65) -> 39.86801342 | D66: 45.62485861 | E66: 47.2412334 | F66: 53.60500758 | G66: 55.84197123 | H66: 55.34453616 | I66: 53.13040711
B70: 3.3.3 - TOTAL DISAGGREGATED RAB ASSET VALUES
C71: VALUES
C72: =CONCATENATE("Forecast ($0's. real ",dms_DollarReal,")") -> Forecast ($0's. real June 2024)
C73: =dms_y1 -> 2022-23 | D73: =dms_y2 -> 2023-24 | E73: =dms_y3 -> 2024-25 | F73: =dms_y4 -> 2025-26 | G73: =dms_y5 -> 2026-27 | H73: =dms_y6 -> 2027-28 | I73: =dms_y7 -> 2028-29
A74: TRAB0801 | B74: Overhead transmission assets (wires and towers/poles etc) | C74: 683.0480638 | D74: 690.8756434 | E74: 699.1053982 | F74: 699.5564266 | G74: 694.6733315 | H74: 687.0878812 | I74: 679.3071965
A75: TRAB0802 | B75: Underground transmission assets (cables, ducts etc) | C75: 0 | D75: 0 | E75: 0 | F75: 0 | G75: 0 | H75: 0 | I75: 0
A76: TRAB0803 | B76: Substations, switchyards, transformers etc with transmission function | C76: 723.9174294 | D76: 713.0391621 | E76: 700.0039778 | F76: 695.0838088 | G76: 699.2707234 | H76: 706.3647585 | I76: 710.5193946
A77: TRAB0804 | B77: Easements | C77: 142.2371737 | D77: 141.6649254 | E77: 141.5020371 | F77: 142.2883962 | G77: 143.0421318 | H77: 143.797476 | I77: 144.5712748
A78: TRAB0805 | B78: Other assets with long lives (please specify) | C78: 188.0226471 | D78: 179.4420799 | E78: 162.3856475 | F78: 152.1605412 | G78: 141.3071818 | H78: 127.8151944 | I78: 115.6057362
A79: TRAB0806 | B79: Other assets with short lives (please specify) | C79: 36.25650728 | D79: 42.74643602 | E79: 46.433046 | F79: 50.42312049 | G79: 54.72348941 | H79: 55.5932537 | I79: 54.23747164
B82: 3.3.4 - ASSET LIVES
C83: ASSET LIFE
C84: (Years)
C85: =dms_y1 -> 2022-23 | D85: =dms_y2 -> 2023-24 | E85: =dms_y3 -> 2024-25 | F85: =dms_y4 -> 2025-26 | G85: =dms_y5 -> 2026-27 | H85: =dms_y6 -> 2027-28 | I85: =dms_y7 -> 2028-29
B86: ESTIMATED SERVICE LIFE OF NEW ASSETS
A87: TRAB0901 | B87: Overhead transmission assets (wires and towers/poles etc) | C87: 54.74 | D87: 54.64 | E87: 54.1 | F87: 53.74 | G87: 53.42 | H87: 53.12 | I87: 52.84
A88: TRAB0902 | B88: Underground transmission assets (cables, ducts etc) | C88: 0 | D88: 0 | E88: 0 | F88: 0 | G88: 0 | H88: 0 | I88: 0
A89: TRAB0903 | B89: Substations, switchyards, transformers etc with transmission function | C89: 47.72 | D89: 47.79 | E89: 47.09 | F89: 47.12 | G89: 47.13 | H89: 47.13 | I89: 47.62
A90: TRAB0904 | B90: Other assets with long lives | C90: 23.43 | D90: 23.37 | E90: 24.45 | F90: 25.04 | G90: 25.3 | H90: 26.18 | I90: 27.14
A91: TRAB0905 | B91: Other assets with short lives | C91: 6.04 | D91: 5.91 | E91: 6.03 | F91: 6.31 | G91: 6.57 | H91: 6.68 | I91: 6.77
B92: ESTIMATED RESIDUAL SERVICE LIFE
A93: TRAB1001 | B93: Overhead transmission assets (wires and towers/poles etc) | C93: 37.32 | D93: 36.74 | E93: 36.33 | F93: 35.33 | G93: 34.28 | H93: 33.47 | I93: 32.82
A94: TRAB1002 | B94: Underground transmission assets (cables, ducts etc) | C94: 0 | D94: 0 | E94: 0 | F94: 0 | G94: 0 | H94: 0 | I94: 0
A95: TRAB1003 | B95: Substations, switchyards, transformers etc with transmission function | C95: 31.82 | D95: 31.24 | E95: 30.48 | F95: 30.08 | G95: 29.94 | H95: 31.33 | I95: 29.97
A96: TRAB1004 | B96: Other assets with long lives | C96: 14.91 | D96: 14.96 | E96: 14.83 | F96: 14.34 | G96: 14.39 | H96: 14.53 | I96: 14.67
A97: TRAB1005 | B97: Other assets with short lives | C97: 5.35 | D97: 5.74 | E97: 5.74 | F97: 5.41 | G97: 4.65 | H97: 3.97 | I97: 3.79

Sheet 3.4 Operational data
B1: =(LOOKUP(dms_Model,dms_Model_List,dms_Worksheet_List)) -> REGULATORY REPORTING STATEMENT
B2: =INDEX(dms_TradingNameFull_List,MATCH(dms_TradingName,dms_TradingName_List)) -> TasNetworks (T)
B3: =CONCATENATE("REGULATORY PERIOD FROM ", FRCP_y1," TO ",dms_MultiYear_FinalYear_Result) -> REGULATORY PERIOD FROM 2024-25 TO 2028-29
B4: 3.4 OPERATIONAL DATA
B6: There are THREE tables on this worksheet. Each table has been grouped for ease of navigation. See the Instructions sheet on how to group or ungroup tables.
B8: 3.4.1 - ENERGY DELIVERY
D9: VOLUMES
D10: Forecast (0's)
C11: Units | D11: =dms_y1 -> 2022-23 | E11: =dms_y2 -> 2023-24 | F11: =dms_y3 -> 2024-25 | G11: =dms_y4 -> 2025-26 | H11: =dms_y5 -> 2026-27 | I11: =dms_y6 -> 2027-28 | J11: =dms_y7 -> 2028-29
B12: Energy grouping by downstream connection type
A13: TOPED0101 | B13: To Other connected transmission networks | C13: GWh | D13: 2644.262359 | E13: 2644.262359 | F13: 2644.262359 | G13: 2644.262359 | H13: 2644.262359 | I13: 2644.262359 | J13: 2644.262359
A14: TOPED0102 | B14: To Distribution networks | C14: GWh | D14: 4715.137191 | E14: 5263.997763 | F14: 5485.21426 | G14: 5780.275545 | H14: 6077.899081 | I14: 6270.03936 | J14: 6353.241145
A15: TOPED0103 | B15: To Directly connected end–users (330 kV) | C15: GWh | D15: 0 | E15: 0 | F15: 0 | G15: 0 | H15: 0 | I15: 0 | J15: 0
A16: TOPED0104 | B16: To Directly connected end–users (275 kV) | C16: GWh | D16: 0 | E16: 0 | F16: 0 | G16: 0 | H16: 0 | I16: 0 | J16: 0
A17: TOPED0105 | B17: To Directly connected end–users (220 kV) | C17: GWh
A18: TOPED0106 | B18: To Directly connected end–users (132 kV) | C18: GWh | D18: 0 | E18: 0 | F18: 0 | G18: 0 | H18: 0 | I18: 0 | J18: 0
A19: TOPED0107 | B19: To Directly connected end–users (110 kV) | C19: GWh
A20: TOPED0108 | B20: To Directly connected end–users (44 kV) | C20: GWh
A21: TOPED0109 | B21: To Directly connected end–users (33 kV) | C21: GWh | D21: 0 | E21: 0 | F21: 0 | G21: 0 | H21: 0 | I21: 0 | J21: 0
A22: TOPED0110 | B22: To Directly connected end–users (22 kV) | C22: GWh
A23: TOPED0111 | B23: To Directly connected end–users (11 kV) | C23: GWh
A24: TOPED0112 | B24: To Directly connected end–users (6.6 kV) | C24: GWh
A25: TOPED0113 | B25: Pumping and Power Station Auxillaries | C25: GWh | D25: 63.11739588 | E25: 63.11739588 | F25: 63.11739588 | G25: 63.11739588 | H25: 63.11739588 | I25: 63.11739588 | J25: 63.11739588
A26: TOPED01 | B26: Total energy transported | C26: GWh | D26: 13430.31165 | E26: 13983.01165 | F26: 14251.32145 | G26: 14551.48925 | H26: 14849.21445 | I26: 15019.31345 | J26: 15054.33735
B29: 3.4.2 - CONNECTION POINTS
D30: VOLUMES
D31: Forecast (0's)
C32: Units | D32: =dms_y1 -> 2022-23 | E32: =dms_y2 -> 2023-24 | F32: =dms_y3 -> 2024-25 | G32: =dms_y4 -> 2025-26 | H32: =dms_y5 -> 2026-27 | I32: =dms_y6 -> 2027-28 | J32: =dms_y7 -> 2028-29
B33: Number of entry points at each transmission voltage level
A34: TOPCP0101 | B34: 500kV | C34: number | D34: 0 | E34: 0 | F34: 0 | G34: 0 | H34: 0 | I34: 0 | J34: 0
A35: TOPCP0102 | B35: 330kV | C35: number | D35: 0 | E35: 0 | F35: 0 | G35: 0 | H35: 0 | I35: 0 | J35: 0
A36: TOPCP0103 | B36: 275kV | C36: number | D36: 0 | E36: 0 | F36: 0 | G36: 0 | H36: 0 | I36: 0 | J36: 0
A37: TOPCP0104 | B37: 220kV | C37: number | D37: 15 | E37: 15 | F37: 15 | G37: 15 | H37: 15 | I37: 15 | J37: 15
A38: TOPCP0105 | B38: 132 kV | C38: number | D38: 0 | E38: 0 | F38: 0 | G38: 0 | H38: 0 | I38: 0 | J38: 0
A39: TOPCP0106 | B39: 110kV | C39: number | D39: 13 | E39: 13 | F39: 13 | G39: 13 | H39: 13 | I39: 13 | J39: 13
A40: TOPCP0107 | B40: 66 kV | C40: number | D40: 0 | E40: 0 | F40: 0 | G40: 0 | H40: 0 | I40: 0 | J40: 0
A41: TOPCP0108 | B41: 33 kV | C41: number | D41: 0 | E41: 0 | F41: 0 | G41: 0 | H41: 0 | I41: 0 | J41: 0
A42: TOPCP0109 | B42: 22 kV | C42: number | D42: 0 | E42: 0 | F42: 0 | G42: 0 | H42: 0 | I42: 0 | J42: 0
A43: TOPCP0110 | B43: 11 kV | C43: number | D43: 0 | E43: 0 | F43: 0 | G43: 0 | H43: 0 | I43: 0 | J43: 0
A44: TOPCP0111 | B44: 6.6 kV | C44: number | D44: 0 | E44: 0 | F44: 0 | G44: 0 | H44: 0 | I44: 0 | J44: 0
B45: Number of exit points at each transmission voltage level
A46: TOPCP0201 | B46: 500kV | C46: number | D46: 0 | E46: 0 | F46: 0 | G46: 0 | H46: 0 | I46: 0 | J46: 0
A47: TOPCP0202 | B47: 330kV | C47: number | D47: 0 | E47: 0 | F47: 0 | G47: 0 | H47: 0 | I47: 0 | J47: 0
A48: TOPCP0203 | B48: 275kV | C48: number | D48: 0 | E48: 0 | F48: 0 | G48: 0 | H48: 0 | I48: 0 | J48: 0
A49: TOPCP0204 | B49: 220kV | C49: number | D49: 2 | E49: 2 | F49: 2 | G49: 2 | H49: 2 | I49: 2 | J49: 2
A50: TOPCP0205 | B50: 132 kV | C50: number | D50: 0 | E50: 0 | F50: 0 | G50: 0 | H50: 0 | I50: 0 | J50: 0
A51: TOPCP0206 | B51: 110kV | C51: number | D51: 3 | E51: 3 | F51: 3 | G51: 3 | H51: 3 | I51: 3 | J51: 3
A52: TOPCP0207 | B52: 66 kV | C52: number | D52: 0 | E52: 0 | F52: 0 | G52: 0 | H52: 0 | I52: 0 | J52: 0
A53: TOPCP0208 | B53: 44 kV | C53: number | D53: 1 | E53: 1 | F53: 1 | G53: 1 | H53: 1 | I53: 1 | J53: 1
A54: TOPCP0209 | B54: 33kV | C54: number | D54: 5 | E54: 5 | F54: 5 | G54: 5 | H54: 5 | I54: 5 | J54: 5
A55: TOPCP0210 | B55: 22kV | C55: number | D55: 30 | E55: 30 | F55: 30 | G55: 30 | H55: 30 | I55: 30 | J55: 31
A56: TOPCP0211 | B56: 11kV | C56: number | D56: 13 | E56: 13 | F56: 13 | G56: 13 | H56: 13 | I56: 13 | J56: 13
A57: TOPCP0212 | B57: 6.6kV | C57: number | D57: 2 | E57: 2 | F57: 2 | G57: 2 | H57: 2 | I57: 2 | J57: 2
B61: 3.4.3 - SYSTEM DEMAND
D62: VOLUMES
D63: Forecast (0's)
C64: Units | D64: =dms_y1 -> 2022-23 | E64: =dms_y2 -> 2023-24 | F64: =dms_y3 -> 2024-25 | G64: =dms_y4 -> 2025-26 | H64: =dms_y5 -> 2026-27 | I64: =dms_y6 -> 2027-28 | J64: =dms_y7 -> 2028-29
B65: Annual system maximum demand characteristics – MW measure
A66: TOPSD0101 | B66: Transmission System coincident maximum demand | C66: MW
A67: TOPSD0102 | B67: Transmission System coincident weather adjusted maximum demand 10% POE | C67: MW | D67: 2286.268132 | E67: 2335.42738 | F67: 2374.542209 | G67: 2409.546996 | H67: 2445.802597 | I67: 2468.785665 | J67: 2467.602299
A68: TOPSD0103 | B68: Transmission System coincident weather adjusted maximum demand 50% POE | C68: MW | D68: 2245.360071 | E68: 2293.546701 | F68: 2335.302685 | G68: 2371.534656 | H68: 2409.08723 | I68: 2432.554205 | J68: 2434.136892
A69: TOPSD0104 | B69: Transmission System non-coincident summated maximum demand | C69: MW
A70: TOPSD0105 | B70: Transmission System non-coincident weather adjusted summated maximum demand 10% POE | C70: MW | D70: 2368.710654 | E70: 2372.512627 | F70: 2374.267311 | G70: 2375.770538 | H70: 2377.108381 | I70: 2378.310922 | J70: 2379.895315
A71: TOPSD0106 | B71: Transmission System non-coincident weather adjusted summated maximum demand 50% POE | C71: MW | D71: 2337.257948 | E71: 2341.033233 | F71: 2342.669921 | G71: 2344.028325 | H71: 2345.250655 | I71: 2346.364895 | J71: 2347.835474
B72: Annual system maximum demand characteristics – MVA measure
A73: TOPSD0201 | B73: Transmission System coincident maximum demand | C73: MVA
A74: TOPSD0202 | B74: Transmission System coincident weather adjusted maximum demand 10% POE | C74: MVA | D74: 2314.646881 | E74: 2364.416328 | F74: 2404.016677 | G74: 2439.455968 | H74: 2476.161599 | I74: 2499.429949 | J74: 2498.231893
A75: TOPSD0203 | B75: Transmission System coincident weather adjusted maximum demand 50% POE | C75: MVA | D75: 2273.231041 | E75: 2322.015797 | F75: 2364.290085 | G75: 2400.971793 | H75: 2438.990496 | I75: 2462.748759 | J75: 2464.351091
A76: TOPSD0204 | B76: Transmission System non-coincident summated maximum demand | C76: MVA
A77: TOPSD0205 | B77: Transmission System non-coincident weather adjusted summated maximum demand 10% POE | C77: MVA | D77: 2414.642527 | E77: 2418.417447 | F77: 2420.135576 | G77: 2421.597358 | H77: 2422.896279 | I77: 2424.060556 | J77: 2425.604721
A78: TOPSD0206 | B78: Transmission System non-coincident weather adjusted summated maximum demand 50% POE | C78: MVA | D78: 2382.954911 | E78: 2386.703175 | F78: 2388.303366 | G78: 2389.619396 | H78: 2390.802293 | I78: 2391.877512 | J78: 2393.307417
B79: Power factor
B80: Power factor conversion between MVA and MW
A81: TOPSD0301 | B81: Average overall network power factor conversion between MVA and MW | C81: Factor | D81: 0.9877394909 | E81: 0.9877394909 | F81: 0.9877394909 | G81: 0.9877394909 | H81: 0.9877394909 | I81: 0.9877394909 | J81: 0.9877394909
A82: TOPSD0302 | B82: Average power factor conversion for 500 kV lines | C82: Factor | D82: 0 | E82: 0 | F82: 0 | G82: 0 | H82: 0 | I82: 0 | J82: 0
A83: TOPSD0303 | B83: Average power factor conversion for 330 kV lines | C83: Factor | D83: 0 | E83: 0 | F83: 0 | G83: 0 | H83: 0 | I83: 0 | J83: 0
A84: TOPSD0304 | B84: Average power factor conversion for 275 kV lines | C84: Factor | D84: 0 | E84: 0 | F84: 0 | G84: 0 | H84: 0 | I84: 0 | J84: 0
A85: TOPSD0305 | B85: Average power factor conversion for 220 kV lines | C85: Factor
A86: TOPSD0306 | B86: Average power factor conversion for 132 kV lines | C86: Factor | D86: 0 | E86: 0 | F86: 0 | G86: 0 | H86: 0 | I86: 0 | J86: 0
A87: TOPSD0307 | B87: Average power factor conversion for 110 kV lines | C87: Factor
A88: TOPSD0308 | B88: Average power factor conversion for 88 kV lines | C88: Factor | D88: 0 | E88: 0 | F88: 0 | G88: 0 | H88: 0 | I88: 0 | J88: 0
A89: TOPSD0309 | B89: Average power factor conversion for 66 kV lines | C89: Factor | D89: 0 | E89: 0 | F89: 0 | G89: 0 | H89: 0 | I89: 0 | J89: 0
A90: TOPSD0310 | B90: Average power factor conversion for 33 kV lines | C90: Factor | D90: 0.9967135019 | E90: 0.9967135019 | F90: 0.9967135019 | G90: 0.9967135019 | H90: 0.9967135019 | I90: 0.9967135019 | J90: 0.9967135019
A91: TOPSD0311 | B91: Average power factor conversion for 22 kV lines | C91: Factor | D91: 0.9943173794 | E91: 0.9943173794 | F91: 0.9943173794 | G91: 0.9943173794 | H91: 0.9943173794 | I91: 0.9943173794 | J91: 0.9943173794
A92: TOPSD0311 | B92: Average power factor conversion for 11 kV lines | C92: Factor | D92: 0.9724623949 | E92: 0.9724623949 | F92: 0.9724623949 | G92: 0.9724623949 | H92: 0.9724623949 | I92: 0.9724623949 | J92: 0.9724623949
A93: TOPSD0312 | B93: Average power factor conversion for 6.6 kV lines | C93: Factor

Sheet 3.5 Physical assets
B1: =(LOOKUP(dms_Model,dms_Model_List,dms_Worksheet_List)) -> REGULATORY REPORTING STATEMENT
B2: =INDEX(dms_TradingNameFull_List,MATCH(dms_TradingName,dms_TradingName_List)) -> TasNetworks (T)
B3: =CONCATENATE("REGULATORY PERIOD FROM ", FRCP_y1," TO ",dms_MultiYear_FinalYear_Result) -> REGULATORY PERIOD FROM 2024-25 TO 2028-29
B4: 3.5 PHYSICAL ASSETS
B6: There is ONE table on this worksheet. It has been sub-grouped for ease of navigation. See the Instructions sheet on how to group or ungroup tables.
B8: 3.5.1 - TRANSMISSION SYSTEM CAPACITIES
D9: VOLUMES
D10: Forecast (0's)
C11: Units | D11: =dms_y1 -> 2022-23 | E11: =dms_y2 -> 2023-24 | F11: =dms_y3 -> 2024-25 | G11: =dms_y4 -> 2025-26 | H11: =dms_y5 -> 2026-27 | I11: =dms_y6 -> 2027-28 | J11: =dms_y7 -> 2028-29
B12: Overhead network length of circuit at each voltage
A13: TPA0101 | B13: 500 kV | C13: km | D13: 0 | E13: 0 | F13: 0 | G13: 0 | H13: 0 | I13: 0 | J13: 0
A14: TPA0102 | B14: 330 kV | C14: km | D14: 0 | E14: 0 | F14: 0 | G14: 0 | H14: 0 | I14: 0 | J14: 0
A15: TPA0103 | B15: 275 kV | C15: km | D15: 0 | E15: 0 | F15: 0 | G15: 0 | H15: 0 | I15: 0 | J15: 0
A16: TPA0104 | B16: 220 kV | C16: km | D16: 1688.610371 | E16: 1690.388612 | F16: 1692.168726 | G16: 1693.950715 | H16: 1695.734581 | I16: 1697.520324 | J16: 1699.307949
A17: TPA0105 | B17: 132 kV | C17: km | D17: 0 | E17: 0 | F17: 0 | G17: 0 | H17: 0 | I17: 0 | J17: 0
A18: TPA0106 | B18: 110 kV | C18: km | D18: 1648.02771 | E18: 1646.108657 | F18: 1644.191839 | G18: 1642.277253 | H18: 1640.364897 | I18: 1638.454767 | J18: 1636.546861
A19: TPA0107 | B19: 88 kV | C19: km | D19: 0 | E19: 0 | F19: 0 | G19: 0 | H19: 0 | I19: 0 | J19: 0
A20: TPA0108 | B20: 66 kV | C20: km | D20: 0 | E20: 0 | F20: 0 | G20: 0 | H20: 0 | I20: 0 | J20: 0
A21: TPA0109 | B21: 33 kV | C21: km | D21: 0 | E21: 0 | F21: 0 | G21: 0 | H21: 0 | I21: 0 | J21: 0
A22: TPA0109 | B22: 22 kV | C22: km | D22: 0 | E22: 0 | F22: 0 | G22: 0 | H22: 0 | I22: 0 | J22: 0
A23: TPA0109 | B23: 11 kV | C23: km | D23: 0 | E23: 0 | F23: 0 | G23: 0 | H23: 0 | I23: 0 | J23: 0
A24: TPA01 | B24: Total | D24: =SUM(D13:D23) -> 3336.638081 | E24: 3336.49727 | F24: 3336.360566 | G24: 3336.227968 | H24: 3336.099477 | I24: 3335.975091 | J24: 3335.85481
B26: Underground cable circuit length at each voltage
A27: TPA0201 | B27: 500 kV | C27: km | D27: 0 | E27: 0 | F27: 0 | G27: 0 | H27: 0 | I27: 0 | J27: 0
A28: TPA0202 | B28: 330 kV | C28: km | D28: 0 | E28: 0 | F28: 0 | G28: 0 | H28: 0 | I28: 0 | J28: 0
A29: TPA0203 | B29: 275 kV | C29: km | D29: 0 | E29: 0 | F29: 0 | G29: 0 | H29: 0 | I29: 0 | J29: 0
A30: TPA0204 | B30: 220 kV | C30: km | D30: 0 | E30: 0 | F30: 0 | G30: 0 | H30: 0 | I30: 0 | J30: 0
A31: TPA0205 | B31: 132 kV | C31: km | D31: 0 | E31: 0 | F31: 0 | G31: 0 | H31: 0 | I31: 0 | J31: 0
A32: TPA0206 | B32: 110 kV | C32: km | D32: 24.164 | E32: 24.164 | F32: 24.164 | G32: 24.164 | H32: 24.164 | I32: 24.164 | J32: 24.164
A33: TPA0207 | B33: 88 kV | C33: km | D33: 0 | E33: 0 | F33: 0 | G33: 0 | H33: 0 | I33: 0 | J33: 0
A34: TPA0208 | B34: 66 kV | C34: km | D34: 0 | E34: 0 | F34: 0 | G34: 0 | H34: 0 | I34: 0 | J34: 0
A35: TPA0209 | B35: 33 kV | C35: km | D35: 0 | E35: 0 | F35: 0 | G35: 0 | H35: 0 | I35: 0 | J35: 0
A36: TPA0210 | B36: 22 kV | C36: km | D36: 0 | E36: 0 | F36: 0 | G36: 0 | H36: 0 | I36: 0 | J36: 0
A37: TPA0211 | B37: 11 kV | C37: km | D37: 0 | E37: 0 | F37: 0 | G37: 0 | H37: 0 | I37: 0 | J37: 0
A38: TPA02 | B38: Total | D38: =SUM(D27:D37) -> 24.164 | E38: 24.164 | F38: 24.164 | G38: 24.164 | H38: 24.164 | I38: 24.164 | J38: 24.164
B40: Estimated overhead network weighted average MVA capacity by voltage class
A41: TPA0301 | B41: 500 kV | C41: MVA | D41: 0 | E41: 0 | F41: 0 | G41: 0 | H41: 0 | I41: 0 | J41: 0
A42: TPA0302 | B42: 330 kV | C42: MVA | D42: 0 | E42: 0 | F42: 0 | G42: 0 | H42: 0 | I42: 0 | J42: 0
A43: TPA0303 | B43: 275 kV | C43: MVA | D43: 0 | E43: 0 | F43: 0 | G43: 0 | H43: 0 | I43: 0 | J43: 0
A44: TPA0304 | B44: 220 kV | C44: MVA | D44: 411.4906098 | E44: 411.4906098 | F44: 411.4906098 | G44: 411.4906098 | H44: 411.4906098 | I44: 411.4906098 | J44: 411.4906098
A45: TPA0305 | B45: 132 kV | C45: MVA | D45: 0 | E45: 0 | F45: 0 | G45: 0 | H45: 0 | I45: 0 | J45: 0
A46: TPA0306 | B46: 110 kV | C46: MVA | D46: 109.9806434 | E46: 109.9806434 | F46: 109.9806434 | G46: 109.9806434 | H46: 109.9806434 | I46: 109.9806434 | J46: 109.9806434
A47: TPA0307 | B47: 88 kV | C47: MVA | D47: 0 | E47: 0 | F47: 0 | G47: 0 | H47: 0 | I47: 0 | J47: 0
A48: TPA0308 | B48: 66 kV | C48: MVA | D48: 0 | E48: 0 | F48: 0 | G48: 0 | H48: 0 | I48: 0 | J48: 0
A49: TPA0309 | B49: 33 kV | C49: MVA | D49: 0 | E49: 0 | F49: 0 | G49: 0 | H49: 0 | I49: 0 | J49: 0
A50: TPA0310 | B50: 22 kV | C50: MVA | D50: 0 | E50: 0 | F50: 0 | G50: 0 | H50: 0 | I50: 0 | J50: 0
A51: TPA0311 | B51: 11 kV | C51: MVA | D51: 0 | E51: 0 | F51: 0 | G51: 0 | H51: 0 | I51: 0 | J51: 0
B53: Estimated underground network weighted average MVA capacity by voltage class
A54: TPA0401 | B54: 500 kV | C54: MVA | D54: 0 | E54: 0 | F54: 0 | G54: 0 | H54: 0 | I54: 0 | J54: 0
A55: TPA0402 | B55: 330 kV | C55: MVA | D55: 0 | E55: 0 | F55: 0 | G55: 0 | H55: 0 | I55: 0 | J55: 0
A56: TPA0403 | B56: 275 kV | C56: MVA | D56: 0 | E56: 0 | F56: 0 | G56: 0 | H56: 0 | I56: 0 | J56: 0
A57: TPA0404 | B57: 220 kV | C57: MVA | D57: 0 | E57: 0 | F57: 0 | G57: 0 | H57: 0 | I57: 0 | J57: 0
A58: TPA0405 | B58: 132 kV | C58: MVA | D58: 0 | E58: 0 | F58: 0 | G58: 0 | H58: 0 | I58: 0 | J58: 0
A59: TPA0406 | B59: 110 kV | C59: MVA | D59: 141.99 | E59: 141.99 | F59: 141.99 | G59: 141.99 | H59: 141.99 | I59: 141.99 | J59: 141.99
A60: TPA0407 | B60: 88 kV | C60: MVA | D60: 0 | E60: 0 | F60: 0 | G60: 0 | H60: 0 | I60: 0 | J60: 0
A61: TPA0408 | B61: 66 kV | C61: MVA | D61: 0 | E61: 0 | F61: 0 | G61: 0 | H61: 0 | I61: 0 | J61: 0
A62: TPA0409 | B62: 33 kV | C62: MVA | D62: 0 | E62: 0 | F62: 0 | G62: 0 | H62: 0 | I62: 0 | J62: 0
A63: TPA0410 | B63: 22 kV | C63: MVA | D63: 0 | E63: 0 | F63: 0 | G63: 0 | H63: 0 | I63: 0 | J63: 0
A64: TPA0411 | B64: 11 kV | C64: MVA | D64: 0 | E64: 0 | F64: 0 | G64: 0 | H64: 0 | I64: 0 | J64: 0
B66: Installed transmission system transformer capacity
A67: TPA0501 | B67: Transmission substations (eg 500 kV to 330 kV) | C67: MVA | D67: 3300.832086 | E67: 3311.699836 | F67: 3322.603368 | G67: 3333.542798 | H67: 3344.518246 | I67: 3355.529829 | J67: 3366.577668
A68: TPA0502 | B68: Terminal points to DNSP systems | C68: MVA | D68: 3484.274104 | E68: 3539.407006 | F68: 3595.412296 | G68: 3652.303778 | H68: 3710.095473 | I68: 3768.801627 | J68: 3828.436709
A69: TPA0503 | B69: Transformer capacity for directly connected end–users owned by the TNSP | C69: MVA | D69: 604.2091455 | E69: 610.4827618 | F69: 616.8215182 | G69: 623.2260911 | H69: 629.6971639 | I69: 636.235427 | J69: 642.8415781
A70: TPA0504 | B70: Transformer capacity for directly connected end–users owned by the end–user | C70: MVA | D70: 496.2232893 | E70: 496.4466792 | F70: 496.6701696 | G70: 496.8937606 | H70: 497.1174522 | I70: 497.3412446 | J70: 497.5651377
A71: TPA0505 | B71: Interconnector capacity | C71: MVA | D71: 519 | E71: 519 | F71: 519 | G71: 519 | H71: 519 | I71: 519 | J71: 519
A72: TPA0506 | B72: Other | C72: MVA | D72: 0 | E72: 0 | F72: 0 | G72: 0 | H72: 0 | I72: 0 | J72: 0
B74: Cold spare capacity
A75: TPA06 | B75: Cold spare capacity included in 3.5.1.5 | C75: MVA | D75: 319 | E75: 319 | F75: 319 | G75: 319 | H75: 319 | I75: 319 | J75: 319

Sheet 3.7 Operating environment
B1: =(LOOKUP(dms_Model,dms_Model_List,dms_Worksheet_List)) -> REGULATORY REPORTING STATEMENT
B2: =INDEX(dms_TradingNameFull_List,MATCH(dms_TradingName,dms_TradingName_List)) -> TasNetworks (T)
B3: =CONCATENATE("REGULATORY PERIOD FROM ", FRCP_y1," TO ",dms_MultiYear_FinalYear_Result) -> REGULATORY PERIOD FROM 2024-25 TO 2028-29
B4: 3.7 OPERATING ENVIRONMENT FACTORS
A7: TEF01 | B7: 3.7.1 - TERRAIN FACTORS
D8: VOLUMES
D9: Forecast (0's)
C10: Units | D10: =dms_y1 -> 2022-23 | E10: =dms_y2 -> 2023-24 | F10: =dms_y3 -> 2024-25 | G10: =dms_y4 -> 2025-26 | H10: =dms_y5 -> 2026-27 | I10: =dms_y6 -> 2027-28 | J10: =dms_y7 -> 2028-29
A11: TEF0101 | B11: Total number of vegetation maintenance spans | C11: Number of spans | D11: 914
A12: TEF0102 | B12: Average vegetation maintenance span cycle | C12: Years | D12: 5
A13: TEF0103 | B13: Average number of trees per vegetation maintenance span | C13: Trees | D13: 1403
A14: TEF0104 | B14: Average number of defects per vegetation maintenance span | C14: Defects | D14: 0
A15: TEF0105 | B15: Tropical proportion | C15: Number of spans | D15: 0
A16: TEF0106 | B16: Standard vehicle access | C16: km | D16: 70
A17: TEF0107 | B17: Altitude | C17: km | D17: 492
A18: TEF0108 | B18: Bushfire risk | C18: Number of spans | D18: 238
A20: TEF02 | B20: 3.7.2 - NETWORK CHARACTERISTICS
D21: VOLUMES
D22: Forecast (0's)
C23: Units | D23: =dms_y1 -> 2022-23 | E23: =dms_y2 -> 2023-24 | F23: =dms_y3 -> 2024-25 | G23: =dms_y4 -> 2025-26 | H23: =dms_y5 -> 2026-27 | I23: =dms_y6 -> 2027-28 | J23: =dms_y7 -> 2028-29
A24: TEF0201 | B24: Route line length | C24: km | D24: 2361.2 | E24: 2361.2 | F24: 2361.2 | G24: 2361.2 | H24: 2361.2 | I24: 2361.2 | J24: 2361.2
A25: TEF0202 | B25: Variability of dispatch | C25: % | D25: 0.995 | E25: 0.995 | F25: 0.995 | G25: 0.995 | H25: 0.995 | I25: 0.995 | J25: 0.995
A26: TEF0203 | B26: Concentrated load distance | C26: km | D26: 305 | E26: 305 | F26: 305 | G26: 305 | H26: 305 | I26: 305 | J26: 305
A27: TEF0204 | B27: Total number of spans | C27: number | D27: 7970 | E27: 7970 | F27: 7970 | G27: 7970 | H27: 7970 | I27: 7970 | J27: 7970

Sheet 5.4 MD & Utilisation - Spatial
B1: =(LOOKUP(dms_Model,dms_Model_List,dms_Worksheet_List)) -> REGULATORY REPORTING STATEMENT
B2: =INDEX(dms_TradingNameFull_List,MATCH(dms_TradingName,dms_TradingName_List)) -> TasNetworks (T)
B3: =CONCATENATE("REGULATORY PERIOD FROM ", FRCP_y1," TO ",dms_MultiYear_FinalYear_Result) -> REGULATORY PERIOD FROM 2024-25 TO 2028-29
B4: 5.4 MAXIMUM DEMAND AND UTILISATION AT SPATIAL LEVEL
B6: There is ONE table on this worksheet. It has been sub-grouped into blocks of approximately 500 rows for ease of navigation. See the Instructions sheet on how to group or ungroup data.
B8: 5.4.1 - NON-COINCIDENT & COINCIDENT MAXIMUM DEMAND
Q9: VOLUMES
Q10: Forecast (0's)
B11: CONNECTION POINT | C11: FORECASTING ELEMENTS | D11: UNIT | E11: MAX DEMAND | G11: TNSP NAME | H11: SERVICE | I11: SERVICE SUBCATEGORY | J11: DATA TYPE | K11: DATA TYPE SUBCATEGORY | L11: LOCATION | M11: LOCATION SUBCATEGORY | N11: MEASUREMENT | O11: DENOMINATION | Q11: =dms_y1 -> 2022-23 | R11: =dms_y2 -> 2023-24 | S11: =dms_y3 -> 2024-25 | T11: =dms_y4 -> 2025-26 | U11: =dms_y5 -> 2026-27 | V11: =dms_y6 -> 2027-28 | W11: =dms_y7 -> 2028-29
B12: Arthurs Lake | C12: CONNECTION POINT RATING | D12: MVA | E12: Non-coincident | G12: TNSP NAME | H12: DEMAND FORECASTING | I12: NON-COINCIDENT MAXIMUM DEMAND | J12: DESCRIPTOR METRIC | K12: CONNECTION POINT RATING | L12: CONNECTION POINT | M12: =B12 -> Arthurs Lake | N12: RATING | O12: MVA | Q12: 35.43775952 | R12: 35.43775952 | S12: 35.43775952 | T12: 35.43775952 | U12: 35.43775952 | V12: 35.43775952 | W12: 35.43775952
E13: Coincident | G13: TNSP NAME | H13: DEMAND FORECASTING | I13: COINCIDENT MAXIMUM DEMAND | J13: DESCRIPTOR METRIC | K13: CONNECTION POINT RATING | L13: CONNECTION POINT | M13: =M12 -> Arthurs Lake | N13: RATING | O13: MVA | Q13: 35.43775952 | R13: 35.43775952 | S13: 35.43775952 | T13: 35.43775952 | U13: 35.43775952 | V13: 35.43775952 | W13: 35.43775952
C14: WINTER/SUMMER PEAKING | E14: Non-coincident | G14: TNSP NAME | H14: DEMAND FORECASTING | I14: NON-COINCIDENT MAXIMUM DEMAND | J14: DESCRIPTOR METRIC | K14: WINTER/SUMMER PEAKING | L14: CONNECTION POINT | M14: =#REF! ->  | N14: WINTER/SUMMER | O14: WINTER/SUMMER | Q14: Winter | R14: Winter | S14: Winter | T14: Winter | U14: Winter | V14: Winter | W14: Winter
E15: Coincident | G15: TNSP NAME | H15: DEMAND FORECASTING | I15: COINCIDENT MAXIMUM DEMAND | J15: DESCRIPTOR METRIC | K15: WINTER/SUMMER PEAKING | L15: CONNECTION POINT | M15: =M14 ->  | N15: WINTER/SUMMER | O15: WINTER/SUMMER | Q15: Winter | R15: Winter | S15: Winter | T15: Winter | U15: Winter | V15: Winter | W15: Winter
C16: ADJUSTMENTS - EMBEDDED GENERATION | D16: MW | E16: Non-coincident | G16: TNSP NAME | H16: DEMAND FORECASTING | I16: NON-COINCIDENT MAXIMUM DEMAND | J16: DESCRIPTOR METRIC | K16: ADJUSTMENTS - EMBEDDED GENERATION | L16: CONNECTION POINT | N16: GENERATED LOAD | O16: MW
E17: Coincident | G17: TNSP NAME | H17: DEMAND FORECASTING | I17: COINCIDENT MAXIMUM DEMAND | J17: DESCRIPTOR METRIC | K17: ADJUSTMENTS - EMBEDDED GENERATION | L17: CONNECTION POINT | N17: GENERATED LOAD | O17: MW
C18: WEATHER CORRECTED MD 10% POE | D18: MW | E18: Non-coincident | G18: TNSP NAME | H18: DEMAND FORECASTING | I18: NON-COINCIDENT MAXIMUM DEMAND | J18: DESCRIPTOR METRIC | K18: WEATHER CORRECTED MD 10% POE | L18: CONNECTION POINT | N18: MAXIMUM DEMAND | O18: MW | Q18: 7.142642 | R18: 7.142642 | S18: 7.142642 | T18: 7.142642 | U18: 7.142642 | V18: 7.142642 | W18: 7.142642
E19: Coincident | G19: TNSP NAME | H19: DEMAND FORECASTING | I19: COINCIDENT MAXIMUM DEMAND | J19: DESCRIPTOR METRIC | K19: WEATHER CORRECTED MD 10% POE | L19: CONNECTION POINT | N19: MAXIMUM DEMAND | O19: MW | Q19: 6.822574297 | R19: 6.822574297 | S19: 6.822574297 | T19: 6.822574297 | U19: 6.822574297 | V19: 6.822574297 | W19: 6.822574297
C20: WEATHER CORRECTED MD 10% POE | D20: MVA | E20: Non-coincident | G20: TNSP NAME | H20: DEMAND FORECASTING | I20: NON-COINCIDENT MAXIMUM DEMAND | J20: DESCRIPTOR METRIC | K20: WEATHER CORRECTED MD 10% POE | L20: CONNECTION POINT | N20: MAXIMUM DEMAND | O20: MVA | Q20: 7.357332051 | R20: 7.357332051 | S20: 7.357332051 | T20: 7.357332051 | U20: 7.357332051 | V20: 7.357332051 | W20: 7.357332051
E21: Coincident | G21: TNSP NAME | H21: DEMAND FORECASTING | I21: COINCIDENT MAXIMUM DEMAND | J21: DESCRIPTOR METRIC | K21: WEATHER CORRECTED MD 10% POE | L21: CONNECTION POINT | N21: MAXIMUM DEMAND | O21: MVA | Q21: 7.022255156 | R21: 7.022255156 | S21: 7.022255156 | T21: 7.022255156 | U21: 7.022255156 | V21: 7.022255156 | W21: 7.022255156
C22: WEATHER CORRECTED MD 50% POE | D22: MW | E22: Non-coincident | G22: TNSP NAME | H22: DEMAND FORECASTING | I22: NON-COINCIDENT MAXIMUM DEMAND | J22: DESCRIPTOR METRIC | K22: WEATHER CORRECTED MD 50% POE | L22: CONNECTION POINT | N22: MAXIMUM DEMAND | O22: MW | Q22: 7.142642 | R22: 7.142642 | S22: 7.142642 | T22: 7.142642 | U22: 7.142642 | V22: 7.142642 | W22: 7.142642
E23: Coincident | G23: TNSP NAME | H23: DEMAND FORECASTING | I23: COINCIDENT MAXIMUM DEMAND | J23: DESCRIPTOR METRIC | K23: WEATHER CORRECTED MD 50% POE | L23: CONNECTION POINT | N23: MAXIMUM DEMAND | O23: MW | Q23: 6.822574297 | R23: 6.822574297 | S23: 6.822574297 | T23: 6.822574297 | U23: 6.822574297 | V23: 6.822574297 | W23: 6.822574297
C24: WEATHER CORRECTED MD 50% POE | D24: MVA | E24: Non-coincident | G24: TNSP NAME | H24: DEMAND FORECASTING | I24: NON-COINCIDENT MAXIMUM DEMAND | J24: DESCRIPTOR METRIC | K24: WEATHER CORRECTED MD 50% POE | L24: CONNECTION POINT | N24: MAXIMUM DEMAND | O24: MVA | Q24: 7.357332051 | R24: 7.357332051 | S24: 7.357332051 | T24: 7.357332051 | U24: 7.357332051 | V24: 7.357332051 | W24: 7.357332051
E25: Coincident | G25: TNSP NAME | H25: DEMAND FORECASTING | I25: COINCIDENT MAXIMUM DEMAND | J25: DESCRIPTOR METRIC | K25: WEATHER CORRECTED MD 50% POE | L25: CONNECTION POINT | N25: MAXIMUM DEMAND | O25: MVA | Q25: 7.022255156 | R25: 7.022255156 | S25: 7.022255156 | T25: 7.022255156 | U25: 7.022255156 | V25: 7.022255156 | W25: 7.022255156
B26: Avoca | C26: CONNECTION POINT RATING | D26: MVA | E26: Non-coincident | G26: TNSP NAME | H26: DEMAND FORECASTING | I26: NON-COINCIDENT MAXIMUM DEMAND | J26: DESCRIPTOR METRIC | K26: CONNECTION POINT RATING | L26: CONNECTION POINT | M26: =B26 -> Avoca | N26: RATING | O26: MVA
E27: Coincident | G27: TNSP NAME | H27: DEMAND FORECASTING | I27: COINCIDENT MAXIMUM DEMAND | J27: DESCRIPTOR METRIC | K27: CONNECTION POINT RATING | L27: CONNECTION POINT | M27: =M26 -> Avoca | N27: RATING | O27: MVA
C28: WINTER/SUMMER PEAKING | E28: Non-coincident | G28: TNSP NAME | H28: DEMAND FORECASTING | I28: NON-COINCIDENT MAXIMUM DEMAND | J28: DESCRIPTOR METRIC | K28: WINTER/SUMMER PEAKING | L28: CONNECTION POINT | M28: =#REF! ->  | N28: WINTER/SUMMER | O28: WINTER/SUMMER | Q28: Summer | R28: Summer | S28: Summer | T28: Summer | U28: Summer | V28: Summer | W28: Summer
E29: Coincident | G29: TNSP NAME | H29: DEMAND FORECASTING | I29: COINCIDENT MAXIMUM DEMAND | J29: DESCRIPTOR METRIC | K29: WINTER/SUMMER PEAKING | L29: CONNECTION POINT | M29: =M28 ->  | N29: WINTER/SUMMER | O29: WINTER/SUMMER | Q29: Winter | R29: Winter | S29: Winter | T29: Winter | U29: Winter | V29: Winter | W29: Winter
C30: ADJUSTMENTS - EMBEDDED GENERATION | D30: MW | E30: Non-coincident | G30: TNSP NAME | H30: DEMAND FORECASTING | I30: NON-COINCIDENT MAXIMUM DEMAND | J30: DESCRIPTOR METRIC | K30: ADJUSTMENTS - EMBEDDED GENERATION | L30: CONNECTION POINT | N30: GENERATED LOAD | O30: MW
E31: Coincident | G31: TNSP NAME | H31: DEMAND FORECASTING | I31: COINCIDENT MAXIMUM DEMAND | J31: DESCRIPTOR METRIC | K31: ADJUSTMENTS - EMBEDDED GENERATION | L31: CONNECTION POINT | N31: GENERATED LOAD | O31: MW
C32: WEATHER CORRECTED MD 10% POE | D32: MW | E32: Non-coincident | G32: TNSP NAME | H32: DEMAND FORECASTING | I32: NON-COINCIDENT MAXIMUM DEMAND | J32: DESCRIPTOR METRIC | K32: WEATHER CORRECTED MD 10% POE | L32: CONNECTION POINT | N32: MAXIMUM DEMAND | O32: MW | Q32: 6.393382 | R32: 6.393382 | S32: 6.393382 | T32: 6.393382 | U32: 6.393382 | V32: 6.393382 | W32: 6.393382
E33: Coincident | G33: TNSP NAME | H33: DEMAND FORECASTING | I33: COINCIDENT MAXIMUM DEMAND | J33: DESCRIPTOR METRIC | K33: WEATHER CORRECTED MD 10% POE | L33: CONNECTION POINT | N33: MAXIMUM DEMAND | O33: MW | Q33: 6.374964426 | R33: 6.374964426 | S33: 6.374964426 | T33: 6.374964426 | U33: 6.374964426 | V33: 6.374964426 | W33: 6.374964426
C34: WEATHER CORRECTED MD 10% POE | D34: MVA | E34: Non-coincident | G34: TNSP NAME | H34: DEMAND FORECASTING | I34: NON-COINCIDENT MAXIMUM DEMAND | J34: DESCRIPTOR METRIC | K34: WEATHER CORRECTED MD 10% POE | L34: CONNECTION POINT | N34: MAXIMUM DEMAND | O34: MVA | Q34: 6.607819349 | R34: 6.607819349 | S34: 6.607819349 | T34: 6.607819349 | U34: 6.607819349 | V34: 6.607819349 | W34: 6.607819349
E35: Coincident | G35: TNSP NAME | H35: DEMAND FORECASTING | I35: COINCIDENT MAXIMUM DEMAND | J35: DESCRIPTOR METRIC | K35: WEATHER CORRECTED MD 10% POE | L35: CONNECTION POINT | N35: MAXIMUM DEMAND | O35: MVA | Q35: 6.574494322 | R35: 6.574494322 | S35: 6.574494322 | T35: 6.574494322 | U35: 6.574494322 | V35: 6.574494322 | W35: 6.574494322
C36: WEATHER CORRECTED MD 50% POE | D36: MW | E36: Non-coincident | G36: TNSP NAME | H36: DEMAND FORECASTING | I36: NON-COINCIDENT MAXIMUM DEMAND | J36: DESCRIPTOR METRIC | K36: WEATHER CORRECTED MD 50% POE | L36: CONNECTION POINT | N36: MAXIMUM DEMAND | O36: MW | Q36: 6.393382 | R36: 6.393382 | S36: 6.393382 | T36: 6.393382 | U36: 6.393382 | V36: 6.393382 | W36: 6.393382
E37: Coincident | G37: TNSP NAME | H37: DEMAND FORECASTING | I37: COINCIDENT MAXIMUM DEMAND | J37: DESCRIPTOR METRIC | K37: WEATHER CORRECTED MD 50% POE | L37: CONNECTION POINT | N37: MAXIMUM DEMAND | O37: MW | Q37: 6.374964426 | R37: 6.374964426 | S37: 6.374964426 | T37: 6.374964426 | U37: 6.374964426 | V37: 6.374964426 | W37: 6.374964426
C38: WEATHER CORRECTED MD 50% POE | D38: MVA | E38: Non-coincident | G38: TNSP NAME | H38: DEMAND FORECASTING | I38: NON-COINCIDENT MAXIMUM DEMAND | J38: DESCRIPTOR METRIC | K38: WEATHER CORRECTED MD 50% POE | L38: CONNECTION POINT | N38: MAXIMUM DEMAND | O38: MVA | Q38: 6.607819349 | R38: 6.607819349 | S38: 6.607819349 | T38: 6.607819349 | U38: 6.607819349 | V38: 6.607819349 | W38: 6.607819349
E39: Coincident | G39: TNSP NAME | H39: DEMAND FORECASTING | I39: COINCIDENT MAXIMUM DEMAND | J39: DESCRIPTOR METRIC | K39: WEATHER CORRECTED MD 50% POE | L39: CONNECTION POINT | N39: MAXIMUM DEMAND | O39: MVA | Q39: 6.574494322 | R39: 6.574494322 | S39: 6.574494322 | T39: 6.574494322 | U39: 6.574494322 | V39: 6.574494322 | W39: 6.574494322
B40: Boyer | C40: CONNECTION POINT RATING | D40: MVA | E40: Non-coincident
E41: Coincident
C42: WINTER/SUMMER PEAKING | E42: Non-coincident
E43: Coincident
C44: ADJUSTMENTS - EMBEDDED GENERATION | D44: MW | E44: Non-coincident
E45: Coincident
C46: WEATHER CORRECTED MD 10% POE | D46: MW | E46: Non-coincident
E47: Coincident
C48: WEATHER CORRECTED MD 10% POE | D48: MVA | E48: Non-coincident
E49: Coincident
C50: WEATHER CORRECTED MD 50% POE | D50: MW | E50: Non-coincident
E51: Coincident
C52: WEATHER CORRECTED MD 50% POE | D52: MVA | E52: Non-coincident
E53: Coincident
B54: Bridgewater | C54: CONNECTION POINT RATING | D54: MVA | E54: Non-coincident | Q54: 84 | R54: 84 | S54: 84 | T54: 84 | U54: 84 | V54: 84 | W54: 84
E55: Coincident | Q55: 84 | R55: 84 | S55: 84 | T55: 84 | U55: 84 | V55: 84 | W55: 84
C56: WINTER/SUMMER PEAKING | E56: Non-coincident | Q56: Winter | R56: Winter | S56: Winter | T56: Winter | U56: Winter | V56: Winter | W56: Winter
E57: Coincident | Q57: Winter | R57: Winter | S57: Winter | T57: Winter | U57: Winter | V57: Winter | W57: Winter
C58: ADJUSTMENTS - EMBEDDED GENERATION | D58: MW | E58: Non-coincident
E59: Coincident
C60: WEATHER CORRECTED MD 10% POE | D60: MW | E60: Non-coincident | Q60: 34.90127 | R60: 35.16184 | S60: 35.4143 | T60: 35.66112 | U60: 35.90557 | V60: 36.15789 | W60: 36.41747
E61: Coincident | Q61: 32.69028414 | R61: 32.9343471 | S61: 33.17081383 | T61: 33.40199785 | U61: 33.63096201 | V61: 33.8672976 | W61: 34.11043328
C62: WEATHER CORRECTED MD 10% POE | D62: MVA | E62: Non-coincident | Q62: 34.93153559 | R62: 35.19233155 | S62: 35.44501048 | T62: 35.69204452 | U62: 35.9367065 | V62: 36.18924531 | W62: 36.44905041
E63: Coincident | Q63: 32.71863241 | R63: 32.96290702 | S63: 33.19957881 | T63: 33.43096331 | U63: 33.66012602 | V63: 33.89666656 | W63: 34.14001308
C64: WEATHER CORRECTED MD 50% POE | D64: MW | E64: Non-coincident | Q64: 33.85713 | R64: 34.10989 | S64: 34.35459 | T64: 34.59379 | U64: 34.83075 | V64: 35.07564 | W64: 35.32802
E65: Coincident | Q65: 31.71229012 | R65: 31.94903784 | S65: 32.17823616 | T65: 32.40228291 | U65: 32.62423156 | V65: 32.85360784 | W65: 33.08999964
C66: WEATHER CORRECTED MD 50% POE | D66: MVA | E66: Non-coincident | Q66: 33.88649014 | R66: 34.13946933 | S66: 34.38438153 | T66: 34.62378895 | U66: 34.86095444 | V66: 35.1060568 | W66: 35.35865566
E67: Coincident | Q67: 31.7397903 | R67: 31.97674333 | S67: 32.2061404 | T67: 32.43038144 | U67: 32.65252256 | V67: 32.88209775 | W67: 33.11869454
B68: Burnie | C68: CONNECTION POINT RATING | D68: MVA | E68: Non-coincident | Q68: 120.4121721 | R68: 120.4121721 | S68: 120.4121721 | T68: 120.4121721 | U68: 120.4121721 | V68: 120.4121721 | W68: 120.4121721
E69: Coincident | Q69: 120.4121721 | R69: 120.4121721 | S69: 120.4121721 | T69: 120.4121721 | U69: 120.4121721 | V69: 120.4121721 | W69: 120.4121721
C70: WINTER/SUMMER PEAKING | E70: Non-coincident | Q70: Winter | R70: Winter | S70: Winter | T70: Winter | U70: Winter | V70: Winter | W70: Winter
E71: Coincident | Q71: Winter | R71: Winter | S71: Winter | T71: Winter | U71: Winter | V71: Winter | W71: Winter
C72: ADJUSTMENTS - EMBEDDED GENERATION | D72: MW | E72: Non-coincident
E73: Coincident
C74: WEATHER CORRECTED MD 10% POE | D74: MW | E74: Non-coincident | Q74: 58.26102 | R74: 58.06009 | S74: 57.89033 | T74: 57.71155 | U74: 57.5251 | V74: 57.3403 | W74: 57.17976
E75: Coincident | Q75: 54.12377746 | R75: 53.93711594 | S75: 53.77941096 | T75: 53.61332652 | U75: 53.44011675 | V75: 53.2684398 | W75: 53.1193001
C76: WEATHER CORRECTED MD 10% POE | D76: MVA | E76: Non-coincident | Q76: 58.30185958 | R76: 58.10078874 | S76: 57.93090974 | T76: 57.75200442 | U76: 57.56542372 | V76: 57.38049418 | W76: 57.21984165
E77: Coincident | Q77: 54.16171693 | R77: 53.97492457 | S77: 53.81710905 | T77: 53.65090819 | U77: 53.47757699 | V77: 53.3057797 | W77: 53.15653546
C78: WEATHER CORRECTED MD 50% POE | D78: MW | E78: Non-coincident | Q78: 56.86347 | R78: 56.71676 | S78: 56.55059 | T78: 56.37559 | U78: 56.19322 | V78: 56.01269 | W78: 55.85665
E79: Coincident | Q79: 52.82547054 | R79: 52.68917874 | S79: 52.53480883 | T79: 52.37223597 | U79: 52.20281646 | V79: 52.03510629 | W79: 51.89014703
C80: WEATHER CORRECTED MD 50% POE | D80: MVA | E80: Non-coincident | Q80: 56.90332994 | R80: 56.75651709 | S80: 56.59023061 | T80: 56.41510794 | U80: 56.23261011 | V80: 56.05195356 | W80: 55.89580418
E81: Coincident | Q81: 52.86249993 | R81: 52.7261126 | S81: 52.57163448 | T81: 52.40894765 | U81: 52.23940939 | V81: 52.07158166 | W81: 51.92652079
B82: Chapel Street | C82: CONNECTION POINT RATING | D82: MVA | E82: Non-coincident | Q82: 120.4121721 | R82: 120.4121721 | S82: 120.4121721 | T82: 120.4121721 | U82: 120.4121721 | V82: 120.4121721 | W82: 120.4121721
E83: Coincident | Q83: 120.4121721 | R83: 120.4121721 | S83: 120.4121721 | T83: 120.4121721 | U83: 120.4121721 | V83: 120.4121721 | W83: 120.4121721
C84: WINTER/SUMMER PEAKING | E84: Non-coincident | Q84: Winter | R84: Winter | S84: Winter | T84: Winter | U84: Winter | V84: Winter | W84: Winter
E85: Coincident | Q85: Winter | R85: Winter | S85: Winter | T85: Winter | U85: Winter | V85: Winter | W85: Winter
C86: ADJUSTMENTS - EMBEDDED GENERATION | D86: MW | E86: Non-coincident
E87: Coincident
C88: WEATHER CORRECTED MD 10% POE | D88: MW | E88: Non-coincident | Q88: 40.45389 | R88: 40.63687 | S88: 40.82585 | T88: 41.01529 | U88: 41.20992 | V88: 41.40664 | W88: 41.60428
E89: Coincident | Q89: 36.48335534 | R89: 36.64837592 | S89: 36.8188076 | T89: 36.98965414 | U89: 37.16518127 | V89: 37.34259327 | W89: 37.52083498
C90: WEATHER CORRECTED MD 10% POE | D90: MVA | E90: Non-coincident | Q90: 40.46319841 | R90: 40.64622051 | S90: 40.835244 | T90: 41.02472759 | U90: 41.21940237 | V90: 41.41616764 | W90: 41.61385311
E91: Coincident | Q91: 36.49175014 | R91: 36.65680869 | S91: 36.82727958 | T91: 36.99816543 | U91: 37.17373295 | V91: 37.35118578 | W91: 37.5294685
C92: WEATHER CORRECTED MD 50% POE | D92: MW | E92: Non-coincident | Q92: 38.76392 | R92: 38.93943 | S92: 39.1207 | T92: 39.30241 | U92: 39.4891 | V92: 39.6778 | W92: 39.86737
E93: Coincident | Q93: 34.95925529 | R93: 35.11753904 | S93: 35.28101746 | T93: 35.44489269 | U93: 35.61325913 | V93: 35.78343829 | W93: 35.95440207
C94: WEATHER CORRECTED MD 50% POE | D94: MVA | E94: Non-coincident | Q94: 38.77283955 | R94: 38.94838993 | S94: 39.12970164 | T94: 39.31145346 | U94: 39.49818641 | V94: 39.68692983 | W94: 39.87654345
E95: Coincident | Q95: 34.96729938 | R95: 35.12561956 | S95: 35.28913559 | T95: 35.45304853 | U95: 35.62145372 | V95: 35.79167204 | W95: 35.96267515
B96: Comalco | C96: CONNECTION POINT RATING | D96: MVA | E96: Non-coincident
E97: Coincident
C98: WINTER/SUMMER PEAKING | E98: Non-coincident
E99: Coincident
C100: ADJUSTMENTS - EMBEDDED GENERATION | D100: MW | E100: Non-coincident
E101: Coincident
C102: WEATHER CORRECTED MD 10% POE | D102: MW | E102: Non-coincident
E103: Coincident
C104: WEATHER CORRECTED MD 10% POE | D104: MVA | E104: Non-coincident
E105: Coincident
C106: WEATHER CORRECTED MD 50% POE | D106: MW | E106: Non-coincident
E107: Coincident
C108: WEATHER CORRECTED MD 50% POE | D108: MVA | E108: Non-coincident
E109: Coincident
B110: Creek Road | C110: CONNECTION POINT RATING | D110: MVA | E110: Non-coincident | Q110: 216 | R110: 216 | S110: 216 | T110: 216 | U110: 216 | V110: 216 | W110: 216
E111: Coincident | Q111: 216 | R111: 216 | S111: 216 | T111: 216 | U111: 216 | V111: 216 | W111: 216
C112: WINTER/SUMMER PEAKING | E112: Non-coincident | Q112: Winter | R112: Winter | S112: Winter | T112: Winter | U112: Winter | V112: Winter | W112: Winter
E113: Coincident | Q113: Winter | R113: Winter | S113: Winter | T113: Winter | U113: Winter | V113: Winter | W113: Winter
C114: ADJUSTMENTS - EMBEDDED GENERATION | D114: MW | E114: Non-coincident
E115: Coincident
C116: WEATHER CORRECTED MD 10% POE | D116: MW | E116: Non-coincident | Q116: 91.83724 | R116: 92.19925 | S116: 92.60696 | T116: 92.99755 | U116: 93.41335 | V116: 93.79697 | W116: 94.21107
E117: Coincident | Q117: 86.80447322 | R117: 87.14664473 | S117: 87.53201184 | T117: 87.90119714 | U117: 88.29421091 | V117: 88.65680818 | W117: 89.04821511
C118: WEATHER CORRECTED MD 10% POE | D118: MVA | E118: Non-coincident | Q118: 92.90980519 | R118: 93.2760431 | S118: 93.68851473 | T118: 94.08366642 | U118: 94.50432254 | V118: 94.89242283 | W118: 95.3113591
E119: Coincident | Q119: 87.81826083 | R119: 88.16442856 | S119: 88.55429636 | T119: 88.92779337 | U119: 89.32539714 | V119: 89.69222917 | W119: 90.08820734
C120: WEATHER CORRECTED MD 50% POE | D120: MW | E120: Non-coincident | Q120: 89.6363 | R120: 89.98754 | S120: 90.38437 | T120: 90.76411 | U120: 91.16893 | V120: 91.54157 | W120: 91.94467
E121: Coincident | Q121: 84.72414679 | R121: 85.05613851 | S121: 85.43122185 | T121: 85.79015175 | U121: 86.17278723 | V121: 86.52500621 | W121: 86.90601595
C122: WEATHER CORRECTED MD 50% POE | D122: MVA | E122: Non-coincident | Q122: 90.68316046 | R122: 91.03850258 | S122: 91.43996715 | T122: 91.82414213 | U122: 92.23369001 | V122: 92.61068206 | W122: 93.01848986
E123: Coincident | Q123: 85.71363831 | R123: 86.04950736 | S123: 86.42897129 | T123: 86.79209312 | U123: 87.1791974 | V123: 87.53552993 | W123: 87.92098948
B124: Derby | C124: CONNECTION POINT RATING | D124: MVA | E124: Non-coincident | Q124: 25.37800843 | R124: 25.37800843 | S124: 25.37800843 | T124: 25.37800843 | U124: 25.37800843 | V124: 25.37800843 | W124: 25.37800843
E125: Coincident | Q125: 25.37800843 | R125: 25.37800843 | S125: 25.37800843 | T125: 25.37800843 | U125: 25.37800843 | V125: 25.37800843 | W125: 25.37800843
C126: WINTER/SUMMER PEAKING | E126: Non-coincident | Q126: Summer | R126: Summer | S126: Summer | T126: Summer | U126: Summer | V126: Summer | W126: Summer
E127: Coincident | Q127: Winter | R127: Winter | S127: Winter | T127: Winter | U127: Winter | V127: Winter | W127: Winter
C128: ADJUSTMENTS - EMBEDDED GENERATION | D128: MW | E128: Non-coincident
E129: Coincident
C130: WEATHER CORRECTED MD 10% POE | D130: MW | E130: Non-coincident | Q130: 6.77652 | R130: 6.73553 | S130: 6.67754 | T130: 6.60658 | U130: 6.52065 | V130: 6.47005 | W130: 6.4301
E131: Coincident | Q131: 4.818858667 | R131: 4.789710222 | S131: 4.748472889 | T131: 4.698012444 | U131: 4.636906667 | V131: 4.600924444 | W131: 4.572515556
C132: WEATHER CORRECTED MD 10% POE | D132: MVA | E132: Non-coincident | Q132: 6.890217547 | R132: 6.84853981 | S132: 6.789576844 | T132: 6.717426266 | U132: 6.630054518 | V132: 6.578605543 | W132: 6.537985256
E133: Coincident | Q133: 4.899710255 | R133: 4.870072754 | S133: 4.828143534 | T133: 4.776836456 | U133: 4.714705435 | V133: 4.678119498 | W133: 4.64923396
C134: WEATHER CORRECTED MD 50% POE | D134: MW | E134: Non-coincident | Q134: 6.4908 | R134: 6.45071 | S134: 6.39369 | T134: 6.32374 | U134: 6.2389 | V134: 6.18948 | W134: 6.15078
E135: Coincident | Q135: 4.61568 | R135: 4.587171556 | S135: 4.546624 | T135: 4.496881778 | U135: 4.436551111 | V135: 4.401408 | W135: 4.373888
C136: WEATHER CORRECTED MD 50% POE | D136: MVA | E136: Non-coincident | Q136: 6.59970369 | R136: 6.558941054 | S136: 6.500964363 | T136: 6.429840731 | U136: 6.343577271 | V136: 6.293328095 | W136: 6.25397878
E137: Coincident | Q137: 4.693122624 | R137: 4.664135861 | S137: 4.622907992 | T137: 4.572331186 | U137: 4.510988282 | V137: 4.475255534 | W137: 4.447273799
B138: Derwent Bridge | C138: CONNECTION POINT RATING | D138: MVA | E138: Non-coincident | Q138: 8 | R138: 8 | S138: 8 | T138: 8 | U138: 8 | V138: 8 | W138: 8
E139: Coincident | Q139: 8 | R139: 8 | S139: 8 | T139: 8 | U139: 8 | V139: 8 | W139: 8
C140: WINTER/SUMMER PEAKING | E140: Non-coincident | Q140: Winter | R140: Winter | S140: Winter | T140: Winter | U140: Winter | V140: Winter | W140: Winter
E141: Coincident | Q141: Winter | R141: Winter | S141: Winter | T141: Winter | U141: Winter | V141: Winter | W141: Winter
C142: ADJUSTMENTS - EMBEDDED GENERATION | D142: MW | E142: Non-coincident
E143: Coincident
C144: WEATHER CORRECTED MD 10% POE | D144: MW | E144: Non-coincident | Q144: 0.33598 | R144: 0.3357 | S144: 0.33547 | T144: 0.33529 | U144: 0.33446 | V144: 0.32969 | W144: 0.32971
E145: Coincident | Q145: 0.241485625 | R145: 0.241284375 | S145: 0.2411190625 | T145: 0.2409896875 | U145: 0.240393125 | V145: 0.2369646875 | W145: 0.2369790625
C146: WEATHER CORRECTED MD 10% POE | D146: MVA | E146: Non-coincident | Q146: 0.3385946698 | R146: 0.3383124908 | S146: 0.3380807009 | T146: 0.3378993001 | U146: 0.3370628408 | V146: 0.3322557196 | W146: 0.3322758753
E147: Coincident | Q147: 0.2433649189 | R147: 0.2431621027 | S147: 0.2429955037 | T147: 0.2428651219 | U147: 0.2422639168 | V147: 0.2388087985 | W147: 0.2388232854
C148: WEATHER CORRECTED MD 50% POE | D148: MW | E148: Non-coincident | Q148: 0.2982 | R148: 0.29819 | S148: 0.29819 | T148: 0.29818 | U148: 0.29782 | V148: 0.29379 | W148: 0.29385
E149: Coincident | Q149: 0.21433125 | R149: 0.2143240625 | S149: 0.2143240625 | T149: 0.214316875 | U149: 0.214058125 | V149: 0.2111615625 | W149: 0.2112046875
C150: WEATHER CORRECTED MD 50% POE | D150: MVA | E150: Non-coincident | Q150: 0.3005206576 | R150: 0.3005105797 | S150: 0.3005105797 | T150: 0.3005005019 | U150: 0.3001377003 | V150: 0.296076338 | W150: 0.2961368049
E151: Coincident | Q151: 0.2159992226 | R151: 0.2159919792 | S151: 0.2159919792 | T151: 0.2159847358 | U151: 0.2157239721 | V151: 0.2128048679 | W151: 0.2128483285
B152: Devonport | C152: CONNECTION POINT RATING | D152: MVA | E152: Non-coincident | Q152: 132 | R152: 132 | S152: 132 | T152: 132 | U152: 132 | V152: 132 | W152: 132
E153: Coincident | Q153: 132 | R153: 132 | S153: 132 | T153: 132 | U153: 132 | V153: 132 | W153: 132
C154: WINTER/SUMMER PEAKING | E154: Non-coincident | Q154: Winter | R154: Winter | S154: Winter | T154: Winter | U154: Winter | V154: Winter | W154: Winter
E155: Coincident | Q155: Winter | R155: Winter | S155: Winter | T155: Winter | U155: Winter | V155: Winter | W155: Winter
C156: ADJUSTMENTS - EMBEDDED GENERATION | D156: MW | E156: Non-coincident
E157: Coincident
C158: WEATHER CORRECTED MD 10% POE | D158: MW | E158: Non-coincident | Q158: 56.57709 | R158: 56.55275 | S158: 56.54752 | T158: 56.53001 | U158: 56.53517 | V158: 56.52449 | W158: 56.53731
E159: Coincident | Q159: 53.96011216 | R159: 53.93689801 | S159: 53.93190992 | T159: 53.91520985 | U159: 53.92013117 | V159: 53.90994518 | W159: 53.92217219
C160: WEATHER CORRECTED MD 10% POE | D160: MVA | E160: Non-coincident | Q160: 56.92754773 | R160: 56.90305696 | S160: 56.89779457 | T160: 56.8801761 | U160: 56.88536807 | V160: 56.87462191 | W160: 56.88752132
E161: Coincident | Q161: 54.29435944 | R161: 54.27100149 | S161: 54.26598251 | T161: 54.24917899 | U161: 54.2541308 | V161: 54.24388171 | W161: 54.25618446
C162: WEATHER CORRECTED MD 50% POE | D162: MW | E162: Non-coincident | Q162: 54.46529 | R162: 54.43925 | S162: 54.43227 | T162: 54.41301 | U162: 54.41642 | V162: 54.40404 | W162: 54.41512
E163: Coincident | Q163: 51.94599364 | R163: 51.92115812 | S163: 51.91450098 | T163: 51.89613185 | U163: 51.89938412 | V163: 51.88757676 | W163: 51.89814425
C164: WEATHER CORRECTED MD 50% POE | D164: MVA | E164: Non-coincident | Q164: 54.80266653 | R164: 54.77646523 | S164: 54.76944199 | T164: 54.75006269 | U164: 54.75349381 | V164: 54.74103712 | W164: 54.75218576
E165: Coincident | Q165: 52.26776479 | R165: 52.24277543 | S165: 52.23607705 | T165: 52.21759414 | U165: 52.22086656 | V165: 52.20898605 | W165: 52.21961901
B166: Electrona | C166: CONNECTION POINT RATING | D166: MVA | E166: Non-coincident | Q166: 60 | R166: 60 | S166: 60 | T166: 60 | U166: 60 | V166: 60 | W166: 60
E167: Coincident | Q167: 60 | R167: 60 | S167: 60 | T167: 60 | U167: 60 | V167: 60 | W167: 60
C168: WINTER/SUMMER PEAKING | E168: Non-coincident | Q168: Winter | R168: Winter | S168: Winter | T168: Winter | U168: Winter | V168: Winter | W168: Winter
E169: Coincident | Q169: Winter | R169: Winter | S169: Winter | T169: Winter | U169: Winter | V169: Winter | W169: Winter
C170: ADJUSTMENTS - EMBEDDED GENERATION | D170: MW | E170: Non-coincident
E171: Coincident
C172: WEATHER CORRECTED MD 10% POE | D172: MW | E172: Non-coincident | Q172: 16.1965 | R172: 16.2836 | S172: 16.34972 | T172: 16.39803 | U172: 16.45178 | V172: 16.48435 | W172: 16.55796
E173: Coincident | Q173: 14.27572915 | R173: 14.35249981 | S173: 14.41077853 | T173: 14.45335936 | U173: 14.50073506 | V173: 14.52944253 | W173: 14.59432299
C174: WEATHER CORRECTED MD 10% POE | D174: MVA | E174: Non-coincident | Q174: 16.22675258 | R174: 16.31401527 | S174: 16.38025877 | T174: 16.42865901 | U174: 16.48250941 | V174: 16.51514024 | W174: 16.58888774
E175: Coincident | Q175: 14.30239403 | R175: 14.37930809 | S175: 14.43769566 | T175: 14.48035603 | U175: 14.52782021 | V175: 14.5565813 | W175: 14.62158295
C176: WEATHER CORRECTED MD 50% POE | D176: MW | E176: Non-coincident | Q176: 15.64939 | R176: 15.73341 | S176: 15.7965 | T176: 15.84184 | U176: 15.89265 | V176: 15.92235 | W176: 15.99317
E177: Coincident | Q177: 13.79350187 | R177: 13.86755779 | S177: 13.92316584 | T177: 13.96312889 | U177: 14.00791325 | V177: 14.03409107 | W177: 14.09651241
C178: WEATHER CORRECTED MD 50% POE | D178: MVA | E178: Non-coincident | Q178: 15.67862067 | R178: 15.7627976 | S178: 15.82600544 | T178: 15.87143013 | U178: 15.92233504 | V178: 15.95209051 | W178: 16.02304279
E179: Coincident | Q179: 13.81926602 | R179: 13.89346027 | S179: 13.94917219 | T179: 13.98920988 | U179: 14.03407789 | V179: 14.06030461 | W179: 14.12284254
B180: Emu Bay | C180: CONNECTION POINT RATING | D180: MVA | E180: Non-coincident | Q180: 76.21023553 | R180: 76.21023553 | S180: 76.21023553 | T180: 76.21023553 | U180: 76.21023553 | V180: 76.21023553 | W180: 76.21023553
E181: Coincident | Q181: 76.21023553 | R181: 76.21023553 | S181: 76.21023553 | T181: 76.21023553 | U181: 76.21023553 | V181: 76.21023553 | W181: 76.21023553
C182: WINTER/SUMMER PEAKING | E182: Non-coincident | Q182: Winter | R182: Winter | S182: Winter | T182: Winter | U182: Winter | V182: Winter | W182: Winter
E183: Coincident | Q183: Winter | R183: Winter | S183: Winter | T183: Winter | U183: Winter | V183: Winter | W183: Winter
C184: ADJUSTMENTS - EMBEDDED GENERATION | D184: MW | E184: Non-coincident
E185: Coincident
C186: WEATHER CORRECTED MD 10% POE | D186: MW | E186: Non-coincident | Q186: 8.24011 | R186: 8.20472 | S186: 8.16894 | T186: 8.13068 | U186: 8.09346 | V186: 8.05652 | W186: 8.0205
E187: Coincident | Q187: 7.282600011 | R187: 7.251322369 | S187: 7.219700045 | T187: 7.185885899 | U187: 7.152990905 | V187: 7.120343374 | W187: 7.088508939
C188: WEATHER CORRECTED MD 10% POE | D188: MVA | E188: Non-coincident | Q188: 8.487605812 | R188: 8.451152855 | S188: 8.414298185 | T188: 8.374889027 | U188: 8.336551106 | V188: 8.298501594 | W188: 8.261399716
E189: Coincident | Q189: 7.501336533 | R189: 7.469119451 | S189: 7.436547335 | T189: 7.401717565 | U189: 7.367834553 | V189: 7.334206437 | W189: 7.301415838
C190: WEATHER CORRECTED MD 50% POE | D190: MW | E190: Non-coincident | Q190: 8.02371 | R190: 7.99127 | S190: 7.958 | T190: 7.92273 | U190: 7.88675 | V190: 7.85048 | W190: 7.81521
E191: Coincident | Q191: 7.091345933 | R191: 7.062675497 | S191: 7.033271508 | T191: 7.002099922 | U191: 6.970300838 | V191: 6.938245453 | W191: 6.907073866
C192: WEATHER CORRECTED MD 50% POE | D192: MVA | E192: Non-coincident | Q192: 8.26470613 | R192: 8.231291778 | S192: 8.197022497 | T192: 8.160693145 | U192: 8.123632468 | V192: 8.08627308 | W192: 8.049943728
E193: Coincident | Q193: 7.304338043 | R193: 7.274806477 | S193: 7.244519324 | T193: 7.212411484 | U193: 7.179657298 | V193: 7.146639113 | W193: 7.114531273
B194: George Town | C194: CONNECTION POINT RATING | D194: MVA | E194: Non-coincident | Q194: 95.26279442 | R194: 95.26279442 | S194: 95.26279442 | T194: 95.26279442 | U194: 95.26279442 | V194: 95.26279442 | W194: 95.26279442
E195: Coincident | Q195: 95.26279442 | R195: 95.26279442 | S195: 95.26279442 | T195: 95.26279442 | U195: 95.26279442 | V195: 95.26279442 | W195: 95.26279442
C196: WINTER/SUMMER PEAKING | E196: Non-coincident | Q196: Winter | R196: Winter | S196: Winter | T196: Winter | U196: Winter | V196: Winter | W196: Winter
E197: Coincident | Q197: Winter | R197: Winter | S197: Winter | T197: Winter | U197: Winter | V197: Winter | W197: Winter
C198: ADJUSTMENTS - EMBEDDED GENERATION | D198: MW | E198: Non-coincident
E199: Coincident
C200: WEATHER CORRECTED MD 10% POE | D200: MW | E200: Non-coincident | Q200: 21.21155 | R200: 21.22164 | S200: 21.24047 | T200: 21.26309 | U200: 21.25765 | V200: 21.25062 | W200: 21.25918
E201: Coincident | Q201: 16.47470105 | R201: 16.48253781 | S201: 16.49716279 | T201: 16.51473142 | U201: 16.51050625 | V201: 16.50504615 | W201: 16.51169458
C202: WEATHER CORRECTED MD 10% POE | D202: MVA | E202: Non-coincident | Q202: 21.22359707 | R202: 21.23369281 | S202: 21.2525335 | T202: 21.27516635 | U202: 21.26972326 | V202: 21.26268926 | W202: 21.27125413
... 4681 more rows

Sheet 7.1 Policies and Procedures
B1: =(LOOKUP(dms_Model,dms_Model_List,dms_Worksheet_List)) -> REGULATORY REPORTING STATEMENT
B2: =INDEX(dms_TradingNameFull_List,MATCH(dms_TradingName,dms_TradingName_List)) -> TasNetworks (T)
B3: =CONCATENATE("REGULATORY PERIOD FROM ", FRCP_y1," TO ",dms_MultiYear_FinalYear_Result) -> REGULATORY PERIOD FROM 2024-25 TO 2028-29
B4: 7.1 PLANS, POLICIES, PROCEDURES AND STRATEGIES
B6: Instructions
B7: =CONCATENATE(dms_TradingName, " must list and provide a brief description of key internal plans, "&"policies, procedures or strategies that are used by it to plan and conduct its day to day operations and that have been relied upon in the development of its regulatory proposal. "&dms_TradingName," must identify any internal plans, policies, procedures and strategies that have changed in the current regulatory control period "&"or that are expected to change before the next regulatory control period where the change has been identified as a step change.") -> TasNetworks (T) must list and provide a brief description of key internal plans, policies, procedures or strategies that are used by it to plan and conduct its day to day operations and that have been relied upon in the development of its regulatory proposal. TasNetworks (T) must identify any internal plans, policies, procedures and strategies that have changed in the current regulatory control period or that are expected to change before the next regulatory control period where the change has been identified as a step change.
B9: 7.1.1 - PLANS, POLICIES, PROCEDURES AND STRATEGIES
C10: Brief description | D10: Relevance to regulatory proposal | E10: Expenditure impact
C11: Description of the plan, policy, procedure or strategy. | D11: Identify the element of the proposal/supporting documents that the policy, plan, procedure or strategy is relevant to e.g. replacement capex, capacity utilisation thresholds, opex | E11: Is this policy, plan or procedure identified in the response to section 4 'Step Changes' of the notice (yes or no)?
B12: Corporate
B13: TasNetworks towards 2030 | C13: Represents TasNetworks' view of internal and external business environments, corporate objectives and strategic directions up to 2023 | D13: Strategic overview of the future network conditions that set the tone and priorities of almost all aspects of our Regulatory Proposal | E13: No
B14: Environment and sustainability policy | C14: Provides TasNetworks' policy commitments for the environment, including the operation, construction and maintenance of our assets in a way which recognises and mitigates the risks to people and the environment. | D14: Capex and Opex | E14: No
B16: Governance framework
B17: Gated investment framework | C17: The Gated Investment Framework is TasNetworks’ governing document for the assessment and management of business investments. The Framework ensures that TasNetworks’ investment expenditure program is managed to ensure the most effective and efficient use of capital and operating expenditure | D17: Capex and Opex | E17: No
B18: Procurement Policy | C18: Ensures TasNetworks' procurment process reflects best practice and encourages competition, innovation and transparency in our procurement activities. | D18: Capex and Opex | E18: No
B19: Information management policy | C19: This policy details TasNetworks’ commitment to the management of business information as a valued asset in line with our legislative, regulatory and contractual obligations and business requirements. | D19: This document is relevant to all elements of TasNetworks' combined proposal. | E19: No
B20: Privacy policy | C20: The fundamental objective of the Privacy Policy is to ensure that TasNetworks complies with its obligations under The Privacy Act 1988 (Cth) and the Personal Information Protection Act 2004 (TAS). | D20: This document is relevant to all elements of TasNetworks' combined proposal. | E20: No
B21: Risk management policy | C21: This policy outlines how TasNetworks will manage the opportunities and challenges arising from owning and operating the network as well as responding to changes in the external environment as the economy, electricity industry and stakeholder expectations change. | D21: This document is relevant to all elements of TasNetworks' combined proposal. | E21: No
B34: Accounting policies, procedures and methodologies (including a capitalisation policy, depreciation policy and an approved expenditure allocation methodology)
B35: Capitalisation policy | C35: The purpose of this policy is to ensure that capital expenditure is accounted for in a logical and cost-effective manner which is compliant with relevant Australian Accounting Standards. | D35: Capex | E35: No
B36: Cost Allocation Method | C36: This AER approved document describes the principles and policies for allocating costs within the categories of distribution services that TasNetworks provides. | D36: Capex and Opex | E36: No
B38: Asset management plan or equivalent documentation
B39: Asset Management Policies
B40: Asset Management Policy | C40: This policy aims to outline TasNetworks’ position and communicate TasNetworks’ commitments with regard to asset management. | D40: Capex and Opex | E40: No
B42: Asset Management Strategies
B43: End to end works management process | C43: This document outlines the steps, roles and responsibilities of the process to ensure works are delivered in an efficient and effective manner. | D43: Capex and Opex | E43: No
B44: End to end consultation requirements procedure | C44: This procedure sets out TasNetworks’ requirements for consultation in relation to activities within the business. It describes how to identify key internal stakeholders and subject matter experts and when they should be consulted in relation to a range of activities. | D44: Capex and Opex | E44: No
B45: Strategic Asset Management Plan | C45: Defines TasNetworks' asset strategy for the specific asset class | D45: Capex and Opex | E45: No
B47: Asset Management Plans
B48: Asset Management Information System (AMIS) Asset Management Plan | C48: Defines TasNetworks' asset strategy for the specific asset class | D48: Capex and Opex | E48: No
B49: Asset Management Policy | C49: Defines TasNetworks' asset strategy for the specific asset class | D49: Capex and Opex | E49: No
B50: Conductors and Hardware Asset Management Plan | C50: Defines TasNetworks' asset strategy for the specific asset class | D50: Capex and Opex | E50: No
B51: Connection Assets Asset Management Plan | C51: Defines TasNetworks' asset strategy for the specific asset class | D51: Capex and Opex | E51: No
B52: EHV Disconnector and Earth Switch Asset Management Plan | C52: Defines TasNetworks' asset strategy for the specific asset class | D52: Capex and Opex | E52: No
B53: Facilities Asset Management Plan | C53: Defines TasNetworks' asset strategy for the specific asset class | D53: Capex and Opex | E53: No
B54: High Voltage Switchgear Asset Management Plan | C54: Defines TasNetworks' asset strategy for the specific asset class | D54: Capex and Opex | E54: No
B55: IT Infrastructure Asset Management Plan | C55: Defines TasNetworks' asset strategy for the specific asset class | D55: Capex and Opex | E55: No
B56: IT Software Asset Management Plan | C56: Defines TasNetworks' asset strategy for the specific asset class | D56: Capex and Opex | E56: No
B57: Power Transformer Asset Management Plan | C57: Defines TasNetworks' asset strategy for the specific asset class | D57: Capex and Opex | E57: No
B58: SCADA Systems Asset Management Plan Transmission | C58: Defines TasNetworks' asset strategy for the specific asset class | D58: Capex and Opex | E58: No
B59: Telecommunications Network Management Systems (TNMS) Asset Management Plan | C59: Defines TasNetworks' asset strategy for the specific asset class | D59: Capex and Opex | E59: No
B60: Transmission Line Insulator Assemblies Asset Management Plan | C60: Defines TasNetworks' asset strategy for the specific asset class | D60: Capex and Opex | E60: No
B61: Transmission Line Protection and Control Asset Management Plan | C61: Defines TasNetworks' asset strategy for the specific asset class | D61: Capex and Opex | E61: No
B62: Transmission Line Support Structure Asset Management Plan | C62: Defines TasNetworks' asset strategy for the specific asset class | D62: Capex and Opex | E62: No
B63: Transmission Line Support Structure Foundations Asset Management Plan | C63: Defines TasNetworks' asset strategy for the specific asset class | D63: Capex and Opex | E63: No
B71: Capital expenditure policies and procedures (including capex approval policies and procedures and replacement policy)
B72: Gated investment framework | C72: The Gated Investment Framework is TasNetworks’ governing document for the assessment and management of business investments. The Framework ensures that TasNetworks’ investment expenditure program is managed to ensure the most effective and efficient use of capital and operating expenditure | D72: Capex and Opex | E72: No
B76: Internal standards for network planning, design, maintenance and operation
B77: Management System Procedure - Design | C77: This procedure details the method by which TasNetworks manages the design process for Design and Construction contracts | D77: Capex and Opex | E77: No
B78: Traffic Management Procedure | C78: This procedure details the method by which TasNetworks manages traffic management | D78: Capex and Opex | E78: No
B79: Hazardous Substances Management | C79: This procedure details how to manage hazardous substances by providing guidance on the procurement, use, storage, transport and disposal procedures for hazardous chemicals, dangerous goods and associated wastes | D79: Capex and Opex | E79: No
B80: Environmental Considerations: Distribution - Design, Construction and Decommissioning | C80: This procedure describes how the environmental and heritage impacts and risks associated with design, construction and decommissioning of distribution lines, wayleaves, and access tracks are considered in the design and planning stage and controls put in place for these activities. | D80: Capex and Opex | E80: No
B81: Confined Spaces Procedure | C81: This procedure defines a systematic approach to dealing with the hazards and risks associated with TasNetworks confined spaces. | D81: Capex and Opex | E81: No
B82: Work practice suite - Support structures | C82: The suite of work practices provide for the design, maintenance and safe operation of support structure assets | D82: Capex and Opex | E82: No
B83: Work practice suite - Overhead conductors | C83: The suite of work practices provide for the design, maintenance and safe operation of overhead conductor assets | D83: Capex and Opex | E83: No
B84: Work practice suite - Substations | C84: The suite of work practices provide for the design, maintenance and safe operation of substation assets | D84: Capex and Opex | E84: No
B156: Procurement and contracting out policies
B157: Procurement Policy | C157: Ensures TasNetworks' procurment process reflects best practice and encourages competition, innovation and transparency in our procurement activities. | D157: Capex and Opex | E157: No
B158: Contract Management Guideline | C158: This guideline covers the end-to-end Contract Management process and aims to act as a guide to support Contract Owners to carry out their responsibilities. It is ‘principles’ based, acknowledging that different contract types will require varying degrees and types of management. | D158: This document is relevant to all elements of TasNetworks' combined proposal. | E158: No
B161: Information technology policies or strategies
B162: Cyber Security Policy | C162: This Policy describes the security requirements needed to protect TasNetworks’ critical assets – people, property and information – from human and technology threats and vulnerabilities. | D162: Capex and Opex | E162: No
B163: Tools of trade technology policy | C163: This Tool of Trade Technology Standard governs the life cycle of our Tool of Trade technology, from procurement to disposal and replacement and defines the requirements that Team Members and Leaders must adhere to when utilising these services. | D163: Capex and Opex | E163: No
B164: Secure Software Development Standard | C164: The purpose of this document is to define the minimum requirements for secure software development activities either in house or in engaging a vendor to perform the development work. | D164: Opex | E164: No
B165: Information Security Classification Standard | C165: The purpose of this standard is to define the requirements for assigning security classification, labelling and the handling of all business information in order to safeguard the confidentiality, integrity, sensitivity and availability of information stored, accessed and transmitted. | D165: Opex | E165: No
B198: Demand management policies or strategies
B199: Network demand management plan | C199: This document sets out a framework to avoid (or defer) necessary network augmentation required to manage emerging issues on the network, which is typically a network capacity constraint issue | D199: Capex and Opex | E199: No
B200: Annual planning report | C200: The Annual Planning Report presents TasNetworks’ network development and asset replacement plans to ensure the future adequacy of the electricity network in Tasmania | D200: Capex and Opex | E200: No
B202: Self insurance guidelines or policy
B207: Land and easement acquisition polices
B208: Strategic Easement and Land Acquisition Expenditure Estimation Methodology | C208: This document supports the Investment Evaluation Summary for the Strategic Easement and Land Acquisition | D208: Capex | E208: No
B212: Asset security plans and policies
B213: System Spares Policy | C213: This policy exists to define the minimum holding requirement for spare assets and spare parts which are specifically held to replace or repair in-service assets that may either fail or suffer damage, under the responsibility of Networks | D213: capex | E213: No
B223: Disaster recovery policy
B224: Emergency risk management framework | C224: This framework provides TasNetworks with a whole-of-business prevention, preparedness, response, and recovery treatment of all incidents using a risk management approach. | D224: This document is relevant to all elements of TasNetworks' combined proposal. | E224: No

Sheet 7.2 Contingent projects
B1: =(LOOKUP(dms_Model,dms_Model_List,dms_Worksheet_List)) -> REGULATORY REPORTING STATEMENT
B2: =INDEX(dms_TradingNameFull_List,MATCH(dms_TradingName,dms_TradingName_List)) -> TasNetworks (T)
B3: =CONCATENATE("REGULATORY PERIOD FROM ", FRCP_y1," TO ",dms_MultiYear_FinalYear_Result) -> REGULATORY PERIOD FROM 2024-25 TO 2028-29
B4: 7.2 CONTINGENT PROJECTS
B7: Instructions
B8: =CONCATENATE(dms_TradingName," is required to populate all input cells (yellow) in table 7.2.1 presented below." ) -> TasNetworks (T) is required to populate all input cells (yellow) in table 7.2.1 presented below.
B10: 7.2.1 - PROPOSED CONTINGENT PROJECTS FOR THE FORTHCOMING REGULATORY CONTROL PERIOD
B11: Proposed contingent project name | C11: Proposed contingent capital expenditure ($0's, nominal) | D11: Proposed trigger events | E11: =CONCATENATE("Proposed MAR for ", FRCP_y1," ($0's, nominal)") -> Proposed MAR for 2024-25 ($0's, nominal) | F11: =CONCATENATE("5 per cent of the ", FRCP_y1," ($0's, nominal) MAR") -> 5 per cent of the 2024-25 ($0's, nominal) MAR
B12: Address network security requirements at George Town Substation | C12: 50000000 | D12: 1. TasNetworks demonstrates that customer commitment of additional load to connect to the transmission network at or around George Town / Bell Bay results in: A material increase in the probability of cascading failure, following non-credible contingent events, as defined in Schedule 5.1.8 of the NER; and / or (i) Breaches of minimum network performance requirements under regulation 5 of the (ii) Electricity Supply Industry (Network Planning Requirements) Regulations. 2. TasNetworks demonstrates that the solution required to meet the power system security obligations cannot be accommodated within the existing layout of George Town substation. 3. Successful completion of the RIT-T, including a comprehensive assessment of credible options, that demonstrates a network investment is the most efficient option to ensure TasNetworks meets its power system security obligations at George Town under: (i) Clause S5.1.8 of the NER; (ii) The Electricity Supply Industry (Network Planning Requirements) Regulations; 4. TasNetworks Board commitment to proceed with the project subject to the Australian Energy Regulator amending the revenue determination pursuant to the NER. | E12: 159574886.6 | F12: =+E12*0.05 -> 7978744.33
B13: Maintain voltage stability at George Town Substation (to 2026) | C13: 75000000 | D13: 1. TasNetworks demonstrates customer commitment of additional load to connect to the transmission network at or around George Town / Bell Bay will result in TasNetworks being non-compliant with power system voltage and system stability requirements at George Town with respect to clause S5.1.8 of the NER; 2. Successful completion of the RIT-T, including a comprehensive assessment of credible options, demonstrating a network investment is the most efficient option to meet reactive support requirements at George Town under Clause S5.1.8 of the NER; and 3. TasNetworks Board commitment to proceed with the project subject to the Australian Energy Regulator amending the revenue determination pursuant to the NER. | E13: =+$E$12 -> 159574886.6 | F13: 7978744.33
B14: Maintain voltage stability at George Town Substation (to 2029) | C14: 80000000 | D14: 1. TasNetworks demonstrates further customer commitment of additional load to connect to the transmission network at or around George Town / Bell Bay will result in TasNetworks being non-compliant with power system voltage and system stability requirements at George Town with respect to clause S5.1.8 of the NER; 2. Successful completion of the RIT-T, including a comprehensive assessment of credible options, demonstrating a network investment is the most efficient option to meet reactive support requirements at George Town under Clause S5.1.8 of the NER; and 3. TasNetworks Board commitment to proceed with the project subject to the Australian Energy Regulator amending the revenue determination pursuant to the NER. | E14: 159574886.6 | F14: 7978744.33
B15: Address thermal constraint on the Palmerston - Sheffield 220 kV corridor | C15: 212000000 | D15: 1. One or both of the following: (i) Commitment of additional load from one or more customers to connect to the transmission network at or around George Town / Bell Bay; and / or (ii) Commitment of new generation to connect in North West Tasmania or Central Highlands that results in higher power flows on the Palmerston – Sheffield – George Town triangle and causes a power flows through the Sheffield–Palmerston transmission corridor to be constrained to maintain network stability. 2. Successful completion of the RIT-T, including a comprehensive assessment of credible options, that demonstrates augmenting power transfer capacity between Sheffield and Palmerston is the preferred option that provides net market benefits and / or addresses a reliability corrective action; and 3. TasNetworks Board commitment to proceed with the project subject to the AER amending the revenue determination pursuant to the NER. | E15: 159574886.6 | F15: 7978744.33
B16: Address transfer capability constraints of the Sheffield–George Town 220 kV corridor | C16: 166000000 | D16: 1. One or both of the following: (i) Commitment of additional load from one or more customers with aggregated load above 300 MW to connect to the transmission network at or around George Town / Bell Bay; and / or (ii) commitment of new generation to connect in North West Tasmania or Central Highlands that results in higher power flows on the Sheffield – George Town - Palmerston triangle and causes power flows between Sheffield and George Town to be constrained to maintain network stability. 2. Successful completion of the RIT-T, including a comprehensive assessment of credible options, that demonstrates upgrading the capacity between Sheffield and George Town is the preferred option that provides positive net market benefits and / or addresses a reliability corrective action; and 3. TasNetworks Board commitment to proceed with the project subject to the AER amending the revenue determination pursuant to the NER. | E16: 159574886.6 | F16: 7978744.33
B17: Address transfer capability constraints of the Palmerston–Hadspen–George Town 220 kV corridor | C17: 209000000 | D17: 1. One or both of the following: (i) Commitment of additional load from one or more customers with aggregated load above 700 MW to connect to the transmission network at or around George Town / Bell Bay; and / or (ii) commitment of new generation to connect in North West Tasmania or the Central Highlands that results in higher power flows on the Palmerston – Sheffield - George Town triangle and causes power flows on the Palmerston to George Town via Hadspen 220kV transmission line to be constrained to maintain flows within thermal limits. 2. Successful completion of the RIT-T, including a comprehensive assessment of credible options, that demonstrates upgrading the capacity of the network between Palmerston and George Town via Hadspen is the preferred option that provides positive net market benefits and / or addresses a reliability corrective action; and 3. TasNetworks Board commitment to proceed with the project subject to the AER amending the revenue determination pursuant to the NER. | E17: 159574886.6 | F17: 7978744.33
B18: Address transfer capability constraints of the Waddamana–Palmerston 220 kV corridor | C18: 113,00,000 | D18: 1. Commitment of new generation in the Central Highlands and / or the southern transmission network that results in power flow through the Waddamana–Palmerston transmission corridor to be constrained to maintain flows within thermal and/or stability limits; 2. successful completion of the RIT-T, including a comprehensive assessment of credible options, that demonstrates upgrading the transfer capability of the Waddamana–Palmerston transmission corridor is the option that maximises positive net market benefits; and 3. TasNetworks board commitment to proceed with the project subject, to the AER amending the revenue determination pursuant to the NER. | E18: 159574886.6 | F18: 7978744.33
E19: 159574886.6 | F19: 7978744.33
E20: 159574886.6 | F20: 7978744.33
E21: 159574886.6 | F21: 7978744.33
E22: 159574886.6 | F22: 7978744.33
E23: 159574886.6 | F23: 7978744.33
E24: 159574886.6 | F24: 7978744.33
E25: 159574886.6 | F25: 7978744.33
E26: 159574886.6 | F26: 7978744.33
E27: 159574886.6 | F27: 7978744.33
E28: 159574886.6 | F28: 7978744.33
E29: 159574886.6 | F29: 7978744.33
E30: 159574886.6 | F30: 7978744.33
E31: 159574886.6 | F31: 7978744.33

Sheet 7.3 Obligations
B1: =(LOOKUP(dms_Model,dms_Model_List,dms_Worksheet_List)) -> REGULATORY REPORTING STATEMENT
B2: =INDEX(dms_TradingNameFull_List,MATCH(dms_TradingName,dms_TradingName_List)) -> TasNetworks (T)
B3: =CONCATENATE("REGULATORY PERIOD FROM ", FRCP_y1," TO ",dms_MultiYear_FinalYear_Result) -> REGULATORY PERIOD FROM 2024-25 TO 2028-29
B4: 7.3 OBLIGATIONS, REQUIREMENTS & STANDARDS
B6: There is ONE table on this worksheet. It has been sub-grouped for ease of navigation. See the Instructions sheet on how to group or ungroup data.
B8: Instructions
B9: =CONCATENATE("Outline those obligations and requirements that ",dms_TradingName, " identifies as having a material impact on expenditure requirements.") -> Outline those obligations and requirements that TasNetworks (T) identifies as having a material impact on expenditure requirements.
B12: 7.3.1 - OBLIGATIONS OR REQUIREMENTS
C13: Brief description | D13: Relevance to regulatory proposal | E13: Expenditure impact
C14: Description of relevant obligations or requirements within the instrument (e.g. safety obligations, reliability targets) | D14: Identify what element of the proposal/supporting documents the obligation or requirement is relevant to e.g. replacement capex, capacity utilisation thresholds, opex | E14: Is the obligation or requirement identified in the response to section 4 'Step Changes' of the notice (yes or no)?
B15: Legislation
B16: Commonwealth Government | C16: A New Tax System (Goods and Services Tax) Act 1999 (Cth) A New Tax System (Goods and Services Tax) Regulations 1999 (Cth) | D16: Capex and Opex | E16: No
B17: Commonwealth Government | C17: Competition and Consumer Act 2010 (Cth) Competition and Consumer Regulations 2010 (Cth) | D17: Opex | E17: No
B18: Commonwealth Government | C18: Corporations Act 2001 (Cth) | D18: Opex | E18: No
B19: Commonwealth Government | C19: Corporations Regulations 2001 (Cth) | D19: Opex | E19: No
B20: Commonwealth Government | C20: Environment Protection and Biodiversity Conservation Act 1999 (Cth) Environment Protection and Biodiversity Conservation Regulations 2000 (Cth) | D20: Capex and Opex | E20: No
B21: Commonwealth Government | C21: Fair Work Act 2009 (Cth) Fair Work Regulations 2009 (Cth) | D21: Opex | E21: No
B22: Commonwealth Government | C22: Fringe Benefits Tax Act 1986 (Cth) Fringe Benefits Tax Assessment Act 1986 (Cth) Fringe Benefits Tax Regulations 1992 (Cth) | D22: Opex | E22: No
B23: Commonwealth Government | C23: Fuel Tax Act 2006 (Cth) | D23: Opex | E23: No
B24: Commonwealth Government | C24: National Harmonisation of Work Health and Safety Regulations 2011 (Cth) | D24: Capex and Opex | E24: No
B25: Commonwealth Government | C25: Independent Contractors Act 2006 (Cth) Independent Contractors Regulations 2007 (Cth) | D25: Capex and Opex | E25: No
B26: Commonwealth Government | C26: Income Tax Act 1986 (Cth) | D26: Opex | E26: No
B27: Commonwealth Government | C27: Income Tax Assessment Act 1936 (Cth) Income Tax Assessment Act 1997 (Cth) Income Tax Assessment Regulations 1997 (Cth) Income Tax Regulations 1936 (Cth) | D27: Opex | E27: No
B28: Commonwealth Government | C28: National Greenhouse and Energy Reporting Act 2007 (Cth) National Greenhouse and Energy Reporting Regulations 2008 (Cth) | D28: Opex | E28: No
B29: Commonwealth Government | C29: Native Title Act 1993 (Cth) Native Title (Indigenous Land Use Agreements) Regulations 1999 (Cth) | D29: Opex | E29: No
B30: Commonwealth Government | C30: Privacy Act 1988 (Cth) Privacy Regulation 2013 (Cth) | D30: Opex | E30: No
B31: Commonwealth Government | C31: Superannuation Guarantee (Administration) Act 1992 (Cth) Superannuation Guarantee (Administration) Regulations 1993 (Cth) | D31: Capex and Opex | E31: No
B32: Commonwealth Government | C32: Superannuation Industry (Supervision) Act 1993 (Cth) Superannuation Industry (Supervision) Regulations 1994 (Cth) | D32: Opex | E32: No
B33: Commonwealth Government | C33: Telecommunications (Interception and Access) Act 1979 (Cth) Telecommunications (Interception and Access) Regulations 1987 (Cth) | D33: Opex | E33: No
B34: Commonwealth Government | C34: Telecommunications Act 1997 (Cth) Telecommunications Regulations 2001 (Cth) | D34: Opex | E34: No
B35: Commonwealth Government | C35: Workplace Relations Acts and Regulations (Cth) | D35: Opex | E35: No
B36: Commonwealth Government | C36: Security of Critical Infrastructure Act 2018 | D36: Opex | E36: Yes
B37: South Australian and Victorian Governments | C37: National Electricity Law | D37: Capex and Opex | E37: No
B38: Tasmanian Government | C38: Aboriginal Heritage Act 1975 | D38: Capex and Opex | E38: No
B39: Tasmanian Government | C39: Aboriginal Lands Act 1995 | D39: Capex and Opex | E39: No
B40: Tasmanian Government | C40: Access to Neighbouring Land Act 1992 | D40: Capex and Opex | E40: No
B41: Tasmanian Government | C41: Anti-Discrimination Act 1998 | D41: Opex | E41: No
B42: Tasmanian Government | C42: Biosecurity Act 2019 | D42: Opex | E42: No
B43: Tasmanian Government | C43: Climate Change (State Action) Act 2008 | D43: Capex and Opex | E43: No
B44: Tasmanian Government | C44: COVID-19 Disease Emergency (Miscellaneous Provisions) Act 2020 | D44: Opex | E44: No
B45: Tasmanian Government | C45: Economic Regulator Act 2009 | D45: Capex and Opex | E45: No
B46: Tasmanian Government | C46: Electricity - National Scheme (Tasmania) Act 1999 | D46: Opex | E46: No
B47: Tasmanian Government | C47: Electricity Companies Act 1997 | D47: Opex | E47: No
B48: Tasmanian Government | C48: Electricity Industry Safety and Administration Act 1997 | D48: Opex | E48: No
B49: Tasmanian Government | C49: Electricity Reform Act 2012 | D49: Opex | E49: No
B50: Tasmanian Government | C50: Electricity Supply Industry Act 1995 | D50: Opex | E50: No
B51: Tasmanian Government | C51: Electricity Wayleaves and Easements Act 2000 | D51: Opex | E51: No
B52: Tasmanian Government | C52: Energy Ombudsman Act 1998 | D52: Opex | E52: No
B53: Tasmanian Government | C53: Government Business Enterprises Act 1995 | D53: Opex | E53: No
B54: Tasmanian Government | C54: Industrial Relations Act 1984 | D54: Opex | E54: No
B55: Tasmanian Government | C55: Long Service Leave (State Employees) Act 1994 | D55: Opex | E55: No
B56: Tasmanian Government | C56: Major Infrastructure Development Approvals Act 1999 | D56: Capex and Opex | E56: No
B57: Tasmanian Government | C57: National Electricity (Tasmania) Law | D57: Capex and Opex | E57: No
B58: Tasmanian Government | C58: National Energy Retail Law (Tasmania) Act 2012 | D58: Opex | E58: No
B59: Tasmanian Government | C59: National Taxation Reform (Commonwealth-State Relations) Act 1999 | D59: Opex | E59: No
B60: Tasmanian Government | C60: Occupational Licensing Act 2005 | D60: Opex | E60: No
B61: Tasmanian Government | C61: Payroll Tax Act 2008 | D61: Opex | E61: No
B62: Tasmanian Government | C62: Payroll Tax Rebate (Apprentices, Trainees and Youth Employees) Act 2017 | D62: Opex | E62: No
B63: Tasmanian Government | C63: Personal Information Protection Act 2004 | D63: Opex | E63: No
B64: Tasmanian Government | C64: Public Interest Disclosures Act 2002 | D64: Opex | E64: No
B65: Tasmanian Government | C65: Registration to Work with Vulnerable People Act 2013 | D65: Opex | E65: No
B66: Tasmanian Government | C66: Right to Information Act 2009 | D66: Opex | E66: No
B67: Tasmanian Government | C67: Roads and Jetties Act 1935 | D67: Capex and Opex | E67: No
B68: Tasmanian Government | C68: State Service Act 2000 | D68: Opex | E68: No
B69: Tasmanian Government | C69: Trades Unions Act 1889 | D69: Opex | E69: No
B70: Tasmanian Government | C70: Work Health and Safety Act 2012 | D70: Opex | E70: No
B71: Tasmanian Government | C71: Workers Rehabilitation and Compensation Act 1988 | D71: Opex | E71: No
B227: Licences
B228: ESI act 1995 | C228: Electrical distribution license | D228: Capex and Opex | E228: No
B229: ACMA | C229: Carrier licences for telecommunications and radio communications permits us to operate our radio and operational telecommunications | D229: Opex | E229: No
B232: Rules
B233: AEMC | C233: National Electricity Rules | D233: Capex and Opex | E233: No
B234: Standards Australia | C234: AS/NZ 7000:2016 Overhead line design | D234: Capex and Opex | E234: No
B237: Orders
B241: Codes
B242: Building Code of Australia | C242: Building Code of Australia published by the Australian Building Codes Board as in force from time to time | D242: Capex and Opex | E242: No
B257: Guidelines
B258: AER | C258: Approach to reporting requirements and monitoring standards in the electricity market: final report and guideline issued | D258: Opex | E258: No
B259: AER | C259: Better Resets Handbook - Towards consumer-centric network proposals | D259: Capex and Opex | E259: No
B260: AER | C260: Compulsory notice guidelines | D260: Capex and Opex | E260: No
B261: AER | C261: Confidentiality guideline | D261: Capex and Opex | E261: No
B262: AER | C262: Consumer engagement guideline for network service providers | D262: Capex and Opex | E262: No
B263: AER | C263: Cost allocation guideline (transmission) | D263: Capex and Opex | E263: No
B264: AER | C264: Expenditure Forecast Assessment Guideline | D264: Capex and Opex | E264: No
B265: AER | C265: Expenditure incentives guideline | D265: Capex | E265: No
B266: AER | C266: Guidelines to make the integrated system plan actionable | D266: Capex | E266: No
B267: AER | C267: Information guideline | D267: Capex and Opex | E267: No
B268: AER | C268: Inter-regional transmission charging arrangements | D268: Opex | E268: No
B269: AER | C269: Pricing methodology guidelines - System strength pricing | D269: Capex and Opex | E269: No
B270: AER | C270: Process guideline for contingent project | D270: Capex and opex | E270: No
B271: AER | C271: Process guideline on how to prepare a transmission network support pass through application | D271: Capex and opex | E271: No
B272: AER | C272: Rate of Return Instrument | D272: Capex and opex | E272: No
B273: AER | C273: Regulatory test and application guidelines | D273: Capex and opex | E273: No
B274: AER | C274: RIT-T and RIT-D application guidelines | D274: Capex | E274: No
B275: AER | C275: Service standards guidelines | D275: Capex and Opex | E275: No
B276: AER | C276: Shared asset guideline | D276: Capex and Opex | E276: No
B277: AER | C277: Statement of principles for the regulation of transmission revenues | D277: Capex and Opex | E277: No
B278: AER | C278: Transmission annual planning report guidelines | D278: Capex and Opex | E278: No
B279: AER | C279: Transmission Efficiency Test and revenue determination guideline: non-contestable network infrastructure projects | D279: Capex and Opex | E279: No
B280: AER | C280: Trial projects guidelines - Regulatory sandboxing | D280: Opex | E280: No
B296: Default agreements
B301: Other

Sheet 7.4 Shared Assets
B1: =(LOOKUP(dms_Model,dms_Model_List,dms_Worksheet_List)) -> REGULATORY REPORTING STATEMENT
B2: =INDEX(dms_TradingNameFull_List,MATCH(dms_TradingName,dms_TradingName_List)) -> TasNetworks (T)
B3: =CONCATENATE("REGULATORY PERIOD FROM ", FRCP_y1," TO ",dms_MultiYear_FinalYear_Result) -> REGULATORY PERIOD FROM 2024-25 TO 2028-29
B4: 7.4 SHARED ASSETS
B7: 7.4.1 - TOTAL UNREGULATED REVENUE EARNED WITH SHARED ASSETS
B8: Name of shared asset unregulated service | C8: Description of shared assets used to provide the service | D8: =CONCATENATE("REVENUE ($0's, real ", dms_DollarReal,")") -> REVENUE ($0's, real June 2024)
D9: =dms_y1 -> 2022-23 | E9: =dms_y2 -> 2023-24 | F9: =dms_y3 -> 2024-25 | G9: =dms_y4 -> 2025-26 | H9: =dms_y5 -> 2026-27 | I9: =dms_y6 -> 2027-28 | J9: =dms_y7 -> 2028-29 | K9: =CONCATENATE("Total ",FRCP_y1, " to ", dms_MultiYear_FinalYear_Result) -> Total 2024-25 to 2028-29
B10: Tower Access | C10: Provision of unregulated equipment on transmission tower | D10: 33646.99791 | E10: 33646.99791 | F10: 33646.99791 | G10: 33646.99791 | H10: 33646.99791 | I10: 33646.99791 | J10: 33646.99791 | K10: =SUM(F10:J10) -> 168234.9895
B11: Space Rental | C11: Rental of space for unregulated equipment | D11: 331519.291 | E11: 331519.291 | F11: 331519.291 | G11: 331519.291 | H11: 331519.291 | I11: 331519.291 | J11: 331519.291 | K11: 1657596.455
K12: 0
K13: 0
K14: 0
K15: 0
K16: 0
K17: 0
K18: 0
K19: 0
K20: 0
K21: 0
K22: 0
K23: 0
K24: 0
B28: 7.4.2 - SHARED ASSET UNREGULATED SERVICES - APPORTIONMENT METHODOLOGY
B29: Name of shared asset unregulated service for which revenues were apportioned | C29: Apportionment methodology

Sheet 7.9 STPIS
B1: =(LOOKUP(dms_Model,dms_Model_List,dms_Worksheet_List)) -> REGULATORY REPORTING STATEMENT
B2: =INDEX(dms_TradingNameFull_List,MATCH(dms_TradingName,dms_TradingName_List)) -> TasNetworks (T)
B3: =CONCATENATE("REGULATORY PERIOD FROM ", FRCP_y1," TO ",dms_MultiYear_FinalYear_Result) -> REGULATORY PERIOD FROM 2024-25 TO 2028-29
B4: 7.9 SERVICE TARGET PERFORMANCE INCENTIVE SCHEME (STPIS)
B8: 7.9.3 – NETWORK LIMIT INFORMATION
B9: Limit definition | C9: Define limit | D9: Reason for the limit | E9: Is limit addressed by priority project | F9: Supporting information reference
B10: Thermal capacity limitation on the Waddamana-Palmerston 220 kV transmission circuits | C10: 1,000 MVA | D10: Terminal equipment limitation | E10: Yes | F10: TasNetworks-Network Capability Incentive Parameter Action Plan (NCIPAP) -Dec-22
B11: Thermal capacity limitation on the Derby-Scottsdale 110 kV transmission circuit | C11: 155 MVA | D11: Dynamic ratings not applied to transmission line | E11: Yes | F11: TasNetworks-Network Capability Incentive Parameter Action Plan (NCIPAP) -Dec-23

Sheet 8.2 Capex
B1: =(LOOKUP(dms_Model,dms_Model_List,dms_Worksheet_List)) -> REGULATORY REPORTING STATEMENT
B2: =INDEX(dms_TradingNameFull_List,MATCH(dms_TradingName,dms_TradingName_List)) -> TasNetworks (T)
B3: =CONCATENATE("REGULATORY PERIOD FROM ", FRCP_y1," TO ",dms_MultiYear_FinalYear_Result) -> REGULATORY PERIOD FROM 2024-25 TO 2028-29
B4: 8.2 - CAPEX
B6: 8.2.7 - IMMEDIATE EXPENSING OF CAPEX
B7: ESTIMATED - AS COMMISSIONED
C8: EXPENDITURE
C9: $0's, Nominal | D9: =CONCATENATE("$0's, real ", dms_DollarReal) -> $0's, real June 2024
B10: Asset class | C10: =dms_y1 -> 2022-23 | D10: =dms_y2 -> 2023-24
B61: Total | C61: =SUM(C11:C60) -> 0 | D61: =SUM(D11:D60) -> 0

Sheet Formatting Styles (hidden)
B1: THIS WORKSHEET CONTAINS STYLES AND FORMATTING USED IN RIN TEMPLATES
K6: My named range
B28: STYLES IN USE | C28: dms_H2
B29: TOP HEADER | C29: dms_H1
B30: HEADING ONE | C30: dms_1
B31: HEADING TWO | C31: dms_2
B32: HEADING THREE | C32: dms_3
B33: HEADING FOUR | C33: dms_4
B34: HEADING FIVE | C34: dms_5
B35: 5.111 | C35: dms_NUM
B36: 0.0545 | C36: dms_NUM%
B37: 5.5555 | C37: dms_NUM3d
B38: Text description | C38: dms_Row_Locked
B39: Text description - not locked | C39: dms_Row1
B40: Text description | C40: dms_Row2
B41: Total | C41: dms_T1
B42: Total | C42: dms_T2
B43: EXPENSES | C43: dms_BH
B44: 2019 | C44: dms_BY1
B45: 2019 | C45: dms_BY2
B46: VOLUMES | C46: dms_GH
B47: 2019 | C47: dms_GY1
B48: 2019 | C48: dms_GY2

Sheet AER Sheet Heading (hidden)
B1: =INDEX(dms_Worksheet_List,MATCH(dms_Model,dms_Model_List)) -> REGULATORY REPORTING STATEMENT
B2: =INDEX(dms_TradingNameFull_List,MATCH(dms_TradingName,dms_TradingName_List)) -> TasNetworks (T)
B3: =CONCATENATE("REGULATORY PERIOD FROM ", FRCP_y1," TO ",dms_MultiYear_FinalYear_Result) -> REGULATORY PERIOD FROM 2024-25 TO 2028-29
B4: XX
C11: EXPENDITURE
C12: =CONCATENATE("Forecast ($0's, real ",dms_DollarReal,")") -> Forecast ($0's, real June 2024)
C13: =dms_y1 -> 2022-23 | D13: =dms_y2 -> 2023-24 | E13: =dms_y3 -> 2024-25 | F13: =dms_y4 -> 2025-26 | G13: =dms_y5 -> 2026-27 | H13: =dms_y6 -> 2027-28 | I13: =dms_y7 -> 2028-29
C42: VOLUMES
C43: 0's
C44: =dms_y1 -> 2022-23 | D44: =dms_y2 -> 2023-24 | E44: =dms_y3 -> 2024-25 | F44: =dms_y4 -> 2025-26 | G44: =dms_y5 -> 2026-27 | H44: =dms_y6 -> 2027-28 | I44: =dms_y7 -> 2028-29

Sheet AER CF (hidden)
B1: AER CONDITIONAL FORMATTING
B3: CELLS FLAGED "Y" and greyed out will be greyed out in the worksheets.
B4: CONDITIONAL FORMATTING MAP
F5: =INDEX(dms_CF_3.6.1, MATCH(dms_TradingName,dms_CF_TradingName))="Y" | G5: =INDEX(dms_CF_3.6.5, MATCH(dms_TradingName,dms_CF_TradingName))="Y" | H5: =INDEX(dms_CF_3.6.6.1, MATCH(dms_TradingName,dms_CF_TradingName))="Y" | I5: =INDEX(dms_CF_3.6.6.2, MATCH(dms_TradingName,dms_CF_TradingName))="Y" | J5: =INDEX(dms_CF_3.6.6.3, MATCH(dms_TradingName,dms_CF_TradingName))="Y" | K5: =INDEX(dms_CF_3.6.7.1, MATCH(dms_TradingName,dms_CF_TradingName))="Y" | L5: =INDEX(dms_CF_3.6.7.2, MATCH(dms_TradingName,dms_CF_TradingName))="Y" | M5: =INDEX(dms_CF_3.6.7.3, MATCH(dms_TradingName,dms_CF_TradingName))="Y" | N5: =INDEX(dms_CF_3.6.7.4, MATCH(dms_TradingName,dms_CF_TradingName))="Y" | O5: =INDEX(dms_CF_3.6.8, MATCH(dms_TradingName,dms_CF_TradingName))="Y" | P5: =INDEX(dms_CF_4.1, MATCH(dms_TradingName,dms_CF_TradingName))="Y" | Q5: =INDEX(dms_CF_6.8, MATCH(dms_TradingName,dms_CF_TradingName))="Y" | R5: =INDEX(dms_CF_7.12, MATCH(dms_TradingName,dms_CF_TradingName))="Y" | S5: =INDEX(dms_CF_8.1_A, MATCH(dms_TradingName,dms_CF_TradingName))="Y" | T5: =INDEX(dms_CF_8.1_B, MATCH(dms_TradingName,dms_CF_TradingName))="Y" | U5: =INDEX(dms_CF_8.1_Neg, MATCH(dms_TradingName,dms_CF_TradingName))="Y" -> TRUE | V5: =INDEX(dms_CF_4.4.1_Neg, MATCH(dms_TradingName,dms_CF_TradingName))="Y" | Y5: =INDEX(dms_CF_F10, MATCH(dms_TradingName,dms_CF_TradingName))="Y"
B6: dms_CF_TradingName | C6: JurisdictionList | D6: Sector | E6: Segment | F6: dms_CF_3.6.1 | G6: dms_CF_3.6.5 | H6: dms_CF_3.6.6.1 | I6: dms_CF_3.6.6.2 | J6: dms_CF_3.6.6.3 | K6: dms_CF_3.6.7.1 | L6: dms_CF_3.6.7.2 | M6: dms_CF_3.6.7.3 | N6: dms_CF_3.6.7.4 | O6: dms_CF_3.6.8 | P6: dms_CF_4.1 | Q6: dms_CF_6.8 (set from dms_MAIFI_flag) | R6: dms_CF_7.12 | S6: dms_CF_8.1_A (and 8.4) | T6: dms_CF_8.1_B (and 8.4) | U6: dms_CF_8.1_Neg (and 8.4) | V6: dms_CF_4.4.1 | W6: dms_CF_MAIFI_flag (set from dms_MAIFI_flag) | X6: 9.5 TUOS (set from Jurisdiction) | Y6: dms_CF_F10
B7: Amadeus | C7: NT | D7: Gas | E7: Transmission | F7: - | G7: - | H7: - | I7: - | J7: - | K7: - | L7: - | M7: - | N7: - | O7: - | P7: - | Q7: - | R7: - | S7: - | T7: - | U7: - | V7: - | W7: - | X7: - | Y7: -
B8: APA GasNet | C8: Vic | D8: Gas | E8: Transmission | F8: - | G8: - | H8: - | I8: - | J8: - | K8: - | L8: - | M8: - | N8: - | O8: - | P8: - | Q8: - | R8: - | S8: - | T8: - | U8: - | V8: - | W8: - | X8: - | Y8: -
B9: Ausgrid | C9: NSW | D9: Electricity | E9: Distribution | G9: Y | H9: N | I9: N | J9: N | K9: N | L9: N | M9: N | N9: Y | O9: N | P9: N | Q9: =IFERROR(IF(dms_MAIFI_flag="Yes","N","Y"),"Y") -> Y | R9: Y | S9: N | T9: Y | U9: Y | V9: N | W9: =IFERROR(LEFT(dms_MAIFI_flag),"N") -> N | X9: =IF('AER CF'!$C7="Vic","Y","N") -> N
B10: Ausgrid (Tx Assets) | C10: NSW | D10: Electricity | E10: Distribution | G10: Y | H10: N | I10: N | J10: N | K10: N | L10: N | M10: N | N10: Y | O10: N | P10: N | Q10: =IFERROR(IF(dms_MAIFI_flag="Yes","N","Y"),"Y") -> Y | R10: Y | S10: N | T10: Y | U10: Y | V10: N | W10: =IFERROR(LEFT(dms_MAIFI_flag),"N") -> N | X10: =IF('AER CF'!$C8="Vic","Y","N") -> Y
B11: AusNet (D) | C11: Vic | D11: Electricity | E11: Distribution | G11: N | H11: N | K11: N | L11: N | M11: N | N11: N | O11: N | P11: N | Q11: =IFERROR(IF(dms_MAIFI_flag="Yes","N","Y"),"Y") -> Y | R11: N | S11: N | T11: N | U11: Y | V11: N | W11: =IFERROR(LEFT(dms_MAIFI_flag),"N") -> N | X11: =IF('AER CF'!$C9="Vic","Y","N") -> N
B12: AusNet (T) | C12: Vic | D12: Electricity | E12: Transmission | G12: N | K12: N | L12: N | M12: N | N12: N | O12: N | P12: Y | Q12: =IFERROR(IF(dms_MAIFI_flag="Yes","N","Y"),"Y") -> Y | R12: N | S12: N | T12: N | U12: Y | V12: N | W12: =IFERROR(LEFT(dms_MAIFI_flag),"N") -> N | X12: =IF('AER CF'!$C10="Vic","Y","N") -> N
B13: Australian Distribution Co. | C13: NSW | D13: Electricity | E13: Distribution | F13: N | G13: N | H13: N | I13: N | K13: N | L13: N | M13: N | N13: N | O13: N | P13: N | Q13: =IFERROR(IF(dms_MAIFI_flag="Yes","N","Y"),"Y") -> Y | R13: N | S13: N | T13: N | U13: N | V13: N | W13: =IFERROR(LEFT(dms_MAIFI_flag),"N") -> N | X13: =IF('AER CF'!$C13="Vic","Y","N") -> N
B14: Australian Distribution Co. (Vic) | C14: Vic | D14: Electricity | E14: Distribution | F14: N | G14: N | H14: N | I14: N | K14: N | L14: N | M14: N | N14: N | O14: N | P14: N | Q14: =IFERROR(IF(dms_MAIFI_flag="Yes","N","Y"),"Y") -> Y | R14: N | S14: N | T14: N | U14: N | V14: N | W14: =IFERROR(LEFT(dms_MAIFI_flag),"N") -> N | X14: =IF('AER CF'!$C14="Vic","Y","N") -> Y
B15: CitiPower | C15: Vic | D15: Electricity | E15: Distribution | G15: N | H15: N | K15: N | L15: N | M15: N | N15: N | O15: N | P15: N | Q15: =IFERROR(IF(dms_MAIFI_flag="Yes","N","Y"),"Y") -> Y | R15: N | S15: N | T15: N | U15: Y | V15: N | W15: =IFERROR(LEFT(dms_MAIFI_flag),"N") -> N | X15: =IF('AER CF'!$C15="Vic","Y","N") -> Y
B16: Directlink | C16: Qld | D16: Electricity | E16: Transmission | G16: N | K16: N | L16: N | M16: N | N16: N | O16: N | P16: - | Q16: =IFERROR(IF(dms_MAIFI_flag="Yes","N","Y"),"Y") -> Y | R16: N | S16: N | T16: Y | U16: Y | V16: N | W16: =IFERROR(LEFT(dms_MAIFI_flag),"N") -> N | X16: =IF('AER CF'!$C16="Vic","Y","N") -> N
B17: ElectraNet | C17: SA | D17: Electricity | E17: Transmission | G17: N | K17: N | L17: N | M17: N | N17: N | O17: N | P17: - | Q17: =IFERROR(IF(dms_MAIFI_flag="Yes","N","Y"),"Y") -> Y | R17: N | S17: N | T17: Y | U17: Y | V17: N | W17: =IFERROR(LEFT(dms_MAIFI_flag),"N") -> N | X17: =IF('AER CF'!$C17="Vic","Y","N") -> N
B18: Endeavour Energy | C18: NSW | D18: Electricity | E18: Distribution | G18: Y | H18: N | I18: Y | J18: Y | K18: N | L18: N | M18: N | N18: Y | O18: N | P18: N | Q18: =IFERROR(IF(dms_MAIFI_flag="Yes","N","Y"),"Y") -> Y | R18: Y | S18: N | T18: Y | U18: Y | V18: Y | W18: =IFERROR(LEFT(dms_MAIFI_flag),"N") -> N | X18: =IF('AER CF'!$C18="Vic","Y","N") -> N
B19: Energex | C19: Qld | D19: Electricity | E19: Distribution | G19: Y | H19: N | K19: N | L19: N | M19: N | N19: N | O19: N | P19: N | Q19: =IFERROR(IF(dms_MAIFI_flag="Yes","N","Y"),"Y") -> Y | R19: Y | S19: N | T19: Y | U19: Y | V19: Y | W19: =IFERROR(LEFT(dms_MAIFI_flag),"N") -> N | X19: =IF('AER CF'!$C19="Vic","Y","N") -> N
B20: Ergon Energy | C20: Qld | D20: Electricity | E20: Distribution | G20: Y | H20: N | I20: Y | J20: Y | K20: N | L20: N | M20: N | N20: N | O20: N | P20: N | Q20: =IFERROR(IF(dms_MAIFI_flag="Yes","N","Y"),"Y") -> Y | R20: Y | S20: N | T20: Y | U20: Y | V20: N | W20: =IFERROR(LEFT(dms_MAIFI_flag),"N") -> N | X20: =IF('AER CF'!$C20="Vic","Y","N") -> N
B21: Essential Energy | C21: NSW | D21: Electricity | E21: Distribution | G21: Y | H21: N | I21: Y | J21: Y | K21: N | L21: N | M21: N | N21: Y | O21: N | P21: N | Q21: =IFERROR(IF(dms_MAIFI_flag="Yes","N","Y"),"Y") -> Y | R21: Y | S21: N | T21: Y | U21: Y | V21: N | W21: =IFERROR(LEFT(dms_MAIFI_flag),"N") -> N | X21: =IF('AER CF'!$C21="Vic","Y","N") -> N
B22: Evoenergy Distribution | C22: ACT | D22: Electricity | E22: Distribution | G22: Y | H22: N | I22: Y | J22: Y | K22: Y | L22: Y | M22: N | N22: Y | O22: N | P22: Y | Q22: =IFERROR(IF(dms_MAIFI_flag="Yes","N","Y"),"Y") -> Y | R22: Y | S22: N | T22: Y | U22: Y | V22: N | W22: =IFERROR(LEFT(dms_MAIFI_flag),"N") -> N | X22: =IF('AER CF'!$C22="Vic","Y","N") -> N
B23: Evoenergy Distribution (Tx Assets) | C23: ACT | D23: Electricity | E23: Distribution | G23: Y | H23: N | I23: Y | J23: Y | K23: Y | L23: Y | M23: N | N23: Y | O23: N | P23: Y | Q23: =IFERROR(IF(dms_MAIFI_flag="Yes","N","Y"),"Y") -> Y | R23: Y | S23: N | T23: Y | U23: Y | V23: N | W23: =IFERROR(LEFT(dms_MAIFI_flag),"N") -> N | X23: =IF('AER CF'!$C23="Vic","Y","N") -> N
B24: Jemena Electricity | C24: Vic | D24: Electricity | E24: Distribution | G24: N | H24: N | K24: N | L24: N | M24: N | N24: N | O24: N | P24: N | Q24: =IFERROR(IF(dms_MAIFI_flag="Yes","N","Y"),"Y") -> Y | R24: N | S24: N | T24: N | U24: Y | V24: N | W24: =IFERROR(LEFT(dms_MAIFI_flag),"N") -> N | X24: =IF('AER CF'!$C25="Vic","Y","N") -> Y
B25: JGN | C25: Vic | D25: Gas | E25: Distribution | F25: - | G25: - | H25: - | I25: - | J25: - | K25: - | L25: - | M25: - | N25: - | O25: - | P25: - | Q25: - | R25: - | S25: - | T25: - | U25: - | V25: - | W25: - | X25: - | Y25: -
B26: Murraylink | C26: SA | D26: Electricity | E26: Transmission | G26: N | K26: N | L26: N | M26: N | N26: N | O26: N | P26: - | Q26: =IFERROR(IF(dms_MAIFI_flag="Yes","N","Y"),"Y") -> Y | R26: N | S26: N | T26: Y | U26: Y | V26: N | W26: =IFERROR(LEFT(dms_MAIFI_flag),"N") -> N | X26: =IF('AER CF'!$C26="Vic","Y","N") -> N
B27: Power and Water | C27: NT | D27: Electricity | E27: Distribution | G27: N | H27: N | K27: N | L27: Y | M27: N | N27: N | O27: N | P27: Y | Q27: =IFERROR(IF(dms_MAIFI_flag="Yes","N","Y"),"Y") -> Y | R27: Y | S27: Y | T27: Y | U27: Y | V27: N | W27: =IFERROR(LEFT(dms_MAIFI_flag),"N") -> N | X27: =IF('AER CF'!$C27="Vic","Y","N") -> N
B28: Powercor Australia | C28: Vic | D28: Electricity | E28: Distribution | G28: N | H28: N | K28: N | L28: N | M28: N | N28: N | O28: N | P28: N | Q28: =IFERROR(IF(dms_MAIFI_flag="Yes","N","Y"),"Y") -> Y | R28: N | S28: N | T28: N | U28: Y | V28: N | W28: =IFERROR(LEFT(dms_MAIFI_flag),"N") -> N | X28: =IF('AER CF'!$C28="Vic","Y","N") -> Y
B29: Powerlink | C29: Qld | D29: Electricity | E29: Transmission | G29: N | K29: N | L29: N | M29: N | N29: N | O29: N | P29: - | Q29: =IFERROR(IF(dms_MAIFI_flag="Yes","N","Y"),"Y") -> Y | R29: N | S29: N | T29: Y | U29: Y | V29: N | W29: =IFERROR(LEFT(dms_MAIFI_flag),"N") -> N | X29: =IF('AER CF'!$C29="Vic","Y","N") -> N
B30: Roma to Brisbane Pipeline | C30: Qld | D30: Gas | E30: Transmission | F30: - | G30: - | H30: - | I30: - | J30: - | K30: - | L30: - | M30: - | N30: - | O30: - | P30: - | Q30: - | R30: - | S30: - | T30: - | U30: - | V30: - | W30: - | X30: - | Y30: -
B31: SA Power Networks | C31: SA | D31: Electricity | E31: Distribution | G31: Y | H31: N | K31: N | L31: N | M31: N | N31: N | O31: N | P31: N | Q31: =IFERROR(IF(dms_MAIFI_flag="Yes","N","Y"),"Y") -> Y | R31: Y | S31: N | T31: Y | U31: N | V31: N | W31: =IFERROR(LEFT(dms_MAIFI_flag),"N") -> N | X31: =IF('AER CF'!$C31="Vic","Y","N") -> N
B32: TasNetworks (D) | C32: Tas | D32: Electricity | E32: Distribution | G32: Y | H32: N | K32: N | L32: N | M32: N | N32: N | O32: N | P32: N | Q32: =IFERROR(IF(dms_MAIFI_flag="Yes","N","Y"),"Y") -> Y | R32: Y | S32: N | T32: Y | U32: Y | V32: N | W32: =IFERROR(LEFT(dms_MAIFI_flag),"N") -> N | X32: =IF('AER CF'!$C32="Vic","Y","N") -> N
B33: TasNetworks (T) | C33: Tas | D33: Electricity | E33: Transmission | G33: N | K33: N | L33: N | M33: N | N33: N | O33: N | P33: - | Q33: =IFERROR(IF(dms_MAIFI_flag="Yes","N","Y"),"Y") -> Y | R33: N | S33: N | T33: Y | U33: Y | V33: N | W33: =IFERROR(LEFT(dms_MAIFI_flag),"N") -> N | X33: =IF('AER CF'!$C33="Vic","Y","N") -> N
B34: TransGrid | C34: NSW | D34: Electricity | E34: Transmission | G34: N | K34: N | L34: N | M34: N | N34: N | O34: N | P34: - | Q34: =IFERROR(IF(dms_MAIFI_flag="Yes","N","Y"),"Y") -> Y | R34: N | S34: N | T34: Y | U34: Y | V34: N | W34: =IFERROR(LEFT(dms_MAIFI_flag),"N") -> N | X34: =IF('AER CF'!$C34="Vic","Y","N") -> N
B35: United Energy | C35: Vic | D35: Electricity | E35: Distribution | G35: N | H35: N | K35: N | L35: N | M35: N | N35: N | O35: N | P35: N | Q35: =IFERROR(IF(dms_MAIFI_flag="Yes","N","Y"),"Y") -> Y | R35: N | S35: N | T35: N | U35: Y | V35: N | W35: =IFERROR(LEFT(dms_MAIFI_flag),"N") -> N | X35: =IF('AER CF'!$C35="Vic","Y","N") -> Y
B38: Confidential
B39: Amended
B41: Worksheet 6.2 STPIS reliability
B42: Formula | F42: Applied to:
B44: =INDEX(dms_CBD_flag,MATCH(dms_TradingName,dms_TradingName_List))="NO" | F44: $D$11,$D$17,$D$23,$D$33,$D$39,$D$45,$D$55,$D$61,$D$67,$D$77,$D$83,$D$89
B45: =INDEX(dms_Urban_flag,MATCH(dms_TradingName,dms_TradingName_List))="NO" | F45: $D$12,$D$18,$D$24,$D$56,$D$62,$D$78,$D$68,$D$84
B46: =INDEX(dms_ShortRural_flag,MATCH(dms_TradingName,dms_TradingName_List))="NO" | F46: $D$13,$D$19,$D$25,$D$57,$D$63,$D$69,$D$79,$D$85
B47: =INDEX(dms_LongRural_flag,MATCH(dms_TradingName,dms_TradingName_List))="NO" | F47: $D$14,$D$20,$D$26,$D$58,$D$64,$D$65,$D$70,$D$71,$D$80,$D$86
B48: =INDEX(dms_FeederType_5_flag,MATCH(dms_TradingName,dms_TradingName_List))="NO" | F48: $D$87,$D$81,$D$71,$D$65,$D$59,$D$49,$D$43,$D$37,$D$21,$D$15
B49: =dms_MAIFI_Flag="No" | F49: $D$55:$D$72
B52: Business & other details
B53: =(INDEX(dms_Model_Span,MATCH(dms_Model,dms_Model_List))>1)
B54: =(INDEX(dms_Model_Span,MATCH(dms_Model,dms_Model_List))=1)
B57: STYLES IN USE
B58: HEADING ONE | C58: dms_1
B59: HEADING TWO | C59: dms_2
B60: HEADING THREE | C60: dms_3
B61: HEADING FOUR | C61: dms_4
B62: HEADING FIVE | C62: dms_5
B63: 5.111 | C63: dms_NUM
B64: 0.0545 | C64: dms_NUM%
B65: 5.5555 | C65: dms_NUM3d
B66: Text description | C66: dms_Row_Locked
B67: Text description | C67: dms_Row1
B68: Text description | C68: dms_Row2
B69: Total | C69: dms_T1
B70: Total | C70: dms_T2
B71: EXPENSES | C71: dms_BH
B72: 2019 | C72: dms_BY1
B73: 2019 | C73: dms_BY2
B74: VOLUMES | C74: dms_GH
B75: 2019 | C75: dms_GY1
B76: 2019 | C76: dms_GY2

Sheet AER NRs (hidden)
B1: AER NAMED RANGES
B3: DROP DOWN SELECTORS USED IN WORKBOOKS
B5: COVER SHEET | C5: dms_DataQuality_List | D5: dms_Confid_status_List
C6: -- select -- | D6: -- select --
C7: Actual | D7: Public
C8: Estimate | D8: Confidential
C9: Consolidated
C12: For all files either AER or business needs to be able to specify the type of submission | D12: For PTRM & RFM templates we must provide a choice in case they change their form of control - otherwise it is drawn from the business specific lookup table above.
C13: dms_SourceList | D13: dms_FormControl_Choices
C14: -- select -- | D14: Revenue cap
C15: After appeal | D15: Revenue yield
C16: Draft decision | D16: Tariff cap
C17: Final decision | D17: Weighted average price cap
C18: PTRM update 1
C19: PTRM update 2
C20: PTRM update 3
C21: PTRM update 4
C22: PTRM update 5
C23: PTRM update 6
C24: PTRM update 7
C25: Reallocated
C26: Recast
C27: Regulatory proposal
C28: Reporting
C29: Revised regulatory proposal
K32: This is used to create an image to insert on 6.3 STPIS sheet - not for dropdown lists. | N32: GAS
B33: CA & RESET RINS DNSP | C33: dms_DNSP_020301_SubstationType | D33: dms_DNSP_020301_ProjectType | E33: dms_DNSP_020301_ProjectTrigger | F33: dms_DNSP_020302_ProjectType | G33: dms_DNSP_020302_ProjectTrigger | H33: dms_STPIS_Exclusion_List | I33: dms_Reason_Interruption | J33: dms_Reason_Interruption_Detailed | K33: Reason for interruption | N33: dms_N0205_AssetType
C34: Subtransmission substation | D34: New substation establishment | E34: Demand growth | F34: New line on new route - single circuit | G34: Demand growth | H34: Weather | I34: Animal | J34: Animal impact | K34: Animal | L34: Animal impact | N34: Cast Iron
C35: Zone substation | D35: Substation upgrade - capacity | E35: Voltage issues | F35: New line on new route - dual circuit | G35: Voltage issues | H35: Equipment failure | I35: Asset failure | J35: Animal nesting/burrowing, etc and other | L35: Animal nesting/burrowing, etc and other | N35: PVC
C36: Switching station | D36: Substation upgrade - voltage | E36: Reactive power issue | F36: New line on new route - other | G36: Reactive power issue | H36: Operational error | I36: Other | J36: Other | L36: Other | N36: Polyamide
C37: Other | D37: Other | E37: Fault level issues | F37: Line rebuild over existing route - single circuit | G37: Fault level issues | H37: Vegetation | I37: Overloads | J37: LV | K37: Asset failure | L37: LV | N37: High density polyethylene (80)
E38: Safety | F38: Line rebuild over existing route - dual circuit | G38: Net market benefit | H38: Animals | I38: Planned | J38: Distribution substation | L38: Distribution substation | N38: High density polyethylene (100)
E39: Environment | F39: Reconductor - Single circuit | G39: Safety | H39: Third party impacts | I39: Network business | J39: HV | L39: HV | N39: High density polyethylene (250)
E40: Other | F40: Reconductor - Dual circuit | G40: Environment | H40: Transmission failure | I40: Third party | J40: Zone substation | L40: Zone substation | N40: High density polyethylene (575)
F41: Reconductor - Other | G41: Other | H41: Load shedding | I41: Unknown | J41: Subtransmission | L41: Subtransmission | N41: Medium density polyethylene
F42: Line upgrade - raising/retensoring | H42: Inter-distributor connection failure | I42: Vegetation | J42: insert description of 'other' | K42: Other | L42: insert description of 'other' | N42: Unprotected steel
F43: Line upgrade - voltage upgrade | H43: Other | I43: Weather | J43: Network error | K43: Overloads | N43: Protected steel
F44: Line upgrade - capacity | I44: 2 - STPIS Exclusion (3.3)(a) | J44: Switching and protection error | K44: Planned | N44: Other
F45: String spare circuit | I45: 3 - STPIS Exclusion (3.3)(a) | J45: Fire | K45: Network business | L45: Network error
F46: Other | I46: 4 - STPIS Exclusion (3.3)(a) | J46: Other | L46: Switching and protection error
I47: 5 - STPIS Exclusion (3.3)(a) | J47: Dig-in | K47: Third party | L47: Fire
I48: 6 - STPIS Exclusion (3.3)(a) | J48: Unauthorised access | L48: Other
I49: 7 - STPIS Exclusion (3.3)(a) | J49: Vehicle impact | L49: Dig-in
J50: Unknown | L50: Unauthorised access
J51: Blow-in/Fall-in - NSP responsibility | L51: Vehicle impact
J52: Grow-in - NSP responsibility | K52: Unknown | L52: Unknown
J53: Blow-in/Fall-in - Other responsible party | K53: Vegetation | L53: Blow-in/Fall-in - NSP responsibility
J54: Grow-in - Other responsible party | L54: Grow-in - NSP responsibility
L55: Blow-in/Fall-in - Other responsible party
L56: Grow-in - Other responsible party
K57: Weather
K58: 2 - STPIS Exclusion (3.3)(a)
K59: 3 - STPIS Exclusion (3.3)(a)
K60: 4 - STPIS Exclusion (3.3)(a)
K61: 5 - STPIS Exclusion (3.3)(a)
K62: 6 - STPIS Exclusion (3.3)(a)
K63: 7 - STPIS Exclusion (3.3)(a)
B66: CA & RESET RINS TNSP | C66: dms_TNSP_0203_SubstationType | D66: dms_TNSP_020301_ProjectType | E66: dms_TNSP_020301_ProjectTrigger | F66: dms_TNSP_020302_ProjectType | G66: dms_TNSP_0203_ProjectTrigger
C67: Terminal station | D67: New substation establishment | E67: Demand growth | F67: New line on new route - single circuit | G67: Demand growth
C68: Switching station | D68: Capacity upgrade | E68: Voltage issues | F68: New line on new route - dual circuit | G68: Voltage issues
C69: Transmission substation | D69: Voltage upgrade | E69: Reactive power issue | F69: New line on new route - other | G69: Reactive power issue
C70: Other | D70: Other | E70: Fault level issues | F70: Line rebuild over existing route - single circuit | G70: Fault level issues
E71: Net market benefit | F71: Line rebuild over existing route - dual circuit | G71: Net market benefit
E72: Safety | F72: Reconductor - Single circuit | G72: Safety
E73: Environment | F73: Reconductor - Dual circuit | G73: Environment
E74: Other | F74: Reconductor - Other | G74: Other
F75: Line upgrade - raising/retensoring
F76: Line upgrade - voltage upgrade
F77: Line upgrade - capacity
F78: String spare circuit
F79: Other
B83: NAMED RANGES USED IN ETL PROCESS
M84: GAS ARR & RESET
B85: CA & RESET RINS DNSP ONLY | C85: dms_020303_01_UOM | D85: dms_020501_01_UOM | E85: dms_020501_02_UOM | F85: dms_020501_03_UOM | G85: dms_020501_04_UOM | H85: dms_020701_01_UOM | I85: dms_020701_02_UOM | J85: dms_020701_01_Rows | K85: dms_040102_01_UOM | L85: dms_040102_04_UOM | M85: dms_S140101_UOM | N85: dms_S140201_UOM | O85: dms_E050201_UOM | P85: dms_E050202_UOM
C86: Circuit line length in km | D86: 0's | E86: 0's | F86: 0's | G86: 0's | H86: km | I86: km | J86: Route line length within zone | K86: 0's | L86: days | M86: number | N86: number per km | O86: per metre per connection | P86: metres per connection
C87: Circuit line length in km | D87: 0's | E87: 0's | F87: 0's | G87: 0's | H87: 0's | I87: 0's | J87: Number of maintenance spans | K87: 0's | L87: 0's | M87: number | N87: number | O87: per service per connection | P87: number per connection
C88: Circuit line length in km | D88: MVA added | E88: MVA added | F88: MVA added | G88: MVA added | H88: km | I88: km | J88: Total length of maintenance spans | K88: 0's | L88: $0s | M88: number | N88: number | O88: number per connection | P88: number per connection
C89: Circuit line length in km | D89: 0's | E89: 0's | F89: 0's | G89: 0's | H89: km | I89: km | J89: Length of vegetation corridors | K89: $0s | L89: 0's | M89: km
C90: Number | D90: total spend $0s | E90: total spend $0s | F90: total spend $0s | G90: total spend $0s | H90: 0's | I90: 0's | J90: Average number of trees per maintenance span
C91: Number | D91: net circuit km added | E91: net circuit km added | F91: net circuit km added | G91: net circuit km added | H91: years | I91: years | J91: Average frequency of cutting cycle
C92: Number | D92: total spend $0s | E92: total spend $0s | F92: total spend $0s | G92: total spend $0s
D93: net circuit km added | E93: net circuit km added | F93: net circuit km added | G93: net circuit km added
D94: total spend $0s | E94: total spend $0s | F94: total spend $0s | G94: total spend $0s
D95: 0's | F95: $0s
D96: 0's
D97: 0's
D98: $0s
B101: CA & RESET RINS TNSP ONLY | C101: dms_020701_01_UOM
C102: km
C103: 0's
C104: km
C105: 0's
C106: km
C107: metres
C108: years
B111: CA & RESET RINS DNSP & TNSP | C111: dms_020603_01_UOM
C112: 0's
C113: 0's
C114: 0's
C115: 0's
C116: (per cent)
B119: EB & RESET RINS DNSP ONLY | C119: dms_030601_01_UOM | D119: dms_030601_02_UOM | E119: dms_030701_01_UOM | F119: dms_030702_01_UOM | G119: dms_030703_01_UOM
C120: minutes/customer | D120: minutes/customer | E120: Customer / km | F120: % | G120: km
C121: minutes/customer | D121: minutes/customer | E121: MWh/customer | F121: Number of spans
C122: interruptions/customer | D122: interruptions/customer | E122: kVA / customer | F122: Number of spans
C123: interruptions/customer | D123: interruptions/customer | F123: Number of spans
F124: Number of spans
F125: Years
F126: Years
F127: Trees
F128: Trees
F129: Defects
F130: Defects
F131: Spans
F132: km
F133: Spans
C135: WHEN INSERTING COVER SHEET INTO A TNSP FILE - APPLY THESE NAMED RANGES
B136: EB & RESET RINS TNSP ONLY | C136: dms_030601_01_UOM | E136: dms_030701_01_UOM | F136: dms_030702_01_UOM
C137: % | E137: Number of spans | F137: km
C138: number | E138: Years | F138: %
C139: number | E139: Trees | F139: km
C140: % | E140: Defects | F140: number
C141: number | E141: Number of spans
C142: number | E142: km
C143: % | E143: km
C144: number | E144: Number of spans
C145: number
C146: %
C147: number
C148: %
C149: number
C150: %
C151: number
B153: EB & RESET RINS DNSP & TNSP | C153: dms_EB_RAB_PIT
C154: Beginning of year
C155: End of year
C156: End of year
C157: End of year
C158: End of year
C159: End of year
B161: ARR DNSP ONLY | C161: dms_030605_UOM | D161: dms_03060703_UOM | E161: dms_E020202_UOM | F161: Spare
C162: number | D162: number | E162: Length of mains replaced
C163: number | D163: number | E163: Number of services replaced
C164: number | D164: number
C165: number | D165: number
C166: number | D166: (per cent)
C167: number
C168: number
C169: number
C170: number
C171: number
C172: number
C173: number
C174: (per cent)
C175: (per cent)
B177: RFM | C177: dms_Beg | D177: dms_Mid | E177: dms_End
C178: Beginning of year | D178: Mid year | E178: End of Year
B180: PTRM | C180: dms_PTRM_RAB_PIT | D180: dms_PTRM_TAB_PIT | E180: DMS_Xfactor
C181: Beginning of year | D181: Beginning of year | E181: x factors
C182: End of year | D182: End of year
C183: End of year | D183: End of year
C184: End of year | D184: End of year
C185: End of year
B188: STPIS & MIC NAMED RANGES
B190: These "row descriptions" are the column headings in the various templates but become row descriptions in the ETL process
B192: Table 6.3 sustained interruptions - row descriptions | C192: dms_060301_CustNo_Affected_Row | D192: dms_060301_Avg_Duration_Sustained_Int_Row | E192: dms_060301_Effect_unplanned_SAIDI_Row | F192: dms_060301_Effect_unplanned_SAIFI_Row
C193: Number of customers affected by the interruption | D193: Average duration of sustained customer interruption | E193: Effect on unplanned SAIDI | F193: Effect on unplanned SAIFI
B196: Table 6.1 telephone answering - row descriptions and start date | C196: dms_060101_Rows | D196: dms_060102_Rows | E196: dms_060101_StartDateTxt
C197: Total number of calls (after removing excluded events) | D197: Number of calls answered within 30 seconds (after excluding excluded events) | E197: =dms_060701_StartDateTxt -> 1-Jul-2017
B200: Table 6.8.1 - row descriptions | C200: dms_060801_01_Rows | D200: dms_060801_02_Rows | E200: dms_060801_03_Rows | F200: dms_060801_04_Rows
C201: Number of interruptions | D201: Duration of interruptions | E201: Total unplanned minutes off supply | F201: Effect on unplanned MAIFI
B204: Table 7.9.4 - market impact component - row descriptions | C204: dms_070904_01_Rows | D204: without exclusions | E204: with exclusions
B207: These headings (Lists) are determined from the INDEX/MATCH function on the NSP selected on the Business & other details sheet
B209: Table 6.7.1 - daily performance data - unplanned - MAIFI -- row descriptions and header named range values | C209: dms_060701_Feeder_Header_Lvl4 | D209: =INDEX(dms_FeederName_1,MATCH(dms_TradingName,dms_TradingName_List)) -> CBD | E209: =INDEX(dms_FeederName_1,MATCH(dms_TradingName,dms_TradingName_List)) -> CBD | F209: =INDEX(dms_FeederName_2,MATCH(dms_TradingName,dms_TradingName_List)) -> Urban | G209: =INDEX(dms_FeederName_2,MATCH(dms_TradingName,dms_TradingName_List)) -> Urban | H209: =INDEX(dms_FeederName_3,MATCH(dms_TradingName,dms_TradingName_List)) -> Short rural | I209: =INDEX(dms_FeederName_3,MATCH(dms_TradingName,dms_TradingName_List)) -> Short rural | J209: =INDEX(dms_FeederName_4,MATCH(dms_TradingName,dms_TradingName_List)) -> Long rural | K209: =INDEX(dms_FeederName_4,MATCH(dms_TradingName,dms_TradingName_List)) -> Long rural | L209: =IF((INDEX(dms_FeederName_5,MATCH(dms_TradingName,dms_TradingName_List))=0),"Network",(INDEX(dms_FeederName_5,MATCH(dms_TradingName,dms_TradingName_List)))) -> Network | M209: =IF((INDEX(dms_FeederName_5,MATCH(dms_TradingName,dms_TradingName_List))=0),"Network",(INDEX(dms_FeederName_5,MATCH(dms_TradingName,dms_TradingName_List)))) -> Network | N209: Network | O209: Network
C211: dms_060701_Rows | D211: All events | E211: After removing excluded events | F211: All events | G211: After removing excluded events | H211: All events | I211: After removing excluded events | J211: All events | K211: After removing excluded events | L211: All events | M211: After removing excluded events | N211: All events | O211: After removing excluded events
D212: the number of column headings changes from 10 to 12 depending on the number of feeder categories for the NSP
C214: dms_0603_FeederList | D214: =INDEX(dms_FeederName_1,MATCH(dms_TradingName,dms_TradingName_List)) -> CBD | E214: =INDEX(dms_FeederName_2,MATCH(dms_TradingName,dms_TradingName_List)) -> Urban | F214: =INDEX(dms_FeederName_3,MATCH(dms_TradingName,dms_TradingName_List)) -> Short rural | G214: =INDEX(dms_FeederName_4,MATCH(dms_TradingName,dms_TradingName_List)) -> Long rural
B217: Use these to add to specific worksheets in existing files | C217: Use these to add to specific worksheets in existing files
B220: ARRs 6.7 STPIS daily performance | C220: dms_060101_Values | D220: dms_060102_Values | E220: dms_060701_Values
C221: dms_LeapYear
B224: ARR's 6.8 STPIS exclusions | C224: dms_060801_Event_Date | D224: dms_060801_OutageID | E224: dms_060801_FeederID | F224: dms_060801_FeederClass | G224: dms_060801_CauseID | H224: dms_060801_01_Values | I224: dms_060801_02_Values | J224: dms_060801_03_Values | K224: dms_060801_Excl_Cat | L224: dms_060801_04_Values
C225: dms_060801_StartCell
B228: CA 6.3 sustained interruptions | C228: dms_060301_Event_Date | D228: dms_060301_Event_Time | E228: dms_060301_AssetID | F228: dms_060301_FeederClass | G228: dms_060301_Reason | H228: dms_060301_DetailedReason | I228: dms_060301_CustNo_Affected_Values | J228: dms_060301_Avg_Duration_Sustained_Int_Values | K228: dms_060301_Effect_unplanned_SAIDI_Values | L228: dms_060301_Effect_unplanned_SAIFI_Values | M228: dms_060301_MED
B232: PTRM input sheet | C232: DMS_50_01_01a | D232: DMS_50_01_01aa | E232: DMS_50_01_01b | F232: DMS_50_01_01bb | G232: DMS_50_01_01c | H232: DMS_50_01_01d | I232: DMS_50_01_01dd

Sheet AER lookups (hidden)
B1: AER LOOKUP TABLES
B3: Template number | C3: 5
Y5: FOR ELECTRICITY BUSINESSES ONLY
Y6: Feeder Types | AC6: TasNetworks (D) | AD6: Feeder Names
Y8: CBD | Z8: Urban | AA8: Short rural | AB8: long rural | AC8: EXTRA
B9: dms_TradingName_List | C9: dms_TradingNameFull_List | D9: dms_ABN_List | E9: dms_JurisdictionList | F9: dms_Sector_List | G9: dms_Segment_List | H9: dms_FormControl_List | I9: dms_RPT_List | J9: dms_RPTMonth_List | K9: dms_CRCPlength_List | L9: dms_FRCPlength_List | M9: dms_PRCPlength_List | N9: dms_663_List | O9: dms_Addr1_List | P9: dms_Addr2_List | Q9: dms_Suburb_List | R9: dms_State_List | S9: dms_PostCode_List | T9: dms_PAddr1_List | U9: dms_PAddr2_List | V9: dms_PSuburb_List | W9: dms_PState_List | X9: dms_PPostCode_List | Y9: dms_CBD_flag | Z9: dms_Urban_flag | AA9: dms_ShortRural_flag | AB9: dms_LongRural_flag | AC9: dms_FeederType_5_flag | AD9: dms_FeederName_1 | AE9: dms_FeederName_2 | AF9: dms_FeederName_3 | AG9: dms_FeederName_4 | AH9: dms_FeederName_5 | AI9: dms_Public_Lighting_List | AJ9: Name
B10: Australian Transmission Co. | C10: Australian Transmission Co. | D10: 11222333444 | E10: NSW | F10: Electricity | G10: Transmission | H10: Revenue cap | I10: Financial | J10: June | K10: 5 | L10: 5 | M10: 5 | N10: 5 | O10: 123 Straight Street | Q10: SYDNEY | R10: NSW | S10: 2000 | T10: PO Box 123 | V10: SYDNEY | W10: NSW | X10: 2000 | Y10: NO | Z10: NO | AA10: NO | AB10: NO | AC10: NO | AD10: CBD | AE10: Urban | AF10: Short rural | AG10: Long rural | AI10: NO | AJ10: =B10 -> Australian Transmission Co.
B11: Directlink | C11: Directlink | D11: 16779340889 | E11: Qld | F11: Electricity | G11: Transmission | H11: Revenue cap | I11: Financial | J11: June | K11: 5 | L11: 5 | M11: 5 | N11: 5 | O11: Level 25 | P11: 580 George Street | Q11: SYDNEY | R11: NSW | S11: 2000 | T11: PO Box R41 | V11: ROYAL EXCHANGE | W11: NSW | X11: 1225 | Y11: NO | Z11: NO | AA11: NO | AB11: NO | AC11: NO | AD11: CBD | AE11: Urban | AF11: Short rural | AG11: Long rural | AI11: NO | AJ11: =B11 -> Directlink
B12: Murraylink | C12: Murraylink | D12: 79181207909 | E12: SA | F12: Electricity | G12: Transmission | H12: Revenue cap | I12: Financial | J12: June | K12: 5 | L12: 5 | M12: 5 | N12: 5 | O12: Level 19 | P12: 580 George Street | Q12: SYDNEY | R12: NSW | S12: 2000 | T12: PO Box R41 | V12: ROYAL EXCHANGE | W12: NSW | X12: 1225 | Y12: NO | Z12: NO | AA12: NO | AB12: NO | AC12: NO | AD12: CBD | AE12: Urban | AF12: Short rural | AG12: Long rural | AI12: NO | AJ12: =B12 -> Murraylink
B13: TasNetworks (T) | C13: TasNetworks (T) | D13: 24167357299 | E13: Tas | F13: Electricity | G13: Transmission | H13: Revenue cap | I13: Financial | J13: June | K13: 5 | L13: 5 | M13: 5 | N13: 5 | O13: 1-7 Maria Street | Q13: LENAH VALLEY | R13: Tas | S13: 7008 | T13: PO Box 606 | V13: MOONAH | W13: Tas | X13: 7009 | Y13: NO | Z13: NO | AA13: NO | AB13: NO | AC13: NO | AD13: CBD | AE13: Urban | AF13: Short rural | AG13: Long rural | AI13: NO | AJ13: =B13 -> TasNetworks (T)
B14: TransGrid | C14: NSW Electricity Networks Operations Pty Ltd trading as TransGrid | D14: 70 250 995 390 | E14: NSW | F14: Electricity | G14: Transmission | H14: Revenue cap | I14: Financial | J14: June | K14: 5 | L14: 5 | M14: 4 | N14: 5 | O14: 180 Thomas Street | Q14: SYDNEY | R14: NSW | S14: 2000 | T14: PO Box A1000 | V14: SYDNEY SOUTH | W14: NSW | X14: 1235 | Y14: NO | Z14: NO | AA14: NO | AB14: NO | AC14: NO | AD14: CBD | AE14: Urban | AF14: Short rural | AG14: Long rural | AI14: NO | AJ14: =B14 -> TransGrid
B19: The Reg Year Ending (dms_RYE) must be set to the last year of the regulatory period. For forecast data is is usually (FRCP_y5) for actual it is a single year (CRY). For historical actual data the RYE will need to be set manually in the business details sheet by setting the dms_Multiyear_flag to 1 and putting the correct value in 'dms_Specified_FinalYear. See cells C67:C68
B20: dms_Model_List | C20: dms_Model_Name_Format1 | D20: dms_Worksheet_List | E20: dms_Model_Span_List
B21: ARR | C21: Annual Reporting | D21: =IF(dms_MultiYear_ResponseFlag="yes","NEW HISTORICAL ANNUAL REPORTING","ANNUAL REPORTING") -> ANNUAL REPORTING | E21: 1
B22: CA | C22: Category Analysis | D22: =IF(dms_MultiYear_ResponseFlag="yes","NEW HISTORICAL CATEGORY ANALYSIS","CATEGORY ANALYSIS") -> CATEGORY ANALYSIS | E22: 1
B23: CESS | C23: Capitlal Expenditure | D23: CAPITLAL EXPENDITURE SHARING SCHEMING | E23: 5
B24: CPI | C24: CPI | D24: CPI | E24: 5
B25: EB | C25: Economic Benchmarking | D25: =IF(dms_MultiYear_ResponseFlag="yes","NEW HISTORICAL ECONOMIC BENCHMARKING","ECONOMIC BENCHMARKING") -> ECONOMIC BENCHMARKING | E25: 1
B26: EBSS | C26: Efficiency Benefit Sharing Scheme | D26: EFFICIENCY BENEFIT SHARING SCHEME | E26: 5
B27: Pricing | C27: Pricing Proposal | D27: PRICING PROPOSAL | E27: 5
B28: Profitability | C28: Profitability | D28: PROFITABILITY | E28: 5
B29: PTRM | C29: Post Tax Revenue Model | D29: POST TAX REVENUE MODEL | E29: 5
B30: Reset | C30: Regulatory Reporting (Reset) | D30: REGULATORY REPORTING STATEMENT | E30: 5
B31: RFM | C31: Roll Forward Model | D31: ROLL FORWARD MODEL | E31: 5
B32: WACC | C32: Weighted Average Cost of Capital | D32: WEIGHTED AVERAGE COST OF CAPITAL | E32: 1
B36: Financial | C36: Calendar | E36: PREVIOUS | G36: CURRENT | I36: FORTHCOMING
B37: 1987-88 | C37: 1988 | D37: PRCP_y1 | E37: =INDEX(INDIRECT(dms_RPT),dms_PRCP_start_row) -> 2014-15 | F37: CRCP_y1 | G37: =INDEX(INDIRECT(dms_RPT),dms_CRCP_start_row) -> 2019-20 | H37: =FRCP_y1 -> 2024-25 | I37: =INDEX(INDIRECT(dms_RPT),dms_FRCP_start_row) -> 2024-25
B38: 1988-89 | C38: 1989 | D38: PRCP_y2 | E38: =INDEX(INDIRECT(dms_RPT),dms_PRCP_start_row+1) -> 2015-16 | F38: CRCP_y2 | G38: =INDEX(INDIRECT(dms_RPT),dms_CRCP_start_row+1) -> 2020-21 | H38: FRCP_y2 | I38: =INDEX(INDIRECT(dms_RPT),dms_FRCP_start_row+1) -> 2025-26
B39: 1989-90 | C39: 1990 | D39: PRCP_y3 | E39: =INDEX(INDIRECT(dms_RPT),dms_PRCP_start_row+2) -> 2016-17 | F39: CRCP_y3 | G39: =INDEX(INDIRECT(dms_RPT),dms_CRCP_start_row+2) -> 2021-22 | H39: FRCP_y3 | I39: =INDEX(INDIRECT(dms_RPT),dms_FRCP_start_row+2) -> 2026-27
B40: 1990-91 | C40: 1991 | D40: PRCP_y4 | E40: =INDEX(INDIRECT(dms_RPT),dms_PRCP_start_row+3) -> 2017-18 | F40: CRCP_y4 | G40: =INDEX(INDIRECT(dms_RPT),dms_CRCP_start_row+3) -> 2022-23 | H40: FRCP_y4 | I40: =INDEX(INDIRECT(dms_RPT),dms_FRCP_start_row+3) -> 2027-28
B41: 1991-92 | C41: 1992 | D41: PRCP_y5 | E41: =INDEX(INDIRECT(dms_RPT),dms_PRCP_start_row+4) -> 2018-19 | F41: CRCP_y5 | G41: =INDEX(INDIRECT(dms_RPT),dms_CRCP_start_row+4) -> 2023-24 | H41: FRCP_y5 | I41: =INDEX(INDIRECT(dms_RPT),dms_FRCP_start_row+4) -> 2028-29
B42: 1992-93 | C42: 1993 | D42: PRCP_y6 | E42: =INDEX(INDIRECT(dms_RPT),dms_PRCP_start_row+5) -> 2019-20 | F42: CRCP_y6 | G42: =INDEX(INDIRECT(dms_RPT),dms_CRCP_start_row+5) -> 2024-25 | H42: FRCP_y6 | I42: =INDEX(INDIRECT(dms_RPT),dms_FRCP_start_row+5) -> 2029-30
B43: 1993-94 | C43: 1994 | D43: PRCP_y7 | E43: =INDEX(INDIRECT(dms_RPT),dms_PRCP_start_row+6) -> 2020-21 | F43: CRCP_y7 | G43: =INDEX(INDIRECT(dms_RPT),dms_CRCP_start_row+6) -> 2025-26 | H43: FRCP_y7 | I43: =INDEX(INDIRECT(dms_RPT),dms_FRCP_start_row+6) -> 2030-31
B44: 1994-95 | C44: 1995 | D44: PRCP_y8 | E44: =INDEX(INDIRECT(dms_RPT),dms_PRCP_start_row+7) -> 2021-22 | F44: CRCP_y8 | G44: =INDEX(INDIRECT(dms_RPT),dms_CRCP_start_row+7) -> 2026-27 | H44: FRCP_y8 | I44: =INDEX(INDIRECT(dms_RPT),dms_FRCP_start_row+7) -> 2031-32
B45: 1995-96 | C45: 1996 | D45: PRCP_y9 | E45: =INDEX(INDIRECT(dms_RPT),dms_PRCP_start_row+8) -> 2022-23 | F45: CRCP_y9 | G45: =INDEX(INDIRECT(dms_RPT),dms_CRCP_start_row+8) -> 2027-28 | H45: FRCP_y9 | I45: =INDEX(INDIRECT(dms_RPT),dms_FRCP_start_row+8) -> 2032-33
B46: 1996-97 | C46: 1997 | D46: PRCP_y10 | E46: =INDEX(INDIRECT(dms_RPT),dms_PRCP_start_row+9) -> 2023-24 | F46: CRCP_y10 | G46: =INDEX(INDIRECT(dms_RPT),dms_CRCP_start_row+9) -> 2028-29 | H46: FRCP_y10 | I46: =INDEX(INDIRECT(dms_RPT),dms_FRCP_start_row+9) -> 2033-34
B47: 1997-98 | C47: 1998 | D47: PRCP_y11 | E47: =INDEX(INDIRECT(dms_RPT),dms_PRCP_start_row+10) -> 2024-25 | F47: CRCP_y11 | G47: =INDEX(INDIRECT(dms_RPT),dms_CRCP_start_row+10) -> 2029-30 | H47: FRCP_y11 | I47: =INDEX(INDIRECT(dms_RPT),dms_FRCP_start_row+10) -> 2034-35
B48: 1998-99 | C48: 1999 | D48: PRCP_y12 | E48: =INDEX(INDIRECT(dms_RPT),dms_PRCP_start_row+11) -> 2025-26 | F48: CRCP_y12 | G48: =INDEX(INDIRECT(dms_RPT),dms_CRCP_start_row+11) -> 2030-31 | H48: FRCP_y12 | I48: =INDEX(INDIRECT(dms_RPT),dms_FRCP_start_row+11) -> 2035-36
B49: 1999-00 | C49: 2000 | D49: PRCP_y13 | E49: =INDEX(INDIRECT(dms_RPT),dms_PRCP_start_row+12) -> 2026-27 | F49: CRCP_y13 | G49: =INDEX(INDIRECT(dms_RPT),dms_CRCP_start_row+12) -> 2031-32 | H49: FRCP_y13 | I49: =INDEX(INDIRECT(dms_RPT),dms_FRCP_start_row+12) -> 2036-37
B50: 2000-01 | C50: 2001 | D50: PRCP_y14 | E50: =INDEX(INDIRECT(dms_RPT),dms_PRCP_start_row+13) -> 2027-28 | F50: CRCP_y14 | G50: =INDEX(INDIRECT(dms_RPT),dms_CRCP_start_row+13) -> 2032-33 | H50: FRCP_y14 | I50: =INDEX(INDIRECT(dms_RPT),dms_FRCP_start_row+13) -> 2037-38
B51: 2001-02 | C51: 2002 | D51: PRCP_y15 | E51: =INDEX(INDIRECT(dms_RPT),dms_PRCP_start_row+14) -> 2028-29 | F51: CRCP_y15 | G51: =INDEX(INDIRECT(dms_RPT),dms_CRCP_start_row+14) -> 2033-34 | H51: FRCP_y15 | I51: =INDEX(INDIRECT(dms_RPT),dms_FRCP_start_row+14) -> 2038-39
B52: 2002-03 | C52: 2003 | D52: PRCP_y16 | E52: =INDEX(INDIRECT(dms_RPT),dms_PRCP_start_row+15) -> 2029-30 | F52: CRCP_y16 | G52: =INDEX(INDIRECT(dms_RPT),dms_CRCP_start_row+15) -> 2034-35 | H52: FRCP_y16 | I52: =INDEX(INDIRECT(dms_RPT),dms_FRCP_start_row+15) -> 2039-40
B53: 2003-04 | C53: 2004
B54: 2004-05 | C54: 2005
B55: 2005-06 | C55: 2006 | E55: CRY - FRY
B56: 2006-07 | C56: 2007 | D56: dms_y1 | E56: =IFERROR(INDEX(INDIRECT(dms_RPT),dms_CRY_start_row),0) -> 2022-23
B57: 2007-08 | C57: 2008 | D57: dms_y2 | E57: =IFERROR(INDEX(INDIRECT(dms_RPT),dms_CRY_start_row+1),0) -> 2023-24
B58: 2008-09 | C58: 2009 | D58: dms_y3 | E58: =IFERROR(INDEX(INDIRECT(dms_RPT),dms_CRY_start_row+2),0) -> 2024-25
B59: 2009-10 | C59: 2010 | D59: dms_y4 | E59: =IFERROR(INDEX(INDIRECT(dms_RPT),dms_CRY_start_row+3),0) -> 2025-26
B60: 2010-11 | C60: 2011 | D60: dms_y5 | E60: =IFERROR(INDEX(INDIRECT(dms_RPT),dms_CRY_start_row+4),0) -> 2026-27
B61: 2011-12 | C61: 2012 | D61: dms_y6 | E61: =IFERROR(INDEX(INDIRECT(dms_RPT),dms_CRY_start_row+5),0) -> 2027-28
B62: 2012-13 | C62: 2013 | D62: dms_y7 | E62: =IFERROR(INDEX(INDIRECT(dms_RPT),dms_CRY_start_row+6),0) -> 2028-29
B63: 2013-14 | C63: 2014 | D63: dms_y8 | E63: =IFERROR(INDEX(INDIRECT(dms_RPT),dms_CRY_start_row+7),0) -> 2029-30
B64: 2014-15 | C64: 2015 | D64: dms_y9 | E64: =IFERROR(INDEX(INDIRECT(dms_RPT),dms_CRY_start_row+8),0) -> 2030-31
B65: 2015-16 | C65: 2016 | D65: dms_y10 | E65: =IFERROR(INDEX(INDIRECT(dms_RPT),dms_CRY_start_row+9),0) -> 2031-32
B66: 2016-17 | C66: 2017 | D66: dms_y11 | E66: =IFERROR(INDEX(INDIRECT(dms_RPT),dms_CRY_start_row+10),0) -> 2032-33
B67: 2017-18 | C67: 2018 | D67: dms_y12 | E67: =IFERROR(INDEX(INDIRECT(dms_RPT),dms_CRY_start_row+11),0) -> 2033-34
B68: 2018-19 | C68: 2019 | D68: dms_y13 | E68: =IFERROR(INDEX(INDIRECT(dms_RPT),dms_CRY_start_row+12),0) -> 2034-35
B69: 2019-20 | C69: 2020 | D69: dms_y14 | E69: =IFERROR(INDEX(INDIRECT(dms_RPT),dms_CRY_start_row+13),0) -> 2035-36
B70: 2020-21 | C70: 2021 | D70: dms_y15 | E70: =IFERROR(INDEX(INDIRECT(dms_RPT),dms_CRY_start_row+14),0) -> 2036-37
B71: 2021-22 | C71: 2022 | D71: dms_y16 | E71: =IFERROR(INDEX(INDIRECT(dms_RPT),dms_CRY_start_row+15),0) -> 2037-38
B72: 2022-23 | C72: 2023
B73: 2023-24 | C73: 2024
B74: 2024-25 | C74: 2025
B75: 2025-26 | C75: 2026
B76: 2026-27 | C76: 2027
B77: 2027-28 | C77: 2028
B78: 2028-29 | C78: 2029
B79: 2029-30 | C79: 2030
B80: 2030-31 | C80: 2031
B81: 2031-32 | C81: 2032
B82: 2032-33 | C82: 2033
B83: 2033-34 | C83: 2034
B84: 2034-35 | C84: 2035
B85: 2035-36 | C85: 2036
B86: 2036-37 | C86: 2037
B87: 2037-38 | C87: 2038
B88: 2038-39 | C88: 2039
B89: 2039-40 | C89: 2040
B90: 2040-41 | C90: 2041
B91: 2041-42 | C91: 2042
B92: 2042-43 | C92: 2043
B93: 2043-44 | C93: 2044
B94: 2044-45 | C94: 2045
B95: 2045-46 | C95: 2046
B96: 2046-47 | C96: 2047
B97: 2047-28 | C97: 2048

Sheet AER ETL (hidden)
B1: AER ETL INFORMATION
B3: USES NAMED RANGES FLAG | C3: yes | D3: dms_Defined_Names_Used
B5: IF THIS IS AN ABC RIN - make sure the the named range CRY is applied and the named range dms_dollar_nom_UOM is applied
B6: IF THIS IS A RESET RIN - make sure the named ranges CRY and dms_dollar_nom_UOM are NOT present in the workbook
B7: FOR ABC RINS THAT SPAN MULTIPLE YEARS - make sure MultiYear Flag is set and final year entered as required
B9: Full trading name | C9: =INDEX(dms_TradingNameFull_List,MATCH(dms_TradingName,dms_TradingName_List)) -> TasNetworks (T) | E9: dms_TradingNameFull
B10: Trading name | C10: =dms_TradingName -> TasNetworks (T)
A11: Selected here | B11: Model / RIN | C11: Reset | D11: dms_Model
A12: Read from Business & other details | B12: Source | C12: Regulatory proposal | D12: dms_Source | E12: =IF(dms_Model="Reset", "You have chosen Reset - make sure you have set Reg Proposal as source","") -> You have chosen Reset - make sure you have set Reg Proposal as source
B13: Data quality | C13: Consolidated | D13: For DB purposes this is always Consoldiated
B14: Data status | C14: Public | D14: "See "& " - For DB purposes this is always Public"
B15: Amendment reason | C15: =dms_Amendment_Text -> . | F15: dms_AmendmentReason
B16: Submission date | C16: =dms_Typed_Submission_Date -> 2023-01-31 | D16: dms_SubmissionDate
A18: Redundant | B18: EBSS - First application of scheme in forthcoming period? | C18: No
A19: Pre-populated from lookup table | B19: Data ingestion data quality | C19: Consolidated | D19: dms_DataQuality | E19: Always Consolidated
B20: Sector | C20: =INDEX(dms_Sector_List,MATCH(dms_TradingName,dms_TradingName_List)) -> Electricity | D20: dms_Sector | E20: =INDEX(dms_Sector_List,MATCH(dms_TradingName,dms_TradingName_List))
B21: Segment | C21: =INDEX(dms_Segment_List,MATCH(dms_TradingName,dms_TradingName_List)) -> Transmission | D21: dms_Segment | E21: =INDEX(dms_Segment_List,MATCH(dms_TradingName,dms_TradingName_List))
B22: Regulatory Year Ending | C22: =IF(dms_MultiYear_Flag=1,LEFT(dms_Specified_FinalYear,2)&RIGHT(dms_Specified_FinalYear,2),dms_RYE_result) -> 2029 | D22: dms_RYE | E22: =IF(dms_MultiYear_Flag=1,LEFT(dms_Specified_FinalYear,2)&RIGHT(dms_Specified_FinalYear,2),dms_RYE_result)
B23: Reporting Period Type | C23: =INDEX(dms_RPT_List,MATCH(dms_TradingName,dms_TradingName_List)) -> Financial | D23: dms_RPT | E23: =INDEX(dms_RPT_List,MATCH(dms_TradingName,dms_TradingName_List))
B24: EB/CA Unit of Measure for Monetary Values | C24: $0s | D24: dms_dollar_nom_UOM | E24: =IF(dms_SingleYearModel="yes","This is set to an historical template (EB, CA or ARR), apply UOM Named Range to cell !","This is not an historical template, make sure UOM Named Range is not applied") -> This is not an historical template, make sure UOM Named Range is not applied | J24: =IFERROR(dms_dollar_nom_UOM, "NR not applied") -> NR not applied
B25: Security Classification | C25: Public | D25: dms_Classification | E25: Always Public
B26: Jurisdiction | C26: =INDEX(dms_JurisdictionList,MATCH(dms_TradingName,dms_TradingName_List)) -> Tas | D26: dms_Jurisdiction | E26: =INDEX(dms_JurisdictionList,MATCH(dms_TradingName,dms_TradingName_List))
A27: Relevant for PTRM, RFMs and Reset RINS | B27: $ REAL REFERENCES
B28: Does the named range CRY exist in this file? | C28: =IFERROR(CRY,"NO") -> 2022-23
B29: CRY-1 (last full calendar year before CRY) | C29: =IFERROR(IF(dms_RPT="calendar",CRY-1,LEFT(CRY,4)),"CRY not present") -> 2022 | D29: dms_Cal_Year_B4_CRY | E29: '=IF(dms_RPT="financial",VALUE(LEFT(dms_SingleYear_FinalYear_Result,4)),VALUE(LEFT(dms_SingleYear_FinalYear_Result,4)-1))
B30: Dollar $ real month | C30: =INDEX(dms_RPTMonth_List,MATCH(dms_TradingName,dms_TradingName_List)) -> June | D30: dms_RPTMonth | E30: =INDEX(dms_RPTMonth_List,MATCH(dms_TradingName,dms_TradingName_List))
B31: Dollar $ real (the last month before the FRCP_y1) | C31: =IF(dms_Model="RFM",dms_DollarReal_Prev, IF(dms_SingleYearModel="yes",CONCATENATE(dms_RPTMonth)&" "&VALUE((LEFT(dms_CRY_start_year,2)&RIGHT(dms_CRY_start_year,2))),CONCATENATE(dms_RPTMonth)&" "&dms_DollarReal_year)) -> June 2024 | D31: dms_DollarReal | E31: =IF(dms_Model="RFM",dms_DollarReal_Prev, IF(dms_SingleYearModel="yes",CONCATENATE(dms_RPTMonth)&" "&VALUE((LEFT(dms_CRY_start_year,2)&RIGHT(dms_CRY_start_year,2))),CONCATENATE(dms_RPTMonth)&" "&dms_DollarReal_year))
B32: Dollar $ real previous year (PRCP_y5) | C32: =CONCATENATE(dms_RPTMonth)&" "&dms_Previous_DollarReal_year -> June 2019 | D32: dms_DollarReal_Prev | E32: =IF(SUM(dms_SingleYear_Model)>0,CONCATENATE(dms_RPTMonth)&" "&VALUE(((LEFT(CRY,2))&RIGHT(CRY,2))-1),CONCATENATE(dms_RPTMonth)&" "&VALUE(((LEFT(dms_CRCP_FirstYear_Result,2)&RIGHT(dms_CRCP_FirstYear_Result,2))))-1)
B33: PTRM/ RFMs
B34: Form of control | C34: =INDEX(dms_FormControl_List,MATCH(dms_TradingName,dms_TradingName_List)) -> Revenue cap | D34: dms_FormControl | E34: =INDEX(dms_FormControl_List,MATCH(dms_TradingName,dms_TradingName_List))
A35: All potential values for Regulatory Years or RYEs as calculated | B35: This block works out the various RYE's for ALL RIN types and MODELS
B36: dms_start_year | C36: =FRCP_y1 -> 2024-25 | D36: =FRCP_y1 | E36: FRCP_y1 from cover sheet
B37: dms_CRY_start_year | C37: =IFERROR(CRY,CRCP_y4) -> 2022-23 | D37: =IFERROR(CRY,CRCP_y4)
B38: dms_CRY_start_row | C38: =IFERROR(MATCH(dms_CRY_start_year,INDIRECT(dms_RPT),0),0) -> 36 | D38: =IFERROR(MATCH(dms_CRY_start_year,INDIRECT(dms_RPT),0),0)
B39: dms_FRCP_start_row | C39: =MATCH(dms_start_year,INDIRECT(dms_RPT),0) -> 38 | D39: =MATCH(dms_start_year,INDIRECT(dms_RPT),0) | E39: Uses FRCP_y1 as a start reference
B40: dms_CRCP_start_row | C40: =dms_FRCP_start_row-dms_CRCPlength_Num -> 33 | D40: =dms_FRCP_start_row-dms_CRCPlength_Num | E40: Uses the value in dms_CRCPlength_Num
B41: dms_PRCP_start_row | C41: =dms_FRCP_start_row-dms_CRCPlength_Num-dms_PRCPlength_Num -> 28 | D41: =dms_FRCP_start_row-dms_CRCPlength_Num-dms_PRCPlength_Num | E41: Uses the value in dms_CRCPlength_Num and dms_PRCPlength_Num
B42: dms_RYE_start_row | C42: =dms_FRCP_start_row+(dms_FRCPlength_Num-1) -> 42 | D42: =dms_FRCP_start_row+(dms_FRCPlength_Num-1) | E42: Uses the value in dms_FRCPlength_Num-1
B43: FRCP_start_year | C43: =INDEX(INDIRECT(dms_RPT),dms_FRCP_start_row) -> 2024-25 | D43: =INDEX(INDIRECT(dms_RPT),dms_FRCP_start_row) | E43: Converts the FRCP start row to display the year
B44: CRCP_start_year | C44: =INDEX(INDIRECT(dms_RPT),dms_CRCP_start_row) -> 2019-20 | D44: =INDEX(INDIRECT(dms_RPT),dms_CRCP_start_row) | E44: Converts the CRCP start row to display the year
B45: PRCP_start_year | C45: =INDEX(INDIRECT(dms_RPT),dms_PRCP_start_row) -> 2014-15 | D45: =INDEX(INDIRECT(dms_RPT),dms_PRCP_start_row) | E45: Converts the PRCP start row to display the year
B46: FRCP_final_year | C46: =INDEX(INDIRECT(dms_RPT),dms_FRCP_start_row+dms_FRCPlength_Num-1) -> 2028-29 | D46: =INDEX(INDIRECT(dms_RPT),dms_FRCP_start_row+dms_FRCPlength_Num-1) | E46: Finds the FRCP final year
B47: CRCP_final_year | C47: =INDEX(INDIRECT(dms_RPT),dms_CRCP_start_row+dms_CRCPlength_Num-1) -> 2023-24 | D47: =INDEX(INDIRECT(dms_RPT),dms_CRCP_start_row+dms_CRCPlength_Num-1) | E47: Finds the CRCP final year
B48: PRCP_final_year | C48: =INDEX(INDIRECT(dms_RPT),dms_PRCP_start_row+dms_FRCPlength_Num-1) -> 2018-19 | D48: =INDEX(INDIRECT(dms_RPT),dms_PRCP_start_row+dms_FRCPlength_Num-1) | E48: Finds the PRCP final year
B49: dms_Reset_final_year | C49: =INDEX(INDIRECT(dms_RPT),dms_RYE_start_row) -> 2028-29 | D49: =INDEX(INDIRECT(dms_RPT),dms_RYE_start_row) | E49: For Resets and PTRM/RFMs (same as FRCP_final_year)
B50: dms_SpecifiedYear_final_year | C50: =FRY -> 2022-23 | D50: =FRY | E50: FRY from cover sheet
B51: dms_DollarReal_year | C51: =LEFT(CRCP_final_year,2)&RIGHT(CRCP_final_year,2) -> 2024 | D51: =LEFT(CRCP_final_year,2)&RIGHT(CRCP_final_year,2) | E51: Uses the value in CRCP_final_year
B52: dms_Previous_DollarReal_year | C52: =LEFT(PRCP_final_year,2)&RIGHT(PRCP_final_year,2) -> 2019 | D52: =LEFT(PRCP_final_year,2)&RIGHT(PRCP_final_year,2) | E52: Uses the value in PRCP_final_year
B53: dms_CRY_RYE | C53: =IFERROR(LEFT(CRY,2)&RIGHT(CRY,2),0) -> 2023 | D53: =IFERROR(LEFT(CRY,2)&RIGHT(CRY,2),0) | E53: For ABC single year RINS
B54: dms_Reset_RYE | C54: =IF(dms_Model_Span>1,IF(dms_Model="RFM",(LEFT(dms_DollarReal_year,2)&RIGHT(dms_DollarReal_year,2)),(LEFT(dms_Reset_final_year,2)&RIGHT(dms_Reset_final_year,2))),0) -> 2029 | D54: =IF(dms_Model_Span>1,IF(dms_Model="RFM",(LEFT(dms_DollarReal_year,2)&RIGHT(dms_DollarReal_year,2)),(LEFT(dms_Reset_final_year,2)&RIGHT(dms_Reset_final_year,2))),0) | E54: If model span > 1 then uses dms_Reset_RYE otherwise it's a multi year ABC and uses dms_Specified_RYE
B55: dms_Specified_RYE | C55: =IF(dms_MultiYear_ResponseFlag="Yes",(LEFT(dms_Specified_FinalYear,2)&RIGHT(dms_Specified_FinalYear,2)),0) -> 0 | D55: =IF(dms_MultiYear_ResponseFlag="Yes",(LEFT(dms_Specified_FinalYear,2)&RIGHT(dms_Specified_FinalYear,2)),0) | E55: If multi year ABC - uses dms_Specified_FinalYear
B56: dms_Model_Span | C56: =INDEX(dms_Model_Span_List,MATCH(dms_Model,dms_Model_List)) -> 5 | D56: =INDEX(dms_Model_Span_List,MATCH(dms_Model,dms_Model_List)) | E56: A result of 5 is used to signify that it is more than 1 year span
B57: dms_RYE_result | C57: =IF(dms_MultiYear_ResponseFlag="yes",dms_Specified_RYE,(IF(dms_Model_Span>1,dms_Reset_RYE,dms_CRY_RYE))) -> 2029 | D57: =IF(dms_MultiYear_ResponseFlag="yes",dms_Specified_RYE,(IF(dms_Model_Span>1,dms_Reset_RYE,dms_CRY_RYE))) | E57: Nested IF - feeds into dms_RYE
B58: dms_Reset_Span | C58: =IF(dms_Reset_RYE>0,CONCATENATE(FRCP_y1," to ",FRCP_final_year),0) -> 2024-25 to 2028-29 | D58: =IF(dms_Reset_RYE>0,CONCATENATE(FRCP_y1," to ",FRCP_final_year),0) | E58: Reset span of years as text
B59: dms_SpecifiedYear_Span | C59: =IF(dms_Specified_RYE>0,CONCATENATE(CRY," to ",dms_Specified_FinalYear),0) -> 0 | D59: =IF(dms_Specified_RYE>0,CONCATENATE(CRY," to ",dms_Specified_FinalYear),0) | E59: Multi year ABC span of years as text
B60: dms_Header_Span | C60: =IF(dms_MultiYear_Flag=1,dms_SpecifiedYear_Span,IF(dms_Model_Span>1,dms_y1&" to "&FRCP_final_year,CRY)) -> 2022-23 to 2028-29 | D60: =IF(dms_MultiYear_Flag=1,dms_SpecifiedYear_Span,IF(dms_Model_Span>1,dms_Reset_Span,CRY)) | E60: NESTED IF - for Sheet Headers
B61: ABC RINS THAT SPAN MULTIPLE YEARS
B62: This is a multi year ABC RIN? | C62: No
C63: =IF(dms_MultiYear_ResponseFlag="No",0,1) -> 0 | D63: dms_MultiYear_Flag | E63: This is set from the answer provided above
C64: =IF(dms_MultiYear_Flag=1,FRY,"not a Multiple year submission") -> not a Multiple year submission | D64: dms_Specified_FinalYear | E64: The result here is returned to dms_CRCP_FinalYear_Result if response to Q in C73 is "yes" and dms_MultiYear_Flag is set to 1
B65: Start year for 5.2 in Multi year ABC RINS | C65: =IFERROR(IF(dms_MultiYear_Flag=1,FRY,CRY),"not an ABC") -> 2022-23 | D65: dms_0502_Inst_Year | E65: =IF(dms_MultiYear_Flag=1,FRY,CRY) | G65: For single year RINS this is CRY - multi year RINS need to start a the end of the span of years (ie. FRY)
B66: WHAT IS THE RYE?
B67: Reg Period Lengths
B68: PRCP length in years | C68: =INDEX(dms_PRCPlength_List,MATCH(dms_TradingName,dms_TradingName_List)) -> 5 | D68: dms_PRCPlength_Num | E68: =INDEX(dms_PRCPlength_List,MATCH(dms_TradingName,dms_TradingName_List))
B69: CRCP length in years | C69: =INDEX(dms_CRCPlength_List,MATCH(dms_TradingName,dms_TradingName_List)) -> 5 | D69: dms_CRCPlength_Num | E69: =INDEX(dms_CRCPlength_List,MATCH(dms_TradingName,dms_TradingName_List))
B70: FRCP length in years | C70: =INDEX(dms_FRCPlength_List,MATCH(dms_TradingName,dms_TradingName_List)) -> 5 | D70: dms_FRCPlength_Num | E70: =INDEX(dms_FRCPlength_List,MATCH(dms_TradingName,dms_TradingName_List))
B71: Single year RIN?
B72: Single Year ABC RIN ? | C72: =IF(dms_Model="EB",1,0) -> 0 | D72: dms_EB
C73: =IF(dms_Model="CA",1,0) -> 0 | D73: dms_CA | E73: =dms_SingleYear_Model
C74: =IF(dms_Model="ARR",1,0) -> 0 | D74: dms_ARR
B75: Is this a single Year ABC RIN? | C75: =IF(SUM(dms_SingleYear_Model)=1,"yes","no") -> no | D75: dms_SingleYearModel | E75: =IF(SUM(dms_SingleYear_Model)=1,"yes","no")
B76: Single Year Final Year Result | C76: =IF(AND(dms_SingleYearModel="yes",dms_MultiYear_Flag=0),CRY,0) -> 0 | D76: dms_SingleYear_FinalYear_Result | E76: =IFERROR(IF(SUM(dms_SingleYear_Model)<>0,(INDIRECT(dms_SingleYear_FinalYear_Ref)),"not a single year RIN"),"CRY not present")
B77: Multi year RIN?
B79: Multi Year Reset/Model? | C79: =IF(dms_Model_Span>1,"yes","no") -> yes
B80: Final year result for Reset/Model | C80: =IF(dms_Model_Span>1,dms_Reset_final_year,0) -> 2028-29 | D80: dms_MultiYear_FinalYear_Result | E80: dms_CRCP_FinalYear_Result
B82: Multi Year ABC RIN? | C82: =IF(dms_MultiYear_Flag=1,"yes","no") -> no | D82: dms_MultiYear_ABC_RIN
B83: Final year result for ABC multi year | C83: =IF(dms_MultiYear_Flag=1,C50,0) -> 0
B85: EB RINS
B86: Calendar Year for table 3.6 data | C86: =IFERROR(IF(dms_Segment="Transmission",dms_Cal_Year_B4_CRY,CRY),"CRY not present") -> 2022 | D86: dms_0306_Year | E86: =IF(dms_Segment="Transmission",dms_Cal_Year_B4_CRY,CRY)
B87: CA RINS
B88: Find how many rows in tables 6.3 sustained interruptions? | E88: dms_060301_MaxRows only returns a valid value when cover sheet is attached to a CA file
C89: =IF(dms_Model<>"CA","not a CA","Is a CA") -> not a CA | E89: =IF(dms_Model<>"CA","not a CA","Is a CA")
B90: dms_060301_Avg_Duration_Sustained_Int_Values present? | C90: =IFERROR(IF(INDEX(dms_060301_Avg_Duration_Sustained_Int_Values,1,1)<>"","yes","no"),"no") -> no | D90: dms_060301_checkvalue | E90: =IFERROR(IF(INDEX(dms_060301_Avg_Duration_Sustained_Int_Values,1,1)<>"","yes","no"),"no")
C91: =IF(AND(dms_Model="CA",(dms_060301_checkvalue="no")),"error - NR not present","no errors") -> no errors | E91: =IF(AND(dms_Model="CA",(dms_060301_checkvalue="no")),"error - NR not present","no errors")
B92: Table 6.3.1 - last row reference | C92: =IFERROR(IF(dms_Model="CA",LOOKUP(2,1/(dms_060301_Avg_Duration_Sustained_Int_Values<>""),(ROW(dms_060301_Avg_Duration_Sustained_Int_Values))),"not a CA"),"6.3 not present") -> not a CA | D92: dms_060301_LastRow | E92: =IFERROR(IF(dms_Model="CA",LOOKUP(2,1/(dms_060301_Avg_Duration_Sustained_Int_Values<>""),(ROW(dms_060301_Avg_Duration_Sustained_Int_Values))),"not a CA"),"6.3 not present")
B93: Table 6.3.1 - max number rows | C93: =IFERROR(IF(dms_Model="CA",(dms_060301_LastRow-15),"not a CA"),"error") -> not a CA | D93: dms_060301_MaxRows | E93: =IFERROR(IF(dms_Model="CA",(dms_060301_LastRow-15),"not a CA"),"error")
B94: Table 6.6.3 - Public lighting repair - no. business days | C94: =INDEX(dms_663_List,MATCH(dms_TradingName,dms_TradingName_List)) -> 5 | D94: dms_663 | E94: =INDEX(dms_663_List,MATCH(dms_TradingName,dms_TradingName_List))
B95: ARR or RESET RINS
B96: How many rows in tables 6.1 or 6.7? (leap year?) | C96: insert dms_LeapYear NR if required | E96: 'dms_LeapYear is used to determine dms_060701_Max_Rows BUT it is only found on worksheet 6.1 or 6.7 and the date value in the cell is used to determine whether it is a leap year
B97: Is dms_LeapYear named range present? | C97: =IFERROR(IF(dms_LeapYear,"yes"),"no") -> no
B98: Table 6.7.1 - includes a leap year? | C98: =IFERROR(IF(MONTH(DATE(YEAR(dms_LeapYear),2,29))=2,"is a leap year","not a leap year"), "dms_LeapYear not present") -> dms_LeapYear not present | D98: dms_LeapYear_Result | E98: =IFERROR(IF(MONTH(DATE(YEAR(dms_LeapYear),2,29))=2,"is a leap year","not a leap year"),"dms_LeapYear not present")
B99: MaxRows if Reset and leap year | C99: =IF(dms_LeapYear_Result="is a leap year",1827,1826) -> 1826 | D99: dms_060701_Reset_MaxRows | E99: =IF(dms_LeapYear_Result="is a leap year",1827,1826) | H99: number of days present in Reset RIN table
B100: MaxRows if ARR and leap year | C100: =IF(dms_LeapYear_Result="is a leap year",366,365) -> 365 | D100: dms_060701_ARR_MaxRows | E100: =IF(dms_LeapYear_Result="is a leap year",366,365) | H100: number of days present in ARR RIN table
B101: Table 6.7.1 - Max Rows (leap year/ non leap year) | C101: =IF(dms_Model="ARR",dms_060701_ARR_MaxRows,IF(dms_Model="Reset",dms_060701_Reset_MaxRows,"not a relevant RIN type")) -> 1826 | D101: dms_060701_MaxRows | E101: =IF(dms_Model="ARR",dms_060701_ARR_MaxRows,IF(dms_Model="Reset",dms_060701_Reset_MaxRows,"not a relevant RIN type"))
B102: How many columns in 6.7? (4 or 5 feeder categories) | C102: =IF(dms_FifthFeeder_flag_NSP="NO","This NSP has only 4 feeder categories","This NSP has 5 feeder categories") -> This NSP has only 4 feeder categories
B103: Table 6.7.1 - Last column (# of feeder categories > 4) | C103: =IF(dms_FifthFeeder_flag_NSP="NO",10,12) -> 10 | D103: dms_060701_MaxCols | E103: =IF(dms_FifthFeeder_flag_NSP="NO",8,10)
B104: Table 6.7.1 - Number of offset rows | C104: =IF(dms_Model="ARR",15,9) -> 9 | D104: dms_060701_OffsetRows | E104: =IF(dms_Model="ARR",15,9)
B105: Start date for telephone answering in 6.1 or 6.7? | E105: Using 060101 as naming standard not 060701 for start dates
B106: Table 6.1.1 and 6.7.1 - Start Date as Text | C106: =IF(dms_SingleYearModel="yes",(CONCATENATE(IF(LEN(CRY)=4,"1-Jan-","1-Jul-"),LEFT(CRY,4))),(CONCATENATE(IF(LEN(PRCP_y4)=4,"1-Jan-","1-Jul-"),LEFT(PRCP_y4,4)))) -> 1-Jul-2017 | D106: dms_060101_StartDateTxt | E106: =IF(SUM(dms_SingleYear_Model)>1,(CONCATENATE(IF(LEN(CRY)=4,"1-Jan-","1-Jul-"),LEFT(CRY,4))),(CONCATENATE(IF(LEN(CRCP_y4)=4,"1-Jan-","1-Jul-"),LEFT(CRCP_y4,4))))
B107: Table 6.1.1 and 6.7.1 - Start Date as Date Value | C107: =DATEVALUE(dms_060701_StartDateTxt) -> 42917 | D107: dms_060101_StartDateVal | E107: =DATEVALUE(dms_060701_StartDateTxt)
B108: ARRs
B109: How many rows in table 6.8? | C109: insert dms_060801_StartCell NR if required | E109: dms_060801_StartCell is only found on worksheet 6.8 and is used to determine the starting date for the date range
B110: Is dms_060801_StartCell named range present? | C110: =IFERROR(IF((ROW(dms_060801_StartCell)-1)=1,"yes","yes"),"no") -> no | D110: Must be present for ARRs | E110: =IFERROR(IF((ROW(dms_060801_StartCell)-1)=1,"yes","yes"),"no")
B111: Table 6.8 - Number of offset rows | C111: 12 | D111: dms_0608_OffsetRows | E111: =IFERROR(IF(dms_Model="ARR",(ROW(dms_060801_StartCell)-1),"not an ARR"),"6.8 error")
B112: Table 6.8 - Last row | C112: =IFERROR(IF(dms_060801_StartCell<>"",IF(dms_Model="ARR",(LOOKUP(2,1/(dms_060801_01_Values<>""),(ROW(dms_060801_01_Values)))),"not an ARR"),0),"0") -> 0 | D112: dms_0608_LastRow | E112: =IFERROR(IF(dms_060801_StartCell<>"",IF(dms_Model="ARR",(LOOKUP(2,1/(dms_060801_01_Values<>""),(ROW(dms_060801_01_Values)))),"not an ARR"),0),"0")
B113: Table 6.8 - MaxRows | C113: =IFERROR(IF(dms_Model="ARR",(MAX(0,dms_0608_LastRow-dms_0608_OffsetRows)),"not an ARR"),"0") -> not an ARR | D113: dms_060801_MaxRows | E113: =IFERROR(IF(dms_Model="ARR",(MAX(0,dms_0608_LastRow-dms_0608_OffsetRows)),"not an ARR"),"0")
B114: TNSP RESET RINS
B115: Table 7.9.4 only appears in TNSPs Reset RIN
B116: Table 7.9.4 - first year | C116: =LEFT(PRCP_y3,4) -> 2016 | D116: dms_070904_Start_Year | E116: =LEFT(PRCP_y3,4)
B118: MISC
B119: Distribution Determination Reference | C119: - | D119: dms_DeterminationRef
B120: Public lighting NSP? | C120: =INDEX(dms_Public_Lighting_List,MATCH(dms_TradingName,dms_TradingName_List)) -> NO | D120: dms_Public_Lighting | E120: =INDEX(dms_Public_Lighting_List,MATCH(dms_TradingName,dms_TradingName_List))
B121: CBD Feeder for this business | C121: =INDEX(dms_CBD_flag,MATCH(dms_TradingName,dms_TradingName_List)) -> NO | D121: dms_CBD_flag_NSP
B122: Urban Feeder for this business | C122: =INDEX(dms_Urban_flag,MATCH(dms_TradingName,dms_TradingName_List)) -> NO | D122: dms_Urban_flag_NSP
B123: Short rural Feeder for this business | C123: =INDEX(dms_ShortRural_flag,MATCH(dms_TradingName,dms_TradingName_List)) -> NO | D123: dms_ShortRural_flag_NSP
B124: Long rural Feeder for this business | C124: =INDEX(dms_LongRural_flag,MATCH(dms_TradingName,dms_TradingName_List)) -> NO | D124: dms_LongRural_flag_NSP
B125: Fifth Feeder Category (eg. TasNetworks (D)) | C125: =INDEX(dms_FeederType_5_flag,MATCH(dms_TradingName,dms_TradingName_List)) -> NO | D125: dms_FifthFeeder_flag_NSP | E125: =INDEX(dms_FeederType_5_flag,MATCH(dms_TradingName,dms_TradingName_List))
B127: DISCARD FILES
B128: discard this record? | C128: NO | D128: dms_DISCARD | E128: If record is to be discarded from DB set this flag to YES
B130: SUBSET FILES
B131: Is this Submission File a Subset File | C131: NO | D131: dms_Partial
B134: REGULATORY YEARS FOR MULTI RYE SUBMISSIONS
B135: Multiple RYE flag | C135: NO | D135: dms_Multi_RYE_flag
C136: Manually specify RYE | D136: Named ranges to apply
C137: 2013 | D137: dms_RYE_01
C138: 2014 | D138: dms_RYE_02
C139: 2015 | D139: dms_RYE_03
C140: 2016 | D140: dms_RYE_04
C141: 2017 | D141: dms_RYE_05
C142: 2018 | D142: dms_RYE_06
C143: 2019 | D143: dms_RYE_07
C144: 2020 | D144: dms_RYE_08
C145: 2021 | D145: dms_RYE_09
